Workbook

Sheet Inputs
A1: Inputs | B1: =K2/E2 -> 1.254912099 | D1: 2006 to 2012 | M1: 257.5 | N1: Dec
B2: =M2/K2 -> 1.054800165 | D2: 2012 to 2014 | E2: 193.4 | K2: 242.7 | M2: 256 | O2: 263.8
B3: £2014 | C3: Source | D3: 2005 | E3: 2006 | F3: =E3+1 -> 2007 | G3: =F3+1 -> 2008 | H3: 2009 | I3: 2010 | J3: 2011 | K3: 2012 | L3: 2013 | M3: 2014 | N3: 2015 | O3: 2016 | P3: 2017 | Q3: 2018 | R3: 2019 | S3: 2020 | T3: 2021 | U3: 2022 | V3: 2023 | W3: 2024 | X3: 2025 | Y3: 2026 | Z3: 2027 | AA3: 2028 | AB3: 2029 | AC3: 2030 | AD3: 2031 | AE3: 2032 | AF3: 2033 | AG3: 2034 | AH3: 2035 | AI3: =AH3+1 -> 2036 | AJ3: =AI3+1 -> 2037 | AK3: =AJ3+1 -> 2038 | AL3: =AK3+1 -> 2039 | AM3: =AL3+1 -> 2040 | AN3: =AM3+1 -> 2041 | AO3: =AN3+1 -> 2042 | AP3: =AO3+1 -> 2043 | AQ3: =AP3+1 -> 2044 | AR3: =AQ3+1 -> 2045
E4: Actual | F4: Actual | G4: Actual | H4: PCR02 Det | I4: PCR02 Det | J4: PCR02 Det | K4: PCR02 Det | L4: PCR02 Det | M4: GD14 Det | N4: GD14 Det | O4: GD14 Det | P4: GD17 onward | Q4: GD17 onward | R4: GD17 onward | S4: GD17 onward | T4: GD17 onward | U4: GD17 onward | V4: GD17 onward | W4: GD17 onward | X4: GD17 onward | Y4: GD17 onward | Z4: GD17 onward | AA4: GD17 onward | AB4: GD17 onward | AC4: GD17 onward | AD4: GD17 onward | AE4: GD17 onward | AF4: GD17 onward | AG4: GD17 onward | AH4: GD17 onward | AI4: GD17 onward | AJ4: GD17 onward | AK4: GD17 onward | AL4: GD17 onward | AM4: GD17 onward | AN4: GD17 onward | AO4: GD17 onward | AP4: GD17 onward | AQ4: GD17 onward | AR4: GD17 onward
A6: Capex - Subtotals in £2006 | D6: 2005 | E6: 2006 | F6: 2007 | G6: 2008 | H6: 2009 | I6: 2010 | J6: 2011 | K6: 2012 | L6: =K6+1 -> 2013 | M6: =L6+1 -> 2014 | N6: 2015 | O6: 2016 | P6: 2017 | Q6: 2018 | R6: 2019 | S6: 2020 | T6: 2021 | U6: 2022 | V6: 2023 | W6: 2024 | X6: 2025 | Y6: 2026 | Z6: 2027 | AA6: 2028 | AB6: 2029 | AC6: 2030 | AD6: 2031 | AE6: 2032 | AF6: 2033 | AG6: 2034 | AH6: 2035 | AI6: =AH6+1 -> 2036 | AJ6: =AI6+1 -> 2037 | AK6: =AJ6+1 -> 2038 | AL6: =AK6+1 -> 2039 | AM6: =AL6+1 -> 2040 | AN6: =AM6+1 -> 2041 | AO6: =AN6+1 -> 2042 | AP6: =AO6+1 -> 2043 | AQ6: =AP6+1 -> 2044 | AR6: =AQ6+1 -> 2045
C7: Figures from updated capex performance model
A8: MP | B8: 4 bar main | C8: Letter 16 Feb 2011 | D8: Mains | E8: 6923003.574 | F8: 9049244.956 | G8: 6831773.438 | H8: 8188137.662 | I8: 8078146.893 | J8: 5521651.117 | K8: 4199399.218 | L8: 3685225.36 | M8: 736542.2661 | N8: 622468.0851 | O8: 563037.4766 | P8: =P53/$M$1*$E$2 -> 0 | Q8: =Q53/$M$1*$E$2 -> 0 | R8: 0 | S8: 0 | T8: 0 | U8: 0 | V8: 0 | W8: 0 | X8: 0 | Y8: 0 | Z8: 0 | AA8: 0 | AB8: 0 | AC8: 0 | AD8: 0 | AE8: 0 | AF8: 0 | AG8: 0 | AH8: 0 | AI8: =AI53/$M$1*$E$2 -> 0 | AJ8: 0 | AK8: 0 | AL8: 0 | AM8: 0 | AN8: 0 | AO8: 0 | AP8: 0 | AQ8: 0 | AR8: 0
B9: Governors | C9: PI's model V1.1 | D9: Meters/Tele | E9: 0 | F9: 26142.85714 | G9: 82857.14286 | H9: 77420.41296 | I9: 100474.4626 | J9: 102242.4937 | K9: 52597.53958 | L9: 53307.16321 | M9: 0 | N9: 0 | O9: 0 | P9: =P54/$M$1*$E$2 -> 0 | Q9: 0 | R9: 0 | S9: 0 | T9: 0 | U9: 0 | V9: 0 | W9: 0 | X9: 0 | Y9: 0 | Z9: 0 | AA9: 0 | AB9: 0 | AC9: 0 | AD9: 0 | AE9: 0 | AF9: 0 | AG9: 0 | AH9: 0 | AI9: =AI54/$M$1*$E$2 -> 0 | AJ9: 0 | AK9: 0 | AL9: 0 | AM9: 0 | AN9: 0 | AO9: 0 | AP9: 0 | AQ9: 0 | AR9: 0
A10: LP | B10: Infill &TMA from 2017 | C10: PI's model V1.1 | D10: Mains | E10: 0 | F10: 0 | G10: 223967.2145 | H10: 652307.7191 | I10: 542746.4303 | J10: 573809.6598 | K10: 607285.6125 | L10: 357597.4358 | M10: 5393975.022 | N10: 4237495.856 | O10: 3800068.002 | P10: 7166098.968 | Q10: 6896639.171 | R10: 6941695.805 | S10: 7215722.97 | T10: 7183281.959 | U10: 7788485.707 | V10: 5658989.215 | W10: 5008523.494 | X10: 5215532.226 | Y10: 3258340.9 | Z10: 1566936.375 | AA10: 1552908.932 | AB10: 1545987.901 | AC10: 1539950.547 | AD10: 1534939.932 | AE10: 1531159.536 | AF10: 1527806.884 | AG10: 1525671.243 | AH10: 1523882.594 | AI10: =AI55/$M$1*$E$2 -> 1522586.492 | AJ10: 1522047.039 | AK10: 1521811.305 | AL10: 1521916.486 | AM10: 1522763.073 | AN10: 1523589.286 | AO10: 1524718.952 | AP10: 1525595.587 | AQ10: 1526759.666 | AR10: 1528259.253
A11: Domestic | B11: Services | C11: PI's model V1.1 | D11: Services | E11: 155848.5734 | F11: 290470.0249 | G11: 588038.5732 | H11: 1075079.929 | I11: 1207475.382 | J11: 1223250.216 | K11: 1239295.896 | L11: 1251911.219 | M11: 2021496.168 | N11: 2021496.168 | O11: 1910572.064 | P11: =P56/$M$1*$E$2 -> 2489084.776 | Q11: 2539826.383 | R11: 2593570.85 | S11: 2671942.199 | T11: 2894010.506 | U11: 2975495.299 | V11: 2892185.395 | W11: 2910353.897 | X11: 2729972.079 | Y11: 2730434.433 | Z11: 2563984.25 | AA11: 2334441.036 | AB11: 2211085.595 | AC11: 2098137.291 | AD11: 1990873.755 | AE11: 1892462.947 | AF11: 1800668.378 | AG11: 1715331.399 | AH11: 1636131.429 | AI11: =AI56/$M$1*$E$2 -> 1561925.847 | AJ11: 1493781.025 | AK11: 1429189.638 | AL11: 1369963.309 | AM11: 1315267.093 | AN11: 1263885.982 | AO11: 1215861.844 | AP11: 1170753.972 | AQ11: 1128440.352 | AR11: 1089666.94
B12: Meters | C12: PI's model V1.1 | D12: Meters/Tele | E12: 64686.9793 | F12: 114504.6979 | G12: 193959.2524 | H12: 254860.2745 | I12: 249037.0819 | J12: 253419.3426 | K12: 257704.7324 | L12: 261181.575 | M12: 720369.1801 | N12: 720369.1801 | O12: 684350.7211 | P12: 524125.911 | Q12: 534150.1288 | R12: 544661.9855 | S12: 560519.0332 | T12: 654614.3807 | U12: 729910.0483 | V12: 821346.9455 | W12: 956366.2012 | X12: 904192.6051 | Y12: 978038.403 | Z12: 960092.6929 | AA12: 948448.0964 | AB12: 923955.4772 | AC12: 927002.978 | AD12: 915092.7867 | AE12: 899038.2276 | AF12: 889106.5301 | AG12: 881011.3594 | AH12: 879972.4728 | AI12: =AI57/$M$1*$E$2 -> 946679.41 | AJ12: 1024524.229 | AK12: 1055081.771 | AL12: 1173929.411 | AM12: 1118764.294 | AN12: 1169085.113 | AO12: 1149991.523 | AP12: 1136968.979 | AQ12: 1107785.468 | AR12: 1105702.249
A13: IC | B13: Services | C13: PI's model V1.1 | D13: Services | E13: 126231.3306 | F13: 159935.8089 | G13: 476274.665 | H13: 318783.8918 | I13: 258585.8444 | J13: 282115.1741 | K13: 163323.2855 | L13: 123739.3673 | M13: 139713.3712 | N13: 91762.60239 | O13: 44688.38896 | P13: 335846.5582 | Q13: 336400.913 | R13: 336130.8413 | S13: 335177.3613 | T13: 334597.693 | U13: 333042.4977 | V13: 245460.4368 | W13: 262330.7857 | X13: 269821.4349 | Y13: 279130.8705 | Z13: 254856.8824 | AA13: 231334.2372 | AB13: 212905.5821 | AC13: 188004.7058 | AD13: 171220.1949 | AE13: 155603.775 | AF13: 142271.4112 | AG13: 131282.6034 | AH13: 117291.8554 | AI13: =AI58/$M$1*$E$2 -> 107545.991 | AJ13: 95539.38232 | AK13: 89739.34826 | AL13: 79673.89853 | AM13: 71822.28663 | AN13: 65791.34893 | AO13: 57253.56206 | AP13: 55649.8351 | AQ13: 51676.97737 | AR13: 45302.88743
B14: Meters | C14: PI's model V1.1 | D14: Meters/Tele | E14: 147239.7839 | F14: 257228.4966 | G14: 454194.6357 | H14: 87474.43469 | I14: 61732.49986 | J14: 67651.01059 | K14: 39311.43286 | L14: 29881.35449 | M14: 99093.79316 | N14: 59757.17347 | O14: 25514.93449 | P14: 176285.2656 | Q14: 178218.088 | R14: 168892.8839 | S14: 168413.7967 | T14: 182162.816 | U14: 189574.871 | V14: 188546.9786 | W14: 216832.7507 | X14: 188688.3788 | Y14: 196830.015 | Z14: 184301.1908 | AA14: 181703.5504 | AB14: 153280.478 | AC14: 150344.3892 | AD14: 130402.72 | AE14: 118597.378 | AF14: 114929.8825 | AG14: 103940.2366 | AH14: 96173.66775 | AI14: =AI59/$M$1*$E$2 -> 103405.5883 | AJ14: 102509.3795 | AK14: 118619.5853 | AL14: 136105.3738 | AM14: 98176.04697 | AN14: 97772.68984 | AO14: 89588.35121 | AP14: 95422.063 | AQ14: 75826.86165 | AR14: 83573.74722
A15: Large loads | B15: Services | C15: PI's model V1.1 | D15: Services | E15: 10776.11913 | F15: 74502.02354 | G15: 203422.6011 | H15: 253476.5533 | I15: 227163.8231 | J15: 113437.2248 | K15: 84543.98863 | L15: 17080.91961 | M15: 0 | N15: 0 | O15: 0 | P15: 0 | Q15: 0 | R15: 0 | S15: 0 | T15: 0 | U15: 0 | V15: 0 | W15: 0 | X15: 0 | Y15: 0 | Z15: 0 | AA15: 0 | AB15: 0 | AC15: 0 | AD15: 0 | AE15: 0 | AF15: 0 | AG15: 0 | AH15: 0 | AI15: =AI60/$M$1*$E$2 -> 0 | AJ15: 0 | AK15: 0 | AL15: 0 | AM15: 0 | AN15: 0 | AO15: 0 | AP15: 0 | AQ15: 0 | AR15: 0
B16: Meters | C16: PI's model V1.1 | D16: Meters/Tele | E16: 139516.4755 | F16: 254560.391 | G16: 606396.9668 | H16: 184407.0993 | I16: 139939.7831 | J16: 76816.19164 | K16: 64296.38523 | L16: 13032.76894 | M16: 0 | N16: 0 | O16: 0 | P16: 0 | Q16: 0 | R16: 0 | S16: 0 | T16: 0 | U16: 0 | V16: 0 | W16: 0 | X16: 0 | Y16: 0 | Z16: 0 | AA16: 0 | AB16: 0 | AC16: 0 | AD16: 0 | AE16: 0 | AF16: 0 | AG16: 0 | AH16: 0 | AI16: =AI61/$M$1*$E$2 -> 0 | AJ16: 0 | AK16: 0 | AL16: 0 | AM16: 0 | AN16: 0 | AO16: 0 | AP16: 0 | AQ16: 0 | AR16: 0
A17: Telemetry | B17: PRS from 2017 | C17: PI's model V1.1 | D17: Meters/Tele | E17: 15000 | F17: 33000 | G17: 115500 | H17: 17349.99366 | I17: 11891.41873 | J17: 5232.224243 | K17: 0 | L17: 0 | M17: 19921.71405 | N17: 19921.71405 | O17: 7968.68562 | P17: 14264.31276 | Q17: 27712.21465 | R17: 31576.81982 | S17: 35245.4263 | T17: 33020.79304 | U17: 100485.9909 | V17: 16719.05337 | W17: 16824.08126 | X17: 16824.73499 | Y17: 17300.31034 | Z17: 17244.83799 | AA17: 17396.19915 | AB17: 17493.58999 | AC17: 17597.5589 | AD17: 17696.78568 | AE17: 17799.07396 | AF17: 17895.15858 | AG17: 17995.76419 | AH17: 18096.81917 | AI17: =AI62/$M$1*$E$2 -> 18192.08522 | AJ17: 18292.40569 | AK17: 18383.70444 | AL17: 18478.10246 | AM17: 18573.39973 | AN17: 18661.5316 | AO17: 18752.59484 | AP17: 18827.04382 | AQ17: 18904.77967 | AR17: 18985.48945
A18: Other capex | B18: IT & office | C18: PI's model V1.1 | D18: Other | E18: 313181 | F18: 54621 | G18: 600000 | H18: 44487.16324 | I18: 44042.2916 | J18: 479620.5556 | K18: 43165.85 | L18: 42734.1915 | M18: 97217.96457 | N18: 17531.10836 | O18: 16734.2398 | P18: 423455.4237 | Q18: 85474.84119 | R18: 85474.84119 | S18: 85474.84119 | T18: 85474.84119 | U18: 85474.84119 | V18: 0 | W18: 0 | X18: 0 | Y18: 0 | Z18: 0 | AA18: 0 | AB18: 0 | AC18: 0 | AD18: 0 | AE18: 0 | AF18: 0 | AG18: 0 | AH18: 0 | AI18: =AI63/$M$1*$E$2 -> 0 | AJ18: 0 | AK18: 0 | AL18: 0 | AM18: 0 | AN18: 0 | AO18: 0 | AP18: 0 | AQ18: 0 | AR18: 0
A19: Capex not started (Foyle river crossing) | C19: PI's model V1.1 | D19: Mains | E19: 0 | F19: 0 | G19: 0 | H19: 0 | I19: 0 | J19: 0 | K19: 0 | L19: 0 | M19: 0 | N19: 0 | O19: 0 | P19: 0 | Q19: 0 | R19: 0 | S19: 0 | T19: 0 | U19: 0 | V19: 0 | W19: 0 | X19: 0 | Y19: 0 | Z19: 0 | AA19: 0 | AB19: 0 | AC19: 0 | AD19: 0 | AE19: 0 | AF19: 0 | AG19: 0 | AH19: 0 | AI19: =AI64/$M$1*$E$2 -> 0 | AJ19: 0 | AK19: 0 | AL19: 0 | AM19: 0 | AN19: 0 | AO19: 0 | AP19: 0 | AQ19: 0 | AR19: 0
A21: Capex - Subtotals in £2012 Av
A23: MP | B23: 4 bar main | D23: Mains | E23: =E8/$E$2*$K$2 -> 8687760.948 | F23: =F8/$E$2*$K$2 -> 11356006.98 | G23: 8573275.147 | H23: =H8/$E$2*$K$2 -> 10275393.02 | I23: 10137364.28 | J23: =J8/$E$2*$K$2 -> 6929186.794 | K23: 5269876.889 | L23: 4624633.893 | M23: =M8/$E$2*$K$2 -> 924295.8014 | N23: 781142.7314 | O23: 706562.5417 | P23: =P53/$M$1*$K$2 -> 0 | Q23: =Q53/$M$1*$K$2 -> 0 | R23: 0 | S23: 0 | T23: 0 | U23: 0 | V23: 0 | W23: 0 | X23: 0 | Y23: 0 | Z23: 0 | AA23: 0 | AB23: 0 | AC23: 0 | AD23: 0 | AE23: 0 | AF23: 0 | AG23: 0 | AH23: 0 | AI23: =AI53/$M$1*$K$2 -> 0 | AJ23: 0 | AK23: 0 | AL23: 0 | AM23: 0 | AN23: 0 | AO23: 0 | AP23: 0 | AQ23: 0 | AR23: 0
B24: Governors | D24: Meters/Tele | E24: =E9/$E$2*$K$2 -> 0 | F24: 32806.98774 | G24: 103978.4311 | H24: 97155.81296 | I24: 126086.6188 | J24: 128305.3424 | K24: 66005.28882 | L24: 66895.80409 | M24: 0 | N24: 0 | O24: 0 | P24: =P54/$M$1*$K$2 -> 0 | Q24: 0 | R24: 0 | S24: 0 | T24: 0 | U24: 0 | V24: 0 | W24: 0 | X24: 0 | Y24: 0 | Z24: 0 | AA24: 0 | AB24: 0 | AC24: 0 | AD24: 0 | AE24: 0 | AF24: 0 | AG24: 0 | AH24: 0 | AI24: =AI54/$M$1*$K$2 -> 0 | AJ24: 0 | AK24: 0 | AL24: 0 | AM24: 0 | AN24: 0 | AO24: 0 | AP24: 0 | AQ24: 0 | AR24: 0
A25: LP | B25: Infill &TMA from 2017 | D25: Mains | E25: 0 | F25: 0 | G25: 281059.1673 | H25: 818588.8492 | I25: 681099.0623 | J25: 720080.6848 | K25: 762090.0629 | L25: 448753.3489 | M25: 6768964.518 | N25: 5317684.82 | O25: 4768751.314 | P25: 8992824.3 | Q25: 8654675.94 | R25: 8711218.055 | S25: 9055098.06 | T25: 9014387.443 | U25: 9773864.949 | V25: 7101534.036 | W25: 6285256.732 | X25: 6545034.494 | Y25: 4088931.419 | Z25: 1966367.416 | AA25: 1948764.208 | AB25: 1940078.923 | AC25: 1932502.574 | AD25: 1926214.693 | AE25: 1921470.627 | AF25: 1917263.344 | AG25: 1914583.302 | AH25: 1912338.706 | AI25: =AI55/$M$1*$K$2 -> 1910712.212 | AJ25: 1910035.245 | AK25: 1909739.419 | AL25: 1909871.412 | AM25: 1910933.805 | AN25: 1911970.63 | AO25: 1913388.261 | AP25: 1914488.361 | AQ25: 1915949.178 | AR25: 1917831.028
A26: Domestic | B26: Services | D26: Services | E26: 195576.2605 | F26: 364514.3488 | G26: 737936.7204 | H26: 1349130.81 | I26: 1515275.467 | J26: 1535071.496 | K26: 1555207.414 | L26: 1571038.536 | M26: 2536800 | N26: 2536800 | O26: 2397600 | P26: 3123582.602 | Q26: 3187258.858 | R26: 3254703.44 | S26: 3353052.594 | T26: 3631728.8 | U26: 3733985.052 | V26: 3629438.445 | W26: 3652238.318 | X26: 3425874.992 | Y26: 3426455.206 | Z26: 3217574.858 | AA26: 2929518.302 | AB26: 2774718.066 | AC26: 2632977.872 | AD26: 2498371.563 | AE26: 2374874.65 | AF26: 2259680.534 | AG26: 2152590.127 | AH26: 2053201.126 | AI26: =AI56/$M$1*$K$2 -> 1960079.644 | AJ26: 1874563.882 | AK26: 1793507.369 | AL26: 1719183.532 | AM26: 1650544.588 | AN26: 1586065.811 | AO26: 1525799.739 | AP26: 1469193.325 | AQ26: 1416093.451 | AR26: 1367436.227
B27: Meters | D27: Meters/Tele | E27: 81176.47299 | F27: 143693.3309 | G27: 243401.8126 | H27: 319827.2421 | I27: 312519.6473 | J27: 318018.9993 | K27: 323396.7867 | L27: 327759.9186 | M27: 904000 | N27: 904000 | O27: 858800 | P27: 657731.9472 | Q27: 670311.4595 | R27: 683502.9157 | S27: 703402.1167 | T27: 821483.5067 | U27: 915972.951 | V27: 1030718.22 | W27: 1200155.517 | X27: 1134682.24 | Y27: 1227352.225 | Z27: 1204831.937 | AA27: 1190218.992 | AB27: 1159482.908 | AC27: 1163307.253 | AD27: 1148361.01 | AE27: 1128213.949 | AF27: 1115750.542 | AG27: 1105591.814 | AH27: 1104288.103 | AI27: =AI57/$M$1*$K$2 -> 1187999.446 | AJ27: 1285687.852 | AK27: 1324034.88 | AL27: 1473178.222 | AM27: 1403950.849 | AN27: 1467099.053 | AO27: 1443138.276 | AP27: 1426796.129 | AQ27: 1390173.387 | AR27: 1387559.131
A28: IC | B28: Services | D28: Services | E28: 158409.2241 | F28: 200705.3817 | G28: 597682.8397 | H28: 400045.7628 | I28: 324502.5048 | J28: 354029.7453 | K28: 204956.3671 | L28: 155282.0292 | M28: 175328 | N28: 115154 | O28: 56080 | P28: 421457.9094 | Q28: 422153.576 | R28: 421814.6597 | S28: 420618.1261 | T28: 419890.6933 | U28: 417939.0599 | V28: 308031.272 | W28: 329202.077 | X28: 338602.1833 | Y28: 350284.7067 | Z28: 319822.9853 | AA28: 290304.1332 | AB28: 267177.791 | AC28: 235929.38 | AD28: 214866.2942 | AE28: 195269.0599 | AF28: 178538.1153 | AG28: 164748.1274 | AH28: 147190.9685 | AI28: =AI58/$M$1*$K$2 -> 134960.7653 | AJ28: 119893.5268 | AK28: 112614.9939 | AL28: 99983.73926 | AM28: 90130.65649 | AN28: 82562.35981 | AO28: 71848.18775 | AP28: 69835.65139 | AQ28: 64850.06416 | AR28: 56851.14156
B29: Meters | D29: Meters/Tele | E29: 184772.9864 | F29: 322799.1527 | G29: 569974.3437 | H29: 109772.7265 | I29: 77468.861 | J29: 84896.07172 | K29: 49332.39274 | L29: 37498.4733 | M29: 124354 | N29: 74990 | O29: 32019 | P29: 221222.5127 | Q29: 223648.0349 | R29: 211945.7234 | S29: 211344.5111 | T29: 228598.3218 | U29: 237899.7993 | V29: 236609.8847 | W29: 272106.0423 | X29: 236787.3295 | Y29: 247004.3673 | Z29: 231281.7942 | AA29: 228021.9839 | AB29: 192353.5265 | AC29: 188668.9931 | AD29: 163643.9511 | AE29: 148829.2845 | AF29: 144226.9001 | AG29: 130435.8605 | AH29: 120689.4993 | AI29: =AI59/$M$1*$K$2 -> 129764.9239 | AJ29: 128640.2606 | AK29: 148857.1528 | AL29: 170800.2803 | AM29: 123202.3092 | AN29: 122696.1315 | AO29: 112425.5059 | AP29: 119746.3014 | AQ29: 95156.04614 | AR29: 104877.7066
A30: Large loads | B30: Services | D30: Services | E30: 13523.08228 | F30: 93493.49076 | G30: 255277.4834 | H30: 318090.7936 | I30: 285070.6301 | J30: 142353.7459 | K30: 106095.2743 | L30: 21435.05269 | M30: 0 | N30: 0 | O30: 0 | P30: 0 | Q30: 0 | R30: 0 | S30: 0 | T30: 0 | U30: 0 | V30: 0 | W30: 0 | X30: 0 | Y30: 0 | Z30: 0 | AA30: 0 | AB30: 0 | AC30: 0 | AD30: 0 | AE30: 0 | AF30: 0 | AG30: 0 | AH30: 0 | AI30: =AI60/$M$1*$K$2 -> 0 | AJ30: 0 | AK30: 0 | AL30: 0 | AM30: 0 | AN30: 0 | AO30: 0 | AP30: 0 | AQ30: 0 | AR30: 0
B31: Meters | D31: Meters/Tele | E31: 175080.9132 | F31: 319450.9147 | G31: 760974.8906 | H31: 231414.7001 | I31: 175612.127 | J31: 96397.5683 | K31: 80686.31176 | L31: 16354.97943 | M31: 0 | N31: 0 | O31: 0 | P31: 0 | Q31: 0 | R31: 0 | S31: 0 | T31: 0 | U31: 0 | V31: 0 | W31: 0 | X31: 0 | Y31: 0 | Z31: 0 | AA31: 0 | AB31: 0 | AC31: 0 | AD31: 0 | AE31: 0 | AF31: 0 | AG31: 0 | AH31: 0 | AI31: =AI61/$M$1*$K$2 -> 0 | AJ31: 0 | AK31: 0 | AL31: 0 | AM31: 0 | AN31: 0 | AO31: 0 | AP31: 0 | AQ31: 0 | AR31: 0
A32: Telemetry | B32: PRS from 2017 | D32: Meters/Tele | E32: 18823.68149 | F32: 41412.09928 | G32: 144942.3475 | H32: 21772.71697 | I32: 14922.68525 | J32: 6565.981508 | K32: 0 | L32: 0 | M32: 25000 | N32: 25000 | O32: =O17/$E$2*$K$2 -> 10000 | P32: 17900.45867 | Q32: 34776.39346 | R32: 39626.13325 | S32: 44229.91191 | T32: 41438.19271 | U32: 126101.0858 | V32: 20980.94236 | W32: 21112.74314 | X32: 21113.56351 | Y32: 21710.36876 | Z32: 21640.75584 | AA32: 21830.70079 | AB32: 21952.91773 | AC32: 22083.38958 | AD32: 22207.91047 | AE32: 22336.27327 | AF32: 22456.85102 | AG32: 22583.10222 | AH32: 22709.91734 | AI32: =AI62/$M$1*$K$2 -> 22829.46785 | AJ32: 22955.36123 | AK32: 23069.93314 | AL32: 23188.39434 | AM32: 23307.98404 | AN32: 23418.5818 | AO32: 23532.85816 | AP32: 23626.28508 | AQ32: 23723.83675 | AR32: 23825.12042
A33: Other capex | B33: IT & office | D33: Other | E33: 393014.6262 | F33: 68544.55377 | G33: 752947.2596 | H33: 55827.47941 | I33: 55269.20461 | J33: 601881.6382 | K33: 54169.34744 | L33: 53627.65397 | M33: 122000 | N33: 22000 | O33: 21000 | P33: 531399.3347 | Q33: 107263.4124 | R33: 107263.4124 | S33: 107263.4124 | T33: 107263.4124 | U33: 107263.4124 | V33: 0 | W33: 0 | X33: 0 | Y33: 0 | Z33: 0 | AA33: 0 | AB33: 0 | AC33: 0 | AD33: 0 | AE33: 0 | AF33: 0 | AG33: 0 | AH33: 0 | AI33: =AI63/$M$1*$K$2 -> 0 | AJ33: 0 | AK33: 0 | AL33: 0 | AM33: 0 | AN33: 0 | AO33: 0 | AP33: 0 | AQ33: 0 | AR33: 0
A34: Capex not started (Foyle river crossing) | D34: Mains | E34: 0 | F34: 0 | G34: 0 | H34: 0 | I34: 0 | J34: 0 | K34: 0 | L34: 0 | M34: 0 | N34: 0 | O34: 0 | P34: 0 | Q34: 0 | R34: 0 | S34: 0 | T34: 0 | U34: 0 | V34: 0 | W34: 0 | X34: 0 | Y34: 0 | Z34: 0 | AA34: 0 | AB34: 0 | AC34: 0 | AD34: 0 | AE34: 0 | AF34: 0 | AG34: 0 | AH34: 0 | AI34: =AI64/$M$1*$K$2 -> 0 | AJ34: 0 | AK34: 0 | AL34: 0 | AM34: 0 | AN34: 0 | AO34: 0 | AP34: 0 | AQ34: 0 | AR34: 0
A36: Capex - Subtotals in £2014 Av - GD17 Submission
A38: MP | B38: 4 bar main | D38: Mains | E38: =E8/$E$2*$M$2 -> 9163851.68 | F38: =F8/$E$2*$M$2 -> 11978318.04 | G38: 9043092.039 | H38: 10838486.25 | I38: 10692893.51 | J38: 7308907.373 | K38: 5558667.011 | L38: 4878064.593 | M38: =M8/$E$2*$M$2 -> 974947.3637 | N38: =N8/$E$2*$M$2 -> 823949.4819 | O38: =O8/$E$2*$M$2 -> 745282.2855 | P38: =P53/$M$1*$M$2 -> 0 | Q38: =Q53/$M$1*$M$2 -> 0 | R38: 0 | S38: 0 | T38: 0 | U38: 0 | V38: 0 | W38: 0 | X38: 0 | Y38: 0 | Z38: 0 | AA38: 0 | AB38: 0 | AC38: 0 | AD38: 0 | AE38: 0 | AF38: 0 | AG38: 0 | AH38: 0 | AI38: =AI53/$M$1*$M$2 -> 0 | AJ38: 0 | AK38: 0 | AL38: 0 | AM38: 0 | AN38: 0 | AO38: 0 | AP38: 0 | AQ38: 0 | AR38: 0
B39: Governors | D39: Meters/Tele | E39: =E9/$E$2*$M$2 -> 0 | F39: 34604.81607 | G39: 109676.4662 | H39: 102479.9675 | I39: 132996.1863 | J39: 135336.4963 | K39: 69622.38952 | L39: 70561.70518 | M39: 0 | N39: 0 | O39: 0 | P39: =P54/$M$1*$M$2 -> 0 | Q39: 0 | R39: 0 | S39: 0 | T39: 0 | U39: 0 | V39: 0 | W39: 0 | X39: 0 | Y39: 0 | Z39: 0 | AA39: 0 | AB39: 0 | AC39: 0 | AD39: 0 | AE39: 0 | AF39: 0 | AG39: 0 | AH39: 0 | AI39: =AI54/$M$1*$M$2 -> 0 | AJ39: 0 | AK39: 0 | AL39: 0 | AM39: 0 | AN39: 0 | AO39: 0 | AP39: 0 | AQ39: 0 | AR39: 0
A40: LP | B40: Infill &TMA from 2017 | D40: Mains | E40: 0 | F40: 0 | G40: 296461.256 | H40: 863447.653 | I40: 718423.4031 | J40: 759541.225 | K40: 803852.7239 | L40: 473345.1064 | M40: 7139904.89 | N40: 5609094.825 | O40: 5030079.672 | P40: =P55/$M$1*$M$2 -> 9485632.554 | Q40: 9128953.608 | R40: 9188594.24 | S40: 9551318.926 | T40: 9508377.36 | U40: 10309474.36 | V40: 7490699.271 | W40: 6629689.836 | X40: 6903703.463 | Y40: 4313005.534 | Z40: 2074124.674 | AA40: 2055556.808 | AB40: 2046395.567 | AC40: 2038404.034 | AD40: 2031771.575 | AE40: 2026767.534 | AF40: 2022329.692 | AG40: 2019502.782 | AH40: 2017135.182 | AI40: =AI55/$M$1*$M$2 -> 2015419.556 | AJ40: 2014705.491 | AK40: 2014393.454 | AL40: 2014532.68 | AM40: 2015653.292 | AN40: 2016746.935 | AO40: 2018242.253 | AP40: 2019402.639 | AQ40: 2020943.508 | AR40: 2022928.484
A41: Domestic | B41: Services | D41: Services | E41: 206293.8718 | F41: 384489.7952 | G41: 778375.7743 | H41: 1423063.401 | I41: 1598312.812 | J41: 1619193.667 | K41: 1640433.037 | L41: 1657131.707 | M41: 2675817.058 | N41: 2675817.058 | O41: 2528988.875 | P41: 3294755.443 | Q41: 3361921.169 | R41: 3433061.725 | S41: 3536800.429 | T41: 3830748.136 | U41: 3938608.049 | V41: 3828332.27 | W41: 3852381.58 | X41: 3613613.506 | Y41: 3614225.516 | Z41: 3393898.491 | AA41: 3090056.387 | AB41: 2926773.074 | AC41: 2777265.494 | AD41: 2635282.737 | AE41: 2505018.172 | AF41: 2383511.4 | AG41: 2270552.42 | AH41: 2165716.886 | AI41: =AI56/$M$1*$M$2 -> 2067492.331 | AJ41: 1977290.291 | AK41: 1891791.869 | AL41: 1813395.073 | AM41: 1740994.704 | AN41: 1672982.478 | AO41: 1609413.816 | AP41: 1549705.361 | AQ41: 1493695.605 | AR41: 1442371.957
B42: Meters | D42: Meters/Tele | E42: 85624.95709 | F42: 151567.7491 | G42: 256740.2721 | H42: 337353.8276 | I42: 329645.7755 | J42: 335446.4928 | K42: 341118.9839 | L42: 345721.2161 | M42: 953539.349 | N42: 953539.349 | O42: 905862.3815 | P42: 693775.7663 | Q42: 707044.638 | R42: 720958.9881 | S42: 741948.6686 | T42: 866500.9382 | U42: 966168.4196 | V42: 1087201.748 | W42: 1265924.237 | X42: 1196863.014 | Y42: 1294611.33 | Z42: 1270856.925 | AA42: 1255443.189 | AB42: 1223022.762 | AC42: 1227056.682 | AD42: 1211291.383 | AE42: 1190040.26 | AF42: 1176893.856 | AG42: 1166178.428 | AH42: 1164803.273 | AI42: =AI57/$M$1*$M$2 -> 1253102.011 | AJ42: 1356143.758 | AK42: 1396592.209 | AL42: 1553908.631 | AM42: 1480887.587 | AN42: 1547496.323 | AO42: 1522222.491 | AP42: 1504984.792 | AQ42: 1466355.117 | AR42: 1463597.6
A43: IC | B43: Services | D43: Services | E43: 167090.0757 | F43: 211704.0697 | G43: 630435.9578 | H43: 421968.3366 | I43: 342285.2956 | J43: 373430.6337 | K43: 216188.0098 | L43: 163791.51 | M43: 184936.0033 | N43: 121464.4582 | O43: 59153.19324 | P43: 444553.8723 | Q43: 445287.6615 | R43: 444930.1726 | S43: 443668.0688 | T43: 442900.7725 | U43: 440842.1893 | V43: 324911.4365 | W43: 347242.4051 | X43: 357157.6388 | Y43: 369480.3663 | Z43: 337349.3376 | AA43: 306212.8476 | AB43: 281819.178 | AC43: 248858.3489 | AD43: 226641.0026 | AE43: 205969.8365 | AF43: 188322.0335 | AG43: 173776.3519 | AH43: 155257.0579 | AI43: =AI58/$M$1*$M$2 -> 142356.6375 | AJ43: 126463.7119 | AK43: 118786.3141 | AL43: 105462.8646 | AM43: 95069.83132 | AN43: 87086.79073 | AO43: 75785.48028 | AP43: 73662.65659 | AQ43: 68403.85837 | AR43: 59966.59349
B44: Meters | D44: Meters/Tele | E44: 194898.5765 | F44: 340488.5994 | G44: 601209.0317 | H44: 115788.29 | I44: 81714.16735 | J44: 89548.39045 | K44: 52035.81599 | L44: 39553.39581 | M44: 131168.6197 | N44: 79099.46436 | O44: 33773.64648 | P44: 233345.5429 | Q44: 235903.9841 | R44: 223560.384 | S44: 222926.2251 | T44: 241125.5475 | U44: 250936.7475 | V44: 249576.1454 | W44: 287017.4983 | X44: 249763.3142 | Y44: 260540.2474 | Z44: 243956.0747 | AA44: 240517.6262 | AB44: 202894.5314 | AC44: 199008.085 | AD44: 172611.6666 | AE44: 156985.1539 | AF44: 152130.558 | AG44: 137583.7671 | AH44: 127303.3037 | AI44: =AI59/$M$1*$M$2 -> 136876.0631 | AJ44: 135689.7681 | AK44: 157014.5493 | AL44: 180160.1638 | AM44: 129953.816 | AN44: 129419.8997 | AO44: 118586.4421 | AP44: 126308.4185 | AQ44: 100370.6132 | AR44: 110625.0222
A45: Large loads | B45: Services | D45: Services | E45: 14264.14942 | F45: 98616.94947 | G45: 269266.7315 | H45: 335522.2216 | I45: 300692.5477 | J45: 150154.7546 | K45: 111909.3128 | L45: 22609.69711 | M45: 0 | N45: 0 | O45: 0 | P45: 0 | Q45: 0 | R45: 0 | S45: 0 | T45: 0 | U45: 0 | V45: 0 | W45: 0 | X45: 0 | Y45: 0 | Z45: 0 | AA45: 0 | AB45: 0 | AC45: 0 | AD45: 0 | AE45: 0 | AF45: 0 | AG45: 0 | AH45: 0 | AI45: =AI60/$M$1*$M$2 -> 0 | AJ45: 0 | AK45: 0 | AL45: 0 | AM45: 0 | AN45: 0 | AO45: 0 | AP45: 0 | AQ45: 0 | AR45: 0
B46: Meters | D46: Meters/Tele | E46: 184675.3761 | F46: 336956.8774 | G46: 802676.44 | H46: 244096.2638 | I46: 185235.7005 | J46: 101680.1709 | K46: 85107.93494 | L46: 17251.235 | M46: 0 | N46: 0 | O46: 0 | P46: 0 | Q46: 0 | R46: 0 | S46: 0 | T46: 0 | U46: 0 | V46: 0 | W46: 0 | X46: 0 | Y46: 0 | Z46: 0 | AA46: 0 | AB46: 0 | AC46: 0 | AD46: 0 | AE46: 0 | AF46: 0 | AG46: 0 | AH46: 0 | AI46: =AI61/$M$1*$M$2 -> 0 | AJ46: 0 | AK46: 0 | AL46: 0 | AM46: 0 | AN46: 0 | AO46: 0 | AP46: 0 | AQ46: 0 | AR46: 0
A47: Telemetry | B47: PRS from 2017 | D47: Meters/Tele | E47: 19855.22234 | F47: 43681.48914 | G47: 152885.212 | H47: 22965.86545 | I47: 15740.45086 | J47: 6925.798377 | K47: 0 | L47: 0 | M47: 26370.00412 | N47: 26370.00412 | O47: =O17/$E$2*$M$2 -> 10548.00165 | P47: 18881.40676 | Q47: 36682.14555 | R47: 41797.65188 | S47: 46653.71837 | T47: 43709.0125 | U47: 133011.4461 | V47: 22130.70146 | W47: 22269.72494 | X47: 22270.59027 | Y47: 22900.10055 | Z47: 22826.67283 | AA47: 23027.02679 | AB47: 23155.94124 | AC47: 23293.56297 | AD47: 23424.90763 | AE47: 23560.30473 | AF47: 23687.49016 | AG47: 23820.65994 | AH47: 23954.42455 | AI47: =AI62/$M$1*$M$2 -> 24080.52645 | AJ47: 24213.31881 | AK47: 24334.16927 | AL47: 24459.12218 | AM47: 24585.26541 | AN47: 24701.92394 | AO47: 24822.46266 | AP47: 24921.0094 | AQ47: 25023.90691 | AR47: 25130.74094
A48: Other capex | B48: IT & office | D48: Other | E48: 414551.8925 | F48: 72300.80662 | G48: 794208.8935 | H48: 58886.83448 | I48: 58297.96614 | J48: 634864.8512 | K48: 57137.83661 | L48: 56566.45824 | M48: 128685.6201 | N48: 23205.60363 | O48: 22150.80346 | P48: 560520.1059 | Q48: 113141.4651 | R48: 113141.4651 | S48: 113141.4651 | T48: 113141.4651 | U48: 113141.4651 | V48: 0 | W48: 0 | X48: 0 | Y48: 0 | Z48: 0 | AA48: 0 | AB48: 0 | AC48: 0 | AD48: 0 | AE48: 0 | AF48: 0 | AG48: 0 | AH48: 0 | AI48: =AI63/$M$1*$M$2 -> 0 | AJ48: 0 | AK48: 0 | AL48: 0 | AM48: 0 | AN48: 0 | AO48: 0 | AP48: 0 | AQ48: 0 | AR48: 0
A49: Capex not started (Foyle river crossing) | D49: Mains | E49: 0 | F49: 0 | G49: 0 | H49: 0 | I49: 0 | J49: 0 | K49: 0 | L49: 0 | M49: 0 | N49: 0 | O49: 0 | P49: 0 | Q49: 0 | R49: 0 | S49: 0 | T49: 0 | U49: 0 | V49: 0 | W49: 0 | X49: 0 | Y49: 0 | Z49: 0 | AA49: 0 | AB49: 0 | AC49: 0 | AD49: 0 | AE49: 0 | AF49: 0 | AG49: 0 | AH49: 0 | AI49: =AI64/$M$1*$M$2 -> 0 | AJ49: 0 | AK49: 0 | AL49: 0 | AM49: 0 | AN49: 0 | AO49: 0 | AP49: 0 | AQ49: 0 | AR49: 0
A51: Capex - Subtotals in DEC £2014 - GD17 Submission
A53: MP | B53: 4 bar main - Non LP Infill!! | D53: Mains | E53: =E38/$M$2*$M$1 -> 9217546.123 | F53: =F38/$M$2*$M$1 -> 12048503.5 | G53: 9096078.906 | H53: 10901993.01 | I53: 10755547.18 | J53: 7351733.002 | K53: 5591237.326 | L53: 4906647.002 | M53: 980659.9459 | N53: 828777.3109 | O53: 749649.1739 | P53: 0 | Q53: 0 | R53: 0 | S53: 0 | T53: 0 | U53: 0 | V53: 0 | W53: 0 | X53: 0 | Y53: 0 | Z53: 0 | AA53: 0 | AB53: 0 | AC53: 0 | AD53: 0 | AE53: 0 | AF53: 0 | AG53: 0 | AH53: 0 | AI53: 0 | AJ53: 0 | AK53: 0 | AL53: 0 | AM53: 0 | AN53: 0 | AO53: 0 | AP53: 0 | AQ53: 0 | AR53: 0
B54: Governors | D54: Meters/Tele | E54: =E39/$M$2*$M$1 -> 0 | F54: 34807.57867 | G54: 110319.1018 | H54: 103080.4361 | I54: 133775.4609 | J54: 136129.4836 | K54: 70030.33321 | L54: 70975.15267 | M54: 0 | N54: 0 | O54: 0 | P54: 0 | Q54: 0 | R54: 0 | S54: 0 | T54: 0 | U54: 0 | V54: 0 | W54: 0 | X54: 0 | Y54: 0 | Z54: 0 | AA54: 0 | AB54: 0 | AC54: 0 | AD54: 0 | AE54: 0 | AF54: 0 | AG54: 0 | AH54: 0 | AI54: 0 | AJ54: 0 | AK54: 0 | AL54: 0 | AM54: 0 | AN54: 0 | AO54: 0 | AP54: 0 | AQ54: 0 | AR54: 0
A55: LP | B55: Infill &TMA from 2017 | D55: Mains | E55: 0 | F55: 0 | G55: 298198.3337 | H55: 868506.9166 | I55: 722632.9153 | J55: 763991.6618 | K55: 808562.7985 | L55: 476118.6129 | M55: 7181740.27 | N55: 5641960.615 | O55: 5059552.795 | P55: 9541212.432 | Q55: 9182443.571 | R55: 9242433.66 | S55: 9607283.686 | T55: 9564090.509 | U55: 10369881.44 | V55: 7534590.087 | W55: 6668535.675 | X55: 6944154.851 | Y55: 4338277.051 | Z55: 2086277.748 | AA55: 2067601.086 | AB55: 2058386.166 | AC55: 2050347.807 | AD55: 2043676.487 | AE55: 2038643.126 | AF55: 2034179.28 | AG55: 2031335.806 | AH55: 2028954.333 | AI55: 2027228.655 | AJ55: 2026510.406 | AK55: 2026196.541 | AL55: 2026336.583 | AM55: 2027463.761 | AN55: 2028563.812 | AO55: 2030067.891 | AP55: 2031235.076 | AQ55: 2032784.974 | AR55: 2034781.581
A56: Domestic | B56: Services | D56: Services | E56: 207502.6249 | F56: 386742.6651 | G56: 782936.5699 | H56: 1431401.663 | I56: 1607677.926 | J56: 1628681.13 | K56: 1650044.949 | L56: 1666841.463 | M56: 2691495.674 | N56: 2691495.674 | O56: 2543807.169 | P56: 3314060.651 | Q56: 3381619.925 | R56: 3453177.321 | S56: 3557523.869 | T56: 3853193.926 | U56: 3961685.83 | V56: 3850763.904 | W56: 3874954.128 | X56: 3634787.023 | Y56: 3635402.619 | Z56: 3413784.615 | AA56: 3108162.186 | AB56: 2943922.135 | AC56: 2793538.534 | AD56: 2650723.847 | AE56: 2519696.013 | AF56: 2397477.287 | AG56: 2283856.439 | AH56: 2178406.633 | AI56: 2079606.544 | AJ56: 1988875.977 | AK56: 1902876.587 | AL56: 1824020.435 | AM56: 1751195.845 | AN56: 1682785.11 | AO56: 1618843.975 | AP56: 1558785.666 | AQ56: 1502447.728 | AR56: 1450823.356
B57: Meters | D57: Meters/Tele | E57: 86126.66583 | F57: 152455.8414 | G57: 258244.6096 | H57: 339330.5102 | I57: 331577.2937 | J57: 337411.9996 | K57: 343117.728 | L57: 347746.9264 | M57: 959126.4936 | N57: 959126.4936 | O57: 911170.1689 | P57: 697840.8587 | Q57: 711187.4776 | R57: 725183.3572 | S57: 746296.0241 | T57: 871578.0922 | U57: 971829.5627 | V57: 1093572.071 | W57: 1273341.762 | X57: 1203875.883 | Y57: 1302196.943 | Z57: 1278303.353 | AA57: 1262799.301 | AB57: 1230188.911 | AC57: 1234246.468 | AD57: 1218388.793 | AE57: 1197013.152 | AF57: 1183789.718 | AG57: 1173011.505 | AH57: 1171628.292 | AI57: 1260444.406 | AJ57: 1364089.913 | AK57: 1404775.367 | AL57: 1563013.565 | AM57: 1489564.663 | AN57: 1556563.684 | AO57: 1531141.764 | AP57: 1513803.062 | AQ57: 1474947.042 | AR57: 1472173.367
A58: IC | B58: Services | D58: Services | E58: 168069.1191 | F58: 212944.5232 | G58: 634129.9185 | H58: 424440.8073 | I58: 344290.8735 | J58: 375618.7038 | K58: 217454.7364 | L58: 164751.2259 | M58: 186019.6127 | N58: 122176.164 | O58: 59499.79398 | P58: 447158.6801 | Q58: 447896.7689 | R58: 447537.1853 | S58: 446267.6863 | T58: 445495.8942 | U58: 443425.249 | V58: 326815.2144 | W58: 349277.0286 | X58: 359250.3593 | Y58: 371645.2904 | Z58: 339325.9938 | AA58: 308007.0635 | AB58: 283470.4622 | AC58: 250316.5033 | AD58: 227968.9772 | AE58: 207176.6911 | AF58: 189425.4829 | AG58: 174794.5727 | AH58: 156166.7672 | AI58: 143190.7584 | AJ58: 127204.7102 | AK58: 119482.3277 | AL58: 106080.8111 | AM58: 95626.88111 | AN58: 87597.06489 | AO58: 76229.53583 | AP58: 74094.27372 | AQ58: 68804.66222 | AR58: 60317.96025
B59: Meters | D59: Meters/Tele | E59: 196040.5603 | F59: 342483.6498 | G59: 604731.7409 | H59: 116466.737 | I59: 82192.9613 | J59: 90073.08805 | K59: 52340.71335 | L59: 39785.15399 | M59: 131937.1858 | N59: 79562.93778 | O59: 33971.53894 | P59: 234712.8019 | Q59: 237286.234 | R59: 224870.3081 | S59: 224232.4335 | T59: 242538.3925 | U59: 252407.08 | V59: 251038.5056 | W59: 288699.2414 | X59: 251226.7711 | Y59: 262066.8504 | Z59: 245385.5048 | AA59: 241926.9092 | AB59: 204083.3665 | AC59: 200174.148 | AD59: 173623.0631 | AE59: 157904.9887 | AF59: 153021.948 | AG59: 138389.922 | AH59: 128049.2215 | AI59: 137678.0713 | AJ59: 136484.8253 | AK59: 157934.5564 | AL59: 181215.7898 | AM59: 130715.2642 | AN59: 130178.2194 | AO59: 119281.2846 | AP59: 127048.5068 | AQ59: 100958.7222 | AR59: 111273.2157
A60: Large loads | B60: Services | D60: Services | E60: 14347.72842 | F60: 99194.78316 | G60: 270844.4663 | H60: 337488.1721 | I60: 302454.4181 | J60: 151034.5676 | K60: 112565.0314 | L60: 22742.1758 | M60: 0 | N60: 0 | O60: 0 | P60: 0 | Q60: 0 | R60: 0 | S60: 0 | T60: 0 | U60: 0 | V60: 0 | W60: 0 | X60: 0 | Y60: 0 | Z60: 0 | AA60: 0 | AB60: 0 | AC60: 0 | AD60: 0 | AE60: 0 | AF60: 0 | AG60: 0 | AH60: 0 | AI60: 0 | AJ60: 0 | AK60: 0 | AL60: 0 | AM60: 0 | AN60: 0 | AO60: 0 | AP60: 0 | AQ60: 0 | AR60: 0
B61: Meters | D61: Meters/Tele | E61: 185757.4584 | F61: 338931.2341 | G61: 807379.6223 | H61: 245526.5154 | I61: 186321.0659 | J61: 102275.9532 | K61: 85606.61425 | L61: 17352.31645 | M61: 0 | N61: 0 | O61: 0 | P61: 0 | Q61: 0 | R61: 0 | S61: 0 | T61: 0 | U61: 0 | V61: 0 | W61: 0 | X61: 0 | Y61: 0 | Z61: 0 | AA61: 0 | AB61: 0 | AC61: 0 | AD61: 0 | AE61: 0 | AF61: 0 | AG61: 0 | AH61: 0 | AI61: 0 | AJ61: 0 | AK61: 0 | AL61: 0 | AM61: 0 | AN61: 0 | AO61: 0 | AP61: 0 | AQ61: 0 | AR61: 0
A62: Telemetry | B62: PRS from 2017 | D62: Meters/Tele | E62: 19971.56153 | F62: 43937.43537 | G62: 153781.0238 | H62: 23100.43107 | I62: 15832.68006 | J62: 6966.379227 | K62: 0 | L62: 0 | M62: 26524.51586 | N62: 26524.51586 | O62: 10609.80635 | P62: 18992.04 | Q62: 36897.08 | R62: 42042.56 | S62: 46927.08 | T62: 43965.12 | U62: 133790.81 | V62: 22260.37354 | W62: 22400.21161 | X62: 22401.08201 | Y62: 23034.28083 | Z62: 22960.42286 | AA62: 23161.95078 | AB62: 23291.62059 | AC62: 23430.04869 | AD62: 23562.16294 | AE62: 23698.35339 | AF62: 23826.28405 | AG62: 23960.23412 | AH62: 24094.78251 | AI62: 24221.62328 | AJ62: 24355.19372 | AK62: 24476.7523 | AL62: 24602.43735 | AM62: 24729.3197 | AN62: 24846.66178 | AO62: 24967.90678 | AP62: 25067.03094 | AQ62: 25170.53136 | AR62: 25277.99138
A63: Other capex | B63: IT & office | D63: Other | E63: 416980.9074 | F63: 72724.44416 | G63: 798862.4612 | H63: 59231.87453 | I63: 58639.55578 | J63: 638584.7625 | K63: 57472.62862 | L63: 56897.90234 | M63: 129439.6374 | N63: 23341.57396 | O63: 22280.59333 | P63: 563804.4033 | Q63: 113804.4033 | R63: 113804.4033 | S63: 113804.4033 | T63: 113804.4033 | U63: 113804.4033 | V63: 0 | W63: 0 | X63: 0 | Y63: 0 | Z63: 0 | AA63: 0 | AB63: 0 | AC63: 0 | AD63: 0 | AE63: 0 | AF63: 0 | AG63: 0 | AH63: 0 | AI63: 0 | AJ63: 0 | AK63: 0 | AL63: 0 | AM63: 0 | AN63: 0 | AO63: 0 | AP63: 0 | AQ63: 0 | AR63: 0
A64: Capex not started (Foyle river crossing) | D64: Mains | E64: 0 | F64: 0 | G64: 0 | H64: 0 | I64: 0 | J64: 0 | K64: 0 | L64: 0 | M64: 0 | N64: 0 | O64: 0 | P64: 0 | Q64: 0 | R64: 0 | S64: 0 | T64: 0 | U64: 0 | V64: 0 | W64: 0 | X64: 0 | Y64: 0 | Z64: 0 | AA64: 0 | AB64: 0 | AC64: 0 | AD64: 0 | AE64: 0 | AF64: 0 | AG64: 0 | AH64: 0 | AI64: 0 | AJ64: 0 | AK64: 0 | AL64: 0 | AM64: 0 | AN64: 0 | AO64: 0 | AP64: 0 | AQ64: 0 | AR64: 0
A66: Capex - Subtotals in Av £2014 - UR Draft Det
P67: Linked to Capex DD 04.00 Final Issued to AC Post RPE 04-03-16 All - Converted to Av £2014 | V67: Post GD17 Linked to Capex DD 04.00 Final Issued to AC Post RPE 04-03-16 All - Converted to Av £2014
A68: MP | B68: 4 bar main - Non LP Infill!! | D68: Mains | E68: =E38 -> 9163851.68 | F68: =F38 -> 11978318.04 | G68: 9043092.039 | H68: 10838486.25 | I68: 10692893.51 | J68: 7308907.373 | K68: 5558667.011 | L68: 4878064.593 | M68: 974947.3637 | N68: 823949.4819 | O68: 745282.2855 | P68: 0 | Q68: 0 | R68: 0 | S68: 0 | T68: 0 | U68: 0 | V68: 0 | W68: 0 | X68: 0 | Y68: 0 | Z68: 0 | AA68: 0 | AB68: 0 | AC68: 0 | AD68: 0 | AE68: 0 | AF68: 0 | AG68: 0 | AH68: 0 | AI68: 0 | AJ68: 0 | AK68: 0 | AL68: 0 | AM68: 0 | AN68: 0 | AO68: 0 | AP68: 0 | AQ68: 0 | AR68: 0
B69: Governors | D69: Meters/Tele | E69: =E39 -> 0 | F69: 34604.81607 | G69: 109676.4662 | H69: 102479.9675 | I69: 132996.1863 | J69: 135336.4963 | K69: 69622.38952 | L69: 70561.70518 | M69: 0 | N69: 0 | O69: 0 | P69: 0 | Q69: 0 | R69: 0 | S69: 0 | T69: 0 | U69: 0 | V69: 0 | W69: 0 | X69: 0 | Y69: 0 | Z69: 0 | AA69: 0 | AB69: 0 | AC69: 0 | AD69: 0 | AE69: 0 | AF69: 0 | AG69: 0 | AH69: 0 | AI69: 0 | AJ69: 0 | AK69: 0 | AL69: 0 | AM69: 0 | AN69: 0 | AO69: 0 | AP69: 0 | AQ69: 0 | AR69: 0
A70: LP | B70: Infill &TMA from 2017 | D70: Mains | E70: 0 | F70: 0 | G70: 296461.256 | H70: 863447.653 | I70: 718423.4031 | J70: 759541.225 | K70: 803852.7239 | L70: 473345.1064 | M70: 7139904.89 | N70: 5609094.825 | O70: 5030079.672 | P70: 8555091.644 | Q70: 8281762.323 | R70: 8161225.048 | S70: 8125322.593 | T70: 8223366.013 | U70: 8250559.778 | V70: 8453132.486 | W70: 7589340.614 | X70: 7879579.377 | Y70: 5273178.96 | Z70: 2049709.241 | AA70: 2044389.651 | AB70: 2036741.72 | AC70: 2030756.309 | AD70: 2023772.176 | AE70: 2025056.43 | AF70: 2017952.39 | AG70: 2019538.264 | AH70: 2020815.024 | AI70: 2022216.9 | AJ70: 2016419.266 | AK70: 2017145.357 | AL70: 2018598.519 | AM70: 2020003.471 | AN70: 2019965.807 | AO70: 2021067.676 | AP70: 2020852.125 | AQ70: 2028099.184 | AR70: 2028363.565
A71: Domestic | B71: Services | D71: Services | E71: 206293.8718 | F71: 384489.7952 | G71: 778375.7743 | H71: 1423063.401 | I71: 1598312.812 | J71: 1619193.667 | K71: 1640433.037 | L71: 1657131.707 | M71: 2675817.058 | N71: 2675817.058 | O71: 2528988.875 | P71: 2715542.173 | Q71: 2937434.907 | R71: 3161948.89 | S71: 3354215.815 | T71: 3544045.613 | U71: 3661855.93 | V71: 3632004.767 | W71: 3632004.767 | X71: 3558792.536 | Y71: 3412368.074 | Z71: 3265943.612 | AA71: 3082913.034 | AB71: 2936488.571 | AC71: 2790064.109 | AD71: 2643639.647 | AE71: 2570427.415 | AF71: 2424002.953 | AG71: 2350790.722 | AH71: 2277578.491 | AI71: 2204366.26 | AJ71: 2057941.797 | AK71: 1984729.566 | AL71: 1911517.335 | AM71: 1838305.104 | AN71: 1765092.873 | AO71: 1691880.641 | AP71: 1618668.41 | AQ71: 1618668.41 | AR71: 1545456.179
B72: Meters | D72: Meters/Tele | E72: 85624.95709 | F72: 151567.7491 | G72: 256740.2721 | H72: 337353.8276 | I72: 329645.7755 | J72: 335446.4928 | K72: 341118.9839 | L72: 345721.2161 | M72: 953539.349 | N72: 953539.349 | O72: 905862.3815 | P72: 914610.5981 | Q72: 985805.1794 | R72: 1058574.687 | S72: 1124467.197 | T72: 1191617.429 | U72: 1240210.697 | V72: 1266936.204 | W72: 1286564.755 | X72: 1286769.714 | Y72: 1352576.836 | Z72: 1431570.847 | AA72: 1514421.153 | AB72: 1540317.184 | AC72: 1591026.763 | AD72: 1758991.375 | AE72: 1899908.355 | AF72: 1878468.71 | AG72: 1875535.072 | AH72: 1869378.927 | AI72: 1824739.092 | AJ72: 1874672.77 | AK72: 1933773.006 | AL72: 1992509.751 | AM72: 2041352.954 | AN72: 2089832.665 | AO72: 2118888.786 | AP72: 2052280.918 | AQ72: 2061913.447 | AR72: 2033062.286
A73: IC | B73: Services | D73: Services | E73: 167090.0757 | F73: 211704.0697 | G73: 630435.9578 | H73: 421968.3366 | I73: 342285.2956 | J73: 373430.6337 | K73: 216188.0098 | L73: 163791.51 | M73: 184936.0033 | N73: 121464.4582 | O73: 59153.19324 | P73: 289929.8035 | Q73: 286919.2533 | R73: 284617.0599 | S73: 282898.519 | T73: 281190.3547 | U73: 279492.5044 | V73: 242836.6268 | W73: 261531.5588 | X73: 268143.1811 | Y73: 271107.0118 | Z73: 243976.5617 | AA73: 224711.6623 | AB73: 198721.1471 | AC73: 182876.0523 | AD73: 161715.0113 | AE73: 147009.8514 | AF73: 127744.952 | AG73: 117713.5251 | AH73: 104148.3 | AI73: 97536.67774 | AJ73: 87163.27036 | AK73: 77701.81088 | AL73: 72458.11045 | AM73: 65846.48816 | AN73: 51867.0369 | AO73: 46395.34949 | AP73: 44115.47974 | AQ73: 40011.71418 | AR73: 36363.92258
B74: Meters | D74: Meters/Tele | E74: 194898.5765 | F74: 340488.5994 | G74: 601209.0317 | H74: 115788.29 | I74: 81714.16735 | J74: 89548.39045 | K74: 52035.81599 | L74: 39553.39581 | M74: 131168.6197 | N74: 79099.46436 | O74: 33773.64648 | P74: 234721.9288 | Q74: 240823.1827 | R74: 220256.7927 | S74: 218926.8643 | T74: 217604.9661 | U74: 216291.0496 | V74: 186239.9495 | W74: 202156.8031 | X74: 212007.0394 | Y74: 281568.7825 | Z74: 322145.5178 | AA74: 474483.6607 | AB74: 755022.0885 | AC74: 568139.9445 | AD74: 545568.4367 | AE74: 504182.7109 | AF74: 362473.3933 | AG74: 418503.6616 | AH74: 273817.8905 | AI74: 154009.4113 | AJ74: 304933.0266 | AK74: 304985.5182 | AL74: 283941.9829 | AM74: 279254.5997 | AN74: 265081.8619 | AO74: 260585.0796 | AP74: 218942.9123 | AQ74: 233253.7594 | AR74: 239832.018
A75: Large loads | B75: Services | D75: Services | E75: 14264.14942 | F75: 98616.94947 | G75: 269266.7315 | H75: 335522.2216 | I75: 300692.5477 | J75: 150154.7546 | K75: 111909.3128 | L75: 22609.69711 | M75: 0 | N75: 0 | O75: 0 | P75: 0 | Q75: 0 | R75: 0 | S75: 0 | T75: 0 | U75: 0 | V75: 0 | W75: 0 | X75: 0 | Y75: 0 | Z75: 0 | AA75: 0 | AB75: 0 | AC75: 0 | AD75: 0 | AE75: 0 | AF75: 0 | AG75: 0 | AH75: 0 | AI75: 0 | AJ75: 0 | AK75: 0 | AL75: 0 | AM75: 0 | AN75: 0 | AO75: 0 | AP75: 0 | AQ75: 0 | AR75: 0
B76: Meters | D76: Meters/Tele | E76: 184675.3761 | F76: 336956.8774 | G76: 802676.44 | H76: 244096.2638 | I76: 185235.7005 | J76: 101680.1709 | K76: 85107.93494 | L76: 17251.235 | M76: 0 | N76: 0 | O76: 0 | P76: 0 | Q76: 0 | R76: 0 | S76: 0 | T76: 0 | U76: 0 | V76: 0 | W76: 0 | X76: 0 | Y76: 0 | Z76: 0 | AA76: 0 | AB76: 0 | AC76: 0 | AD76: 0 | AE76: 0 | AF76: 0 | AG76: 0 | AH76: 0 | AI76: 0 | AJ76: 0 | AK76: 0 | AL76: 0 | AM76: 0 | AN76: 0 | AO76: 0 | AP76: 0 | AQ76: 0 | AR76: 0
A77: Telemetry | B77: PRS from 2017 | D77: Meters/Tele | E77: 19855.22234 | F77: 43681.48914 | G77: 152885.212 | H77: 22965.86545 | I77: 15740.45086 | J77: 6925.798377 | K77: 0 | L77: 0 | M77: 26370.00412 | N77: 26370.00412 | O77: 10548.00165 | P77: 6911.436768 | Q77: 12624.62062 | R77: 23223.6362 | S77: 22043.47023 | T77: 7736.763596 | U77: 29486.11813 | V77: 45877.63924 | W77: 40079.92828 | X77: 46017.52806 | Y77: 58520.50723 | Z77: 136697.2723 | AA77: 86440.25319 | AB77: 86569.16764 | AC77: 86706.78937 | AD77: 86838.13403 | AE77: 86973.53113 | AF77: 87100.71656 | AG77: 87233.88634 | AH77: 87367.65095 | AI77: 87493.75285 | AJ77: 87626.54521 | AK77: 87747.39567 | AL77: 87872.34858 | AM77: 87998.49181 | AN77: 88115.15034 | AO77: 43703.86942 | AP77: 70798.64864 | AQ77: 65103.83519 | AR77: 71148.269
A78: Other capex | B78: IT & office | D78: Other | E78: 414551.8925 | F78: 72300.80662 | G78: 794208.8935 | H78: 58886.83448 | I78: 58297.96614 | J78: 634864.8512 | K78: 57137.83661 | L78: 56566.45824 | M78: 128685.6201 | N78: 23205.60363 | O78: 22150.80346 | P78: 160607.714 | Q78: 110424.8265 | R78: 109538.7957 | S78: 108877.3915 | T78: 108219.9809 | U78: 107566.5399 | V78: 107566.5399 | W78: 107566.5399 | X78: 107566.5399 | Y78: 107566.5399 | Z78: 107566.5399 | AA78: 107566.5399 | AB78: 107566.5399 | AC78: 107566.5399 | AD78: 107566.5399 | AE78: 107566.5399 | AF78: 107566.5399 | AG78: 107566.5399 | AH78: 107566.5399 | AI78: 107566.5399 | AJ78: 107566.5399 | AK78: 107566.5399 | AL78: 107566.5399 | AM78: 107566.5399 | AN78: 107566.5399 | AO78: 107566.5399 | AP78: 107566.5399 | AQ78: 107566.5399 | AR78: 107566.5399
A79: Capex not started (Foyle river crossing) | D79: Mains | E79: 0 | F79: 0 | G79: 0 | H79: 0 | I79: 0 | J79: 0 | K79: 0 | L79: 0 | M79: 0 | N79: 0 | O79: 0 | P79: 0 | Q79: 0 | R79: 0 | S79: 0 | T79: 0 | U79: 0 | V79: 0 | W79: 0 | X79: 0 | Y79: 0 | Z79: 0 | AA79: 0 | AB79: 0 | AC79: 0 | AD79: 0 | AE79: 0 | AF79: 0 | AG79: 0 | AH79: 0 | AI79: 0 | AJ79: 0 | AK79: 0 | AL79: 0 | AM79: 0 | AN79: 0 | AO79: 0 | AP79: 0 | AQ79: 0 | AR79: 0
A81: Capex - Subtotals in Av £2014 - UR Final Det
A83: MP | B83: 4 bar main - Non LP Infill!! | D83: Mains | E83: =E38 -> 9163851.68 | F83: =F38 -> 11978318.04 | G83: 9043092.039 | H83: 10838486.25 | I83: 10692893.51 | J83: 7308907.373 | K83: 5558667.011 | L83: 4878064.593 | M83: 974947.3637 | N83: 823949.4819 | O83: 745282.2855 | P83: 0 | Q83: 0 | R83: 0 | S83: 0 | T83: 0 | U83: 0 | V83: 0 | W83: 0 | X83: 0 | Y83: 0 | Z83: 0 | AA83: 0 | AB83: 0 | AC83: 0 | AD83: 0 | AE83: 0 | AF83: 0 | AG83: 0 | AH83: 0 | AI83: 0 | AJ83: 0 | AK83: 0 | AL83: 0 | AM83: 0 | AN83: 0 | AO83: 0 | AP83: 0 | AQ83: 0 | AR83: 0
B84: Governors | D84: Meters/Tele | E84: =E39 -> 0 | F84: 34604.81607 | G84: 109676.4662 | H84: 102479.9675 | I84: 132996.1863 | J84: 135336.4963 | K84: 69622.38952 | L84: 70561.70518 | M84: 0 | N84: 0 | O84: 0 | P84: 0 | Q84: 0 | R84: 0 | S84: 0 | T84: 0 | U84: 0 | V84: 0 | W84: 0 | X84: 0 | Y84: 0 | Z84: 0 | AA84: 0 | AB84: 0 | AC84: 0 | AD84: 0 | AE84: 0 | AF84: 0 | AG84: 0 | AH84: 0 | AI84: 0 | AJ84: 0 | AK84: 0 | AL84: 0 | AM84: 0 | AN84: 0 | AO84: 0 | AP84: 0 | AQ84: 0 | AR84: 0
A85: LP | B85: Infill & TMA from 2017 | D85: Mains | E85: 0 | F85: 0 | G85: 296461.256 | H85: 863447.653 | I85: 718423.4031 | J85: 759541.225 | K85: 803852.7239 | L85: 473345.1064 | M85: 7139904.89 | N85: 5609094.825 | O85: 5030079.672 | P85: 9337051.639 | Q85: 9058446.799 | R85: 8925843.789 | S85: 8915125.106 | T85: 8998069.885 | U85: 9026202.664 | V85: 7320907.062 | W85: 6482253.992 | X85: 6762443.3 | Y85: 4228461.1 | Z85: 2058906.606 | AA85: 2049585.244 | AB85: 2038803.686 | AC85: 2029665.831 | AD85: 2019542.82 | AE85: 2019106.952 | AF85: 2008873.022 | AG85: 2008743.588 | AH85: 2008303.754 | AI85: 2008005.597 | AJ85: 1999065.955 | AK85: 1998103.361 | AL85: 1997858.973 | AM85: 1997563.802 | AN85: 1995846.513 | AO85: 1995260.37 | AP85: 1993404.335 | AQ85: 2000429.022 | AR85: 1999035.01
A86: Domestic | B86: Services | D86: Services | E86: 206293.8718 | F86: 384489.7952 | G86: 778375.7743 | H86: 1423063.401 | I86: 1598312.812 | J86: 1619193.667 | K86: 1640433.037 | L86: 1657131.707 | M86: 2675817.058 | N86: 2675817.058 | O86: 2528988.875 | P86: 3217111.521 | Q86: 3491144.192 | R86: 3760834.653 | S86: 3990881.972 | T86: 4217761.615 | U86: 4357735.337 | V86: 4288661.551 | W86: 4288661.551 | X86: 4201174.172 | Y86: 4026199.415 | Z86: 3851224.658 | AA86: 3632506.211 | AB86: 3457531.454 | AC86: 3282556.697 | AD86: 3107581.939 | AE86: 3020094.561 | AF86: 2845119.803 | AG86: 2757632.425 | AH86: 2670145.046 | AI86: 2582657.668 | AJ86: 2407682.91 | AK86: 2320195.532 | AL86: 2232708.153 | AM86: 2145220.774 | AN86: 2057733.396 | AO86: 1970246.017 | AP86: 1882758.638 | AQ86: 1882758.638 | AR86: 1795271.26
B87: Meters | D87: Meters/Tele | E87: 85624.95709 | F87: 151567.7491 | G87: 256740.2721 | H87: 337353.8276 | I87: 329645.7755 | J87: 335446.4928 | K87: 341118.9839 | L87: 345721.2161 | M87: 953539.349 | N87: 953539.349 | O87: 905862.3815 | P87: 921167.0059 | Q87: 994707.5357 | R87: 1067728.236 | S87: 1133622.724 | T87: 1200718.296 | U87: 1249057.076 | V87: 1268690.719 | W87: 1288459.018 | X87: 1288801.139 | Y87: 1354740.245 | Z87: 1433861.065 | AA87: 1516831.711 | AB87: 1542842.905 | AC87: 1593662.472 | AD87: 1761731.895 | AE87: 1902751.099 | AF87: 1881408.502 | AG87: 1878569.324 | AH87: 1872505.051 | AI87: 1827954.5 | AJ87: 1877972.286 | AK87: 1937154.042 | AL87: 1995969.719 | AM87: 2044889.266 | AN87: 2093442.734 | AO87: 2122570.023 | AP87: 2056030.736 | AQ87: 2065731.845 | AR87: 2036946.677
A88: IC | B88: Services | D88: Services | E88: 167090.0757 | F88: 211704.0697 | G88: 630435.9578 | H88: 421968.3366 | I88: 342285.2956 | J88: =J43 -> 373430.6337 | K88: 216188.0098 | L88: 163791.51 | M88: 184936.0033 | N88: 121464.4582 | O88: 59153.19324 | P88: 292008.1722 | Q88: 289510.29 | R88: 287078.158 | S88: 285201.9076 | T88: 283337.9199 | U88: 281486.1145 | V88: 242836.6268 | W88: 261531.5588 | X88: 268143.1811 | Y88: 271107.0118 | Z88: 243976.5617 | AA88: 224711.6623 | AB88: 198721.1471 | AC88: 182876.0523 | AD88: 161715.0113 | AE88: 147009.8514 | AF88: 127744.952 | AG88: 117713.5251 | AH88: 104148.3 | AI88: 97536.67774 | AJ88: 87163.27036 | AK88: 77701.81088 | AL88: 72458.11045 | AM88: 65846.48816 | AN88: 51867.0369 | AO88: 46395.34949 | AP88: 44115.47974 | AQ88: 40011.71418 | AR88: 36363.92258
B89: Meters | D89: Meters/Tele | E89: 194898.5765 | F89: 340488.5994 | G89: 601209.0317 | H89: 115788.29 | I89: 81714.16735 | J89: 89548.39045 | K89: 52035.81599 | L89: 39553.39581 | M89: 131168.6197 | N89: 79099.46436 | O89: 33773.64648 | P89: 236404.5385 | Q89: 242997.9469 | R89: 222161.3643 | S89: 220709.3892 | T89: 219266.9038 | U89: 217833.8459 | V89: 186239.9495 | W89: 202156.8031 | X89: 212007.0394 | Y89: 281568.7825 | Z89: 322145.5178 | AA89: 474483.6607 | AB89: 755022.0885 | AC89: 568139.9445 | AD89: 545568.4367 | AE89: 504182.7109 | AF89: 362473.3933 | AG89: 418503.6616 | AH89: 273817.8905 | AI89: 154009.4113 | AJ89: 304933.0266 | AK89: 304985.5182 | AL89: 283941.9829 | AM89: 279254.5997 | AN89: 265081.8619 | AO89: 260585.0796 | AP89: 218942.9123 | AQ89: 233253.7594 | AR89: 239832.018
A90: Large loads | B90: Services | D90: Services | E90: 14264.14942 | F90: 98616.94947 | G90: 269266.7315 | H90: 335522.2216 | I90: 300692.5477 | J90: 150154.7546 | K90: 111909.3128 | L90: 22609.69711 | M90: 0 | N90: 0 | O90: 0 | P90: 0 | Q90: 0 | R90: 0 | S90: 0 | T90: 0 | U90: 0 | V90: 0 | W90: 0 | X90: 0 | Y90: 0 | Z90: 0 | AA90: 0 | AB90: 0 | AC90: 0 | AD90: 0 | AE90: 0 | AF90: 0 | AG90: 0 | AH90: 0 | AI90: 0 | AJ90: 0 | AK90: 0 | AL90: 0 | AM90: 0 | AN90: 0 | AO90: 0 | AP90: 0 | AQ90: 0 | AR90: 0
B91: Meters | D91: Meters/Tele | E91: 184675.3761 | F91: 336956.8774 | G91: 802676.44 | H91: 244096.2638 | I91: 185235.7005 | J91: 101680.1709 | K91: 85107.93494 | L91: 17251.235 | M91: 0 | N91: 0 | O91: 0 | P91: 0 | Q91: 0 | R91: 0 | S91: 0 | T91: 0 | U91: 0 | V91: 0 | W91: 0 | X91: 0 | Y91: 0 | Z91: 0 | AA91: 0 | AB91: 0 | AC91: 0 | AD91: 0 | AE91: 0 | AF91: 0 | AG91: 0 | AH91: 0 | AI91: 0 | AJ91: 0 | AK91: 0 | AL91: 0 | AM91: 0 | AN91: 0 | AO91: 0 | AP91: 0 | AQ91: 0 | AR91: 0
A92: Telemetry | B92: PRS from 2017 | D92: Meters/Tele | E92: 19855.22234 | F92: 43681.48914 | G92: 152885.212 | H92: 22965.86545 | I92: 15740.45086 | J92: 6925.798377 | K92: 0 | L92: 0 | M92: 26370.00412 | N92: 26370.00412 | O92: 10548.00165 | P92: 6960.981567 | Q92: 12738.6278 | R92: 23424.45215 | S92: 22222.95042 | T92: 7795.852408 | U92: 18327.50533 | V92: 19140.8466 | W92: 19140.8466 | X92: 19140.8466 | Y92: 19140.8466 | Z92: 18881.40676 | AA92: 30754.87565 | AB92: 24818.1412 | AC92: 30754.87565 | AD92: 42628.34454 | AE92: 120878.5373 | AF92: 29138.63932 | AG92: 29277.66281 | AH92: 29278.52814 | AI92: 29908.03841 | AJ92: 29834.61069 | AK92: 30034.96466 | AL92: 30163.87911 | AM92: 30301.50083 | AN92: 30432.84549 | AO92: 30568.24259 | AP92: 30695.42802 | AQ92: 30828.59781 | AR92: 30962.36242
A93: Other capex | B93: IT & office | D93: Other | E93: 414551.8925 | F93: 72300.80662 | G93: 794208.8935 | H93: 58886.83448 | I93: 58297.96614 | J93: 634864.8512 | K93: 57137.83661 | L93: 56566.45824 | M93: 128685.6201 | N93: 23205.60363 | O93: 22150.80346 | P93: 578567.4318 | Q93: 126785.7362 | R93: 124557.9077 | S93: 123743.8373 | T93: 113636.7895 | U93: 112894.0961 | V93: 167612.8681 | W93: 117904.1303 | X93: 117904.1303 | Y93: 117904.1303 | Z93: 117904.1303 | AA93: 117904.1303 | AB93: 167612.8681 | AC93: 117904.1303 | AD93: 117904.1303 | AE93: 117904.1303 | AF93: 117904.1303 | AG93: 117904.1303 | AH93: 167612.8681 | AI93: 117904.1303 | AJ93: 117904.1303 | AK93: 117904.1303 | AL93: 117904.1303 | AM93: 117904.1303 | AN93: 167612.8681 | AO93: 117904.1303 | AP93: 117904.1303 | AQ93: 117904.1303 | AR93: 117904.1303
A94: Capex not started (Foyle river crossing) | D94: Mains | E94: 0 | F94: 0 | G94: 0 | H94: 0 | I94: 0 | J94: 0 | K94: 0 | L94: 0 | M94: 0 | N94: 0 | O94: 0 | P94: =2446182/M1*M2 -> 2431932.396 | Q94: 0 | R94: 0 | S94: 0 | T94: 0 | U94: 0 | V94: 0 | W94: 0 | X94: 0 | Y94: 0 | Z94: 0 | AA94: 0 | AB94: 0 | AC94: 0 | AD94: 0 | AE94: 0 | AF94: 0 | AG94: 0 | AH94: 0 | AI94: 0 | AJ94: 0 | AK94: 0 | AL94: 0 | AM94: 0 | AN94: 0 | AO94: 0 | AP94: 0 | AQ94: 0 | AR94: 0
A96: Capex
A97: Total Capex - £2006 | E97: =SUM(E8:E19) -> 7895483.836 | F97: =SUM(F8:F19) -> 10314210.26 | G97: 10376384.49 | H97: 11153785.13 | I97: 10921235.91 | J97: 8699245.209 | K97: 6750923.941 | L97: 5835691.355 | M97: 9228329.479 | N97: 7790801.888 | O97: 7052934.513 | P97: =SUM(P8:P19) -> 11129161.22 | Q97: 10598421.74 | R97: 10702004.03 | S97: 11072495.63 | T97: 11367162.99 | U97: 12202469.26 | V97: 9823248.024 | W97: 9371231.209 | X97: 9325031.458 | Y97: 7460074.932 | Z97: 5547416.229 | AA97: 5266232.052 | AB97: 5064708.624 | AC97: 4921037.47 | AD97: 4760226.175 | AE97: 4614660.937 | AF97: 4492678.244 | AG97: 4375232.605 | AH97: 4271548.838 | AI97: =SUM(AI8:AI19) -> 4260335.414 | AJ97: 4256693.461 | AK97: 4232825.352 | AL97: 4300066.581 | AM97: 4145366.193 | AN97: 4138785.951 | AO97: 4056166.827 | AP97: 4003217.48 | AQ97: 3909394.104 | AR97: 3871490.567
A98: Total Capex - £2012 | E98: =SUM(E23:E34) -> 9908138.195 | F98: =SUM(F23:F34) -> 12943427.24 | G98: 13021450.44 | H98: 13997019.92 | I98: 13705191.08 | J98: 10916788.07 | K98: 8471816.135 | L98: 7323279.689 | M98: 11580742.32 | N98: 9776771.552 | O98: 8850812.856 | P98: =SUM(P23:P34) -> 13966119.06 | Q98: 13300087.67 | R98: 13430074.34 | S98: 13895008.73 | T98: 14264790.37 | U98: 15313026.31 | V98: 12327312.8 | W98: 11760071.43 | X98: 11702094.8 | Y98: 9361738.293 | Z98: 6961519.746 | AA98: 6608658.319 | AB98: 6355764.132 | AC98: 6175469.462 | AD98: 5973665.422 | AE98: 5790993.844 | AF98: 5637916.287 | AG98: 5490532.333 | AH98: 5360418.32 | AI98: =SUM(AI23:AI34) -> 5346346.458 | AJ98: 5341776.127 | AK98: 5311823.748 | AL98: 5396205.581 | AM98: 5202070.191 | AN98: 5193812.566 | AO98: 5090132.828 | AP98: 5023686.052 | AQ98: 4905945.962 | AR98: 4858380.354
A99: Total Capex - Av £2014 - FE GD17 Submission | E99: =SUM(E38:E49) -> 10451105.8 | F99: =SUM(F38:F49) -> 13652729.19 | G99: 13735028.07 | H99: 14764058.91 | I99: 14456237.81 | J99: 11515029.85 | K99: 8936073.055 | L99: 7724596.623 | M99: 12215368.91 | N99: 10312540.24 | O99: 9335838.859 | P99: =SUM(P38:P49) -> 14731464.69 | Q99: 14028934.67 | R99: 14166044.63 | S99: 14656457.5 | T99: 15046503.23 | U99: 16152182.68 | V99: 13002851.57 | W99: 12404525.28 | X99: 12343371.53 | Y99: 9874763.095 | Z99: 7343012.175 | AA99: 6970813.884 | AB99: 6704061.054 | AC99: 6513886.207 | AD99: 6301023.272 | AE99: 6108341.261 | AF99: 5946875.029 | AG99: 5791414.41 | AH99: 5654170.127 | AI99: =SUM(AI38:AI49) -> 5639327.125 | AJ99: 5634506.339 | AK99: 5602912.565 | AL99: 5691918.536 | AM99: 5487144.495 | AN99: 5478434.351 | AO99: 5369072.945 | AP99: 5298984.876 | AQ99: 5174792.609 | AR99: 5124620.398
A100: Total Capex - DEC £2014 | E100: =SUM(E53:E64) -> 10512342.75 | F100: =SUM(F53:F64) -> 13732725.65 | G100: 13815506.75 | H100: 14850567.07 | I100: 14540942.33 | J100: 11582500.73 | K100: 8988432.858 | L100: 7769857.932 | M100: 12286943.33 | N100: 10372965.28 | O100: 9390541.04 | P100: 14817781.87 | Q100: 14111135.46 | R100: 14249048.79 | S100: 14742335.18 | T100: 15134666.34 | U100: 16246824.37 | V100: 13079040.16 | W100: 12477208.05 | X100: 12415695.97 | Y100: 9932623.035 | Z100: 7386037.637 | AA100: 7011658.497 | AB100: 6743342.661 | AC100: 6552053.509 | AD100: 6337943.33 | AE100: 6144132.323 | AF100: 5981720 | AG100: 5825348.479 | AH100: 5687300.03 | AI100: =SUM(AI53:AI64) -> 5672370.058 | AJ100: 5667521.025 | AK100: 5635742.131 | AL100: 5725269.621 | AM100: 5519295.733 | AN100: 5510534.552 | AO100: 5400532.357 | AP100: 5330033.615 | AQ100: 5205113.66 | AR100: 5154647.471
A101: Total Capex - Av £2014 - UR Draft Det | E101: =SUM(E68:E79) -> 10451105.8 | F101: =SUM(F68:F79) -> 13652729.19 | G101: 13735028.07 | H101: 14764058.91 | I101: 14456237.81 | J101: 11515029.85 | K101: 8936073.055 | L101: 7724596.623 | M101: 12215368.91 | N101: 10312540.24 | O101: =SUM(O68:O79) -> 9335838.859 | P101: =SUM(P68:P79) -> 12877415.3 | Q101: =SUM(Q68:Q79) -> 12855794.29 | R101: 13019384.91 | S101: 13236751.85 | T101: 13573781.12 | U101: 13785462.62 | V101: =SUM(V68:V79) -> 13934594.21 | W101: =SUM(W68:W79) -> 13119244.97 | X101: 13358875.92 | Y101: 10756886.71 | Z101: 7557609.591 | AA101: 7534925.954 | AB101: 7661426.418 | AC101: 7357136.508 | AD101: 7328091.32 | AE101: 7341124.834 | AF101: 7005309.655 | AG101: 6976881.671 | AH101: 6740672.823 | AI101: 6497928.634 | AJ101: 6536323.215 | AK101: 6513649.194 | AL101: 6474464.586 | AM101: 6440327.648 | AN101: 6387521.934 | AO101: 6290087.941 | AP101: 6133225.033 | AQ101: 6154616.89 | AR101: 6061792.78
A102: Total Capex - Av £2014 - UR Final Det | E102: =SUM(E83:E94) -> 10451105.8 | F102: =SUM(F83:F94) -> 13652729.19 | G102: 13735028.07 | H102: 14764058.91 | I102: 14456237.81 | J102: 11515029.85 | K102: 8936073.055 | L102: 7724596.623 | M102: 12215368.91 | N102: 10312540.24 | O102: =SUM(O83:O94) -> 9335838.859 | P102: =SUM(P83:P94) -> 17021203.69 | Q102: =SUM(Q83:Q94) -> 14216331.13 | R102: 14411628.56 | S102: 14691507.89 | T102: 15040587.26 | U102: =SUM(U83:U94) -> 15263536.64 | V102: 13494089.62 | W102: 12660107.9 | X102: 12869613.81 | Y102: 10299121.53 | Z102: 8046899.945 | AA102: 8046777.495 | AB102: 8185352.289 | AC102: 7805560.003 | AD102: 7756672.577 | AE102: 7831927.842 | AF102: 7372662.442 | AG102: 7328344.316 | AH102: 7125811.438 | AI102: 6817976.022 | AJ102: 6824556.19 | AK102: 6786079.359 | AL102: 6731004.948 | AM102: 6680980.562 | AN102: 6662017.255 | AO102: 6543529.212 | AP102: 6343851.66 | AQ102: 6370917.708 | AR102: 6256315.38
A104: Opex
A105: Total Opex - Av £2014 - UR Final Det | E105: 5042039.536 | F105: 6462480.023 | G105: 6426407.664 | H105: 6203884.655 | I105: 5779951.452 | J105: 5779756.296 | K105: 5562712.477 | L105: 5196757.827 | M105: 5665371.408 | N105: 5871023.957 | O105: 6138280.639 | P105: 6334386.028 | Q105: 6293113.27 | R105: 6445597.512 | S105: 6656073.189 | T105: 6929350.922 | U105: 7205284.419 | V105: 7397470.412 | W105: 7498577.746 | X105: 7584873.39 | Y105: 7674486.935 | Z105: 7835200.126 | AA105: 8039074.976 | AB105: 8151088.155 | AC105: 8248818.384 | AD105: 8311137.924 | AE105: 8247445.513 | AF105: 8152646.534 | AG105: 8137499.968 | AH105: 8256464.708 | AI105: 8449928.003 | AJ105: 8668512.979 | AK105: 8742688.013 | AL105: 8746768.25 | AM105: 8995917.242 | AN105: 9253073.834 | AO105: 9240833.289 | AP105: 9090735.131 | AQ105: 9038035.839 | AR105: 8958412.81
A107: Volumes (Therms)
A108: GD17 FD
A109: Domestic | B109: P1 | E109: 64221 | F109: 558617 | G109: 1506329 | H109: 1765161.102 | I109: 2676992.654 | J109: 3655315.699 | K109: 4578235.311 | L109: 5535454.771 | M109: 8222120.853 | N109: 9798128.244 | O109: 11337112.6 | P109: 11228403.38 | Q109: 12779500.99 | R109: 14462359.28 | S109: 16267497.01 | T109: 18185433.06 | U109: 20197186.04 | V109: 22038984.86 | W109: 23793384.2 | X109: 25471148.32 | Y109: 27086070.18 | Z109: 28567207.21 | AA109: 29962673.19 | AB109: 31228311.77 | AC109: 32414365.35 | AD109: 33477386.58 | AE109: 34482468.17 | AF109: 35386438.89 | AG109: 36235622.98 | AH109: 37004489.44 | AI109: 37737956.43 | AJ109: 38377424.42 | AK109: 38967408.48 | AL109: 39483329.2 | AM109: 39968316.51 | AN109: 40381923.83 | AO109: 40766399.02 | AP109: 41082121.91 | AQ109: 41385829.45 | AR109: 41638237.54
A110: Small IC | B110: P2 | E110: 0 | F110: 2596 | G110: 20579 | H110: 1125000 | I110: 1430000 | J110: 1887000 | K110: 2255000 | L110: 2610000 | M110: 8795675.302 | N110: 9434708.382 | O110: 9821200.808 | P110: 8335677.347 | Q110: 8849510.504 | R110: 9352278.011 | S110: 9844149.797 | T110: 10325293.5 | U110: 10795874.49 | V110: 11215022.07 | W110: 11602463.2 | X110: 11773164.59 | Y110: 12166809.49 | Z110: 12306058.88 | AA110: 12610323.99 | AB110: 12673302.88 | AC110: 12905908.45 | AD110: 12908449.56 | AE110: 13083541.05 | AF110: 13038281.72 | AG110: 13167148.54 | AH110: 13084173.43 | AI110: 13175823.55 | AJ110: 13063178.45 | AK110: 13124797.84 | AL110: 12988900.38 | AM110: 13026220.14 | AN110: 12872188.06 | AO110: 12889777.89 | AP110: 12721691.26 | AQ110: 12723193.89 | AR110: 12544304.76
A111: Medium IC | B111: P3 | E111: 0 | F111: 196639 | G111: 522544 | H111: 1872761.225 | I111: 2624879.606 | J111: 3089440.658 | K111: 3662526.056 | L111: 3750125.72 | M111: 3807199.766 | N111: 3902269.766 | O111: 3999351.922 | P111: 6380452.712 | Q111: 6374076.091 | R111: 6367763.236 | S111: 6361513.51 | T111: 6355326.281 | U111: 6349200.924 | V111: 6293990.481 | W111: 6238780.038 | X111: 6183569.596 | Y111: 6128359.153 | Z111: 6073148.71 | AA111: 6017938.267 | AB111: 5962727.824 | AC111: 5907517.381 | AD111: 5852306.939 | AE111: 5797096.496 | AF111: 5741886.053 | AG111: 5686675.61 | AH111: 5631465.167 | AI111: 5576254.725 | AJ111: 5521044.282 | AK111: 5465833.839 | AL111: 5410623.396 | AM111: 5355412.953 | AN111: 5300202.51 | AO111: 5244992.068 | AP111: 5189781.625 | AQ111: 5134571.182 | AR111: 5079360.739
A112: Large Firm CHP | B112: P4 | E112: 1163837 | F112: 4264513 | G112: 7745837 | H112: 599915.6273 | I112: 599668.1953 | J112: 599265.9631 | K112: 598716.8422 | L112: 598028.4091 | M112: 3337000 | N112: 3337000 | O112: 3337000 | P112: 1160961.109 | Q112: 927141.3658 | R112: 927141.3658 | S112: 927141.3658 | T112: 927141.3658 | U112: 927141.3658 | V112: 919079.267 | W112: 911017.1681 | X112: 902955.0693 | Y112: 894892.9705 | Z112: 886830.8716 | AA112: 878768.7728 | AB112: 870706.674 | AC112: 862644.5751 | AD112: 854582.4763 | AE112: 846520.3775 | AF112: 838458.2786 | AG112: 830396.1798 | AH112: 822334.081 | AI112: 814271.9821 | AJ112: 806209.8833 | AK112: 798147.7845 | AL112: 790085.6856 | AM112: 782023.5868 | AN112: 773961.488 | AO112: 765899.3891 | AP112: 757837.2903 | AQ112: 749775.1915 | AR112: 741713.0926
A113: Large Firm | B113: P5 | E113: 0 | F113: 0 | G113: 30698 | H113: 10445530.93 | I113: 13739397.8 | J113: 15604885.68 | K113: 16217243.53 | L113: 16348103.28 | M113: 11019000 | N113: 11019000 | O113: 11019000 | P113: 13374606.01 | Q113: 13360835.65 | R113: 13360835.65 | S113: 13360835.65 | T113: 13360835.65 | U113: 13360835.65 | V113: 13244654.47 | W113: 13128473.29 | X113: 13012292.11 | Y113: 12896110.93 | Z113: 12779929.75 | AA113: 12663748.57 | AB113: 12547567.39 | AC113: 12431386.21 | AD113: 12315205.03 | AE113: 12199023.86 | AF113: 12082842.68 | AG113: 11966661.5 | AH113: 11850480.32 | AI113: 11734299.14 | AJ113: 11618117.96 | AK113: 11501936.78 | AL113: 11385755.6 | AM113: 11269574.42 | AN113: 11153393.24 | AO113: 11037212.06 | AP113: 10921030.88 | AQ113: 10804849.7 | AR113: 10688668.52
A114: Int | B114: P6 | E114: 4770961 | F114: 9073301 | G114: 14530386 | H114: 11426119.58 | I114: 13355461.8 | J114: 13659721.42 | K114: 13647204.71 | L114: 13631512.51 | M114: 23389390.87 | N114: 23418346.13 | O114: 23441549.5 | P114: 21500025.71 | Q114: 18152168.57 | R114: 18152168.57 | S114: 18152168.57 | T114: 18152168.57 | U114: 18152168.57 | V114: 17994323.63 | W114: 17836478.68 | X114: 17678633.74 | Y114: 17520788.79 | Z114: 17362943.85 | AA114: 17205098.91 | AB114: 17047253.96 | AC114: 16889409.02 | AD114: 16731564.07 | AE114: 16573719.13 | AF114: 16415874.19 | AG114: 16258029.24 | AH114: 16100184.3 | AI114: 15942339.35 | AJ114: 15784494.41 | AK114: 15626649.47 | AL114: 15468804.52 | AM114: 15310959.58 | AN114: 15153114.63 | AO114: 14995269.69 | AP114: 14837424.74 | AQ114: 14679579.8 | AR114: 14521734.86
A115: Total Volume (Therms) - UR Final Det | E115: 5999019 | F115: 14095666 | G115: 24356373 | H115: 27234488.47 | I115: =SUM(I109:I114) -> 34426400.06 | J115: 38495629.42 | K115: 40958926.45 | L115: 42473224.68 | M115: 58570386.79 | N115: 60909452.52 | O115: 62955214.83 | P115: =SUM(P109:P114) -> 61980126.27 | Q115: =SUM(Q109:Q114) -> 60443233.17 | R115: =SUM(R109:R114) -> 62622546.11 | S115: =SUM(S109:S114) -> 64913305.91 | T115: =SUM(T109:T114) -> 67306198.43 | U115: =SUM(U109:U114) -> 69782407.05 | V115: =SUM(V109:V114) -> 71706054.77 | W115: =SUM(W109:W114) -> 73510596.58 | X115: =SUM(X109:X114) -> 75021763.42 | Y115: =SUM(Y109:Y114) -> 76693031.53 | Z115: =SUM(Z109:Z114) -> 77976119.28 | AA115: =SUM(AA109:AA114) -> 79338551.7 | AB115: =SUM(AB109:AB114) -> 80329870.51 | AC115: =SUM(AC109:AC114) -> 81411230.98 | AD115: =SUM(AD109:AD114) -> 82139494.66 | AE115: =SUM(AE109:AE114) -> 82982369.08 | AF115: =SUM(AF109:AF114) -> 83503781.8 | AG115: =SUM(AG109:AG114) -> 84144534.05 | AH115: =SUM(AH109:AH114) -> 84493126.72 | AI115: =SUM(AI109:AI114) -> 84980945.17 | AJ115: =SUM(AJ109:AJ114) -> 85170469.41 | AK115: =SUM(AK109:AK114) -> 85484774.18 | AL115: =SUM(AL109:AL114) -> 85527498.79 | AM115: =SUM(AM109:AM114) -> 85712507.19 | AN115: =SUM(AN109:AN114) -> 85634783.76 | AO115: =SUM(AO109:AO114) -> 85699550.11 | AP115: =SUM(AP109:AP114) -> 85509887.71 | AQ115: =SUM(AQ109:AQ114) -> 85477799.22 | AR115: 85214019.51
A117: TRV Opening Value (£2014)
A118: DAV (Incl Uncertainty Mechanism Capex Adjustments) | L118: =DAV!L35 -> 87789156.41 | O118: =DAV!O35 -> 105662653
A119: PAB determination | L119: 31724674.25 | O119: =(37603.2511769514*1000)/K2*M2 -> 39663915.54
A120: Opex adjustment MDR | I120: -52055.31764 | J120: -238998.332 | K120: -404873.3781 | L120: -418911.6158 | M120: n/a | N120: n/a | O120: n/a
A121: Opex Adjustment OAV & PCR02 Retro Opex Adj | H121: =D131+H143 -> 2922657.918 | I121: =I143 -> 631836.1792 | J121: =J143 -> 1560191.325 | K121: =K143 -> 2070553.938 | L121: =L143 -> 1808970.003 | M121: n/a | N121: n/a | O121: n/a
A122: GD14 Uncertainty Mechanism Adj | H122: n/a | I122: n/a | J122: n/a | K122: n/a | L122: n/a | M122: =M143 -> -603995.0353 | N122: =N143 -> -265007.6309 | O122: -296639.3359
A123: Adjusted PAB | L123: =SUM(H119:L122) -> 39604044.97 | O123: =SUM(M119:O122) -> 38498273.54
A124: Actual Depreciation | H124: =1630500.22677686/K2*M2 -> 1719851.908 | I124: =1947695.89523954/K2*M2 -> 2054429.951 | J124: =2203584.72118004/K2*M2 -> 2324341.527 | K124: =2612872.60094617/K2*M2 -> 2756058.45 | L124: =2777246.76356909/K2*M2 -> 2929440.344 | M124: =DAV!M29 -> 3150891.453 | N124: =DAV!N29 -> 3449656.629 | O124: =DAV!O29 -> 3814245.906
A125: Determined Depreciation (per V7 PH Model) | H125: =-1690376.52079378/K2*M2 -> -1783009.433 | I125: =-2072120.48949698/K2*M2 -> -2185673.034 | J125: =-2345564.29024628/K2*M2 -> -2474101.6 | K125: =-2521468.70325611/K2*M2 -> -2659645.604 | L125: =-2731587.08372248/K2*M2 -> -2881278.506 | M125: =-3120839.57568117/K2*M2 -> -3291862.099 | N125: =-3399887.94022108/K2*M2 -> -3586202.36 | O125: =-3692450.11767324/K2*M2 -> -3894796.993
A126: DAB Adjustment | L126: =SUM(H124:L125) -> -199585.996 | O126: =SUM(M124:O125) -> -358067.4625
A127: Capitalised Under-recoveries | B127: Exclude | D127: 0.043 | L127: n/a | O127: 0
A128: Opening TRV Value | B128: Include - In Full | L128: =SUM(L118,L123,L126,L127) -> 127193615.4 | O128: =SUM(O118,O123,O126,O127) -> 143802859
B129: Include - Discounted
B130: Exclude
A131: Opening Asset Value (£2014) | B131: Opex | C131: PI's model V7 | D131: 3212984.487
B132: Mains | C132: PI's model V7 | D132: 1845762.794
B133: Other Capex | C133: PI's model V7 | D133: 449375.3051
B134: Total OAV | D134: =SUM(D131:D133) -> 5508122.586
A137: UM ADJUSTMENTS UPDATE BY FORMULA YEAR (£2014) | H137: PCR02 | M137: GD14
H138: 2009 | I138: 2010 | J138: 2011 | K138: 2012 | L138: 2013 | M138: 2014 | N138: 2015 | O138: 2016
A139: Uncertainty Mechanism Adjustment Categories | H139: Actual | I139: Actual | J139: Actual | K139: Actual | L139: Forecast | M139: Forecast | N139: Forecast | O139: Forecast
A140: Capex 40 Yr Life | H140: =-2664919.34097565/K2*M2 -> -2810957.36 | I140: =-3369293.41742625/K2*M2 -> -3553931.252 | J140: =1435272.85221556/K2*M2 -> 1513926.041 | K140: =4821142.32086481/K2*M2 -> 5085341.715 | L140: =2158215.58502883/K2*M2 -> 2276486.155 | M140: -5573402.904 | N140: -207530.1974 | O140: 1977833.05 | P140: Linked to UM Model
A141: Capex 15 Yr Life | H141: =152976.527336461/K2*M2 -> 161359.6662 | I141: =295260.527926963/K2*M2 -> 311440.8535 | J141: =665935.025800321/K2*M2 -> 702428.375 | K141: =893259.912382716/K2*M2 -> 942210.7028 | L141: =747802.663865809/K2*M2 -> 788782.3731 | M141: -9914.023045 | N141: 144197.55 | O141: 98232.25995 | P141: Linked to UM Model
A142: Capex 5 Yr Life | H142: =0/K2*M2 -> 0 | I142: =0/K2*M2 -> 0 | J142: =-752295.29351409/K2*M2 -> -793521.1996 | K142: =0/K2*M2 -> 0 | L142: =0/K2*M2 -> 0 | M142: -4873.189749 | N142: 0 | O142: 0 | P142: Linked to UM Model
A143: Opex | H143: =-275243.19646693/K2*M2 -> -290326.569 | I143: =599010.31524628/K2*M2 -> 631836.1792 | J143: =1479134.50989171/K2*M2 -> 1560191.325 | K143: =1962982.19003036/K2*M2 -> 2070553.938 | L143: =1714988.35867785/K2*M2 -> 1808970.003 | M143: -603995.0353 | N143: -265007.6309 | O143: -296639.3359 | P143: Linked to UM Model
A144: Total Retrospective Adjustments | H144: =SUM(H140:H143) -> -2939924.263 | I144: -2610654.219 | J144: 2983024.541 | K144: 8098106.355 | L144: =SUM(L140:L143) -> 4874238.531 | M144: =SUM(M140:M143) -> -6192185.152 | N144: =SUM(N140:N143) -> -328340.2783 | O144: 1779425.974 | P144: Linked to UM Model

Sheet DAV
A1: Condition 2.3.17 Calculation of DAV
D6: £2014 | E6: 2006 | F6: =E6+1 -> 2007 | G6: =F6+1 -> 2008 | H6: 2009 | I6: 2010 | J6: 2011 | K6: 2012 | L6: 2013 | M6: 2014 | N6: 2015 | O6: 2016 | P6: 2017 | Q6: 2018 | R6: 2019 | S6: 2020 | T6: 2021 | U6: 2022 | V6: 2023 | W6: 2024 | X6: 2025 | Y6: 2026 | Z6: 2027 | AA6: 2028 | AB6: 2029 | AC6: 2030 | AD6: 2031 | AE6: 2032 | AF6: 2033 | AG6: 2034 | AH6: 2035 | AI6: 2036 | AJ6: 2037 | AK6: 2038 | AL6: 2039 | AM6: 2040 | AN6: 2041 | AO6: 2042 | AP6: 2043 | AQ6: 2044 | AR6: 2045
A8: Annual Capex
A9: Mains | E9: =SUM(Inputs!E83,Inputs!E85,Inputs!E94) -> 9163851.68 | F9: =SUM(Inputs!F83,Inputs!F85,Inputs!F94) -> 11978318.04 | G9: =SUM(Inputs!G83,Inputs!G85,Inputs!G94) -> 9339553.295 | H9: =SUM(Inputs!H83,Inputs!H85,Inputs!H94) -> 11701933.91 | I9: =SUM(Inputs!I83,Inputs!I85,Inputs!I94) -> 11411316.91 | J9: =SUM(Inputs!J83,Inputs!J85,Inputs!J94) -> 8068448.597 | K9: =SUM(Inputs!K83,Inputs!K85,Inputs!K94) -> 6362519.735 | L9: =SUM(Inputs!L83,Inputs!L85,Inputs!L94) -> 5351409.699 | M9: =SUM(Inputs!M83,Inputs!M85,Inputs!M94) -> 8114852.253 | N9: =SUM(Inputs!N83,Inputs!N85,Inputs!N94) -> 6433044.307 | O9: =SUM(Inputs!O83,Inputs!O85,Inputs!O94) -> 5775361.958 | P9: =SUM(Inputs!P83,Inputs!P85,Inputs!P94) -> 11768984.04 | Q9: =SUM(Inputs!Q83,Inputs!Q85,Inputs!Q94) -> 9058446.799 | R9: =SUM(Inputs!R83,Inputs!R85,Inputs!R94) -> 8925843.789 | S9: =SUM(Inputs!S83,Inputs!S85,Inputs!S94) -> 8915125.106 | T9: =SUM(Inputs!T83,Inputs!T85,Inputs!T94) -> 8998069.885 | U9: =SUM(Inputs!U83,Inputs!U85,Inputs!U94) -> 9026202.664 | V9: =SUM(Inputs!V83,Inputs!V85,Inputs!V94) -> 7320907.062 | W9: =SUM(Inputs!W83,Inputs!W85,Inputs!W94) -> 6482253.992 | X9: =SUM(Inputs!X83,Inputs!X85,Inputs!X94) -> 6762443.3 | Y9: =SUM(Inputs!Y83,Inputs!Y85,Inputs!Y94) -> 4228461.1 | Z9: =SUM(Inputs!Z83,Inputs!Z85,Inputs!Z94) -> 2058906.606 | AA9: =SUM(Inputs!AA83,Inputs!AA85,Inputs!AA94) -> 2049585.244 | AB9: =SUM(Inputs!AB83,Inputs!AB85,Inputs!AB94) -> 2038803.686 | AC9: =SUM(Inputs!AC83,Inputs!AC85,Inputs!AC94) -> 2029665.831 | AD9: =SUM(Inputs!AD83,Inputs!AD85,Inputs!AD94) -> 2019542.82 | AE9: =SUM(Inputs!AE83,Inputs!AE85,Inputs!AE94) -> 2019106.952 | AF9: =SUM(Inputs!AF83,Inputs!AF85,Inputs!AF94) -> 2008873.022 | AG9: =SUM(Inputs!AG83,Inputs!AG85,Inputs!AG94) -> 2008743.588 | AH9: =SUM(Inputs!AH83,Inputs!AH85,Inputs!AH94) -> 2008303.754 | AI9: =SUM(Inputs!AI83,Inputs!AI85,Inputs!AI94) -> 2008005.597 | AJ9: =SUM(Inputs!AJ83,Inputs!AJ85,Inputs!AJ94) -> 1999065.955 | AK9: =SUM(Inputs!AK83,Inputs!AK85,Inputs!AK94) -> 1998103.361 | AL9: =SUM(Inputs!AL83,Inputs!AL85,Inputs!AL94) -> 1997858.973 | AM9: =SUM(Inputs!AM83,Inputs!AM85,Inputs!AM94) -> 1997563.802 | AN9: =SUM(Inputs!AN83,Inputs!AN85,Inputs!AN94) -> 1995846.513 | AO9: =SUM(Inputs!AO83,Inputs!AO85,Inputs!AO94) -> 1995260.37 | AP9: =SUM(Inputs!AP83,Inputs!AP85,Inputs!AP94) -> 1993404.335 | AQ9: =SUM(Inputs!AQ83,Inputs!AQ85,Inputs!AQ94) -> 2000429.022 | AR9: =SUM(Inputs!AR83,Inputs!AR85,Inputs!AR94) -> 1999035.01
A10: Services | E10: =SUM(Inputs!E86,Inputs!E88,Inputs!E90) -> 387648.0969 | F10: =SUM(Inputs!F86,Inputs!F88,Inputs!F90) -> 694810.8143 | G10: =SUM(Inputs!G86,Inputs!G88,Inputs!G90) -> 1678078.464 | H10: =SUM(Inputs!H86,Inputs!H88,Inputs!H90)+Inputs!H140 -> -630403.4012 | I10: =SUM(Inputs!I86,Inputs!I88,Inputs!I90)+Inputs!I140 -> -1312640.597 | J10: =SUM(Inputs!J86,Inputs!J88,Inputs!J90)+Inputs!J140 -> 3656705.096 | K10: =SUM(Inputs!K86,Inputs!K88,Inputs!K90)+Inputs!K140 -> 7053872.074 | L10: =SUM(Inputs!L86,Inputs!L88,Inputs!L90)+Inputs!L140 -> 4120019.069 | M10: =SUM(Inputs!M86,Inputs!M88,Inputs!M90)+Inputs!M140 -> -2712649.843 | N10: =SUM(Inputs!N86,Inputs!N88,Inputs!N90)+Inputs!N140 -> 2589751.319 | O10: =SUM(Inputs!O86,Inputs!O88,Inputs!O90)+Inputs!O140 -> 4565975.119 | P10: =SUM(Inputs!P86,Inputs!P88,Inputs!P90) -> 3509119.694 | Q10: =SUM(Inputs!Q86,Inputs!Q88,Inputs!Q90) -> 3780654.482 | R10: =SUM(Inputs!R86,Inputs!R88,Inputs!R90) -> 4047912.811 | S10: =SUM(Inputs!S86,Inputs!S88,Inputs!S90) -> 4276083.879 | T10: =SUM(Inputs!T86,Inputs!T88,Inputs!T90) -> 4501099.535 | U10: =SUM(Inputs!U86,Inputs!U88,Inputs!U90) -> 4639221.452 | V10: =SUM(Inputs!V86,Inputs!V88,Inputs!V90) -> 4531498.178 | W10: =SUM(Inputs!W86,Inputs!W88,Inputs!W90) -> 4550193.11 | X10: =SUM(Inputs!X86,Inputs!X88,Inputs!X90) -> 4469317.353 | Y10: =SUM(Inputs!Y86,Inputs!Y88,Inputs!Y90) -> 4297306.427 | Z10: =SUM(Inputs!Z86,Inputs!Z88,Inputs!Z90) -> 4095201.22 | AA10: =SUM(Inputs!AA86,Inputs!AA88,Inputs!AA90) -> 3857217.874 | AB10: =SUM(Inputs!AB86,Inputs!AB88,Inputs!AB90) -> 3656252.601 | AC10: =SUM(Inputs!AC86,Inputs!AC88,Inputs!AC90) -> 3465432.749 | AD10: =SUM(Inputs!AD86,Inputs!AD88,Inputs!AD90) -> 3269296.951 | AE10: =SUM(Inputs!AE86,Inputs!AE88,Inputs!AE90) -> 3167104.412 | AF10: =SUM(Inputs!AF86,Inputs!AF88,Inputs!AF90) -> 2972864.755 | AG10: =SUM(Inputs!AG86,Inputs!AG88,Inputs!AG90) -> 2875345.95 | AH10: =SUM(Inputs!AH86,Inputs!AH88,Inputs!AH90) -> 2774293.346 | AI10: =SUM(Inputs!AI86,Inputs!AI88,Inputs!AI90) -> 2680194.345 | AJ10: =SUM(Inputs!AJ86,Inputs!AJ88,Inputs!AJ90) -> 2494846.181 | AK10: =SUM(Inputs!AK86,Inputs!AK88,Inputs!AK90) -> 2397897.342 | AL10: =SUM(Inputs!AL86,Inputs!AL88,Inputs!AL90) -> 2305166.263 | AM10: =SUM(Inputs!AM86,Inputs!AM88,Inputs!AM90) -> 2211067.262 | AN10: =SUM(Inputs!AN86,Inputs!AN88,Inputs!AN90) -> 2109600.433 | AO10: =SUM(Inputs!AO86,Inputs!AO88,Inputs!AO90) -> 2016641.367 | AP10: =SUM(Inputs!AP86,Inputs!AP88,Inputs!AP90) -> 1926874.118 | AQ10: =SUM(Inputs!AQ86,Inputs!AQ88,Inputs!AQ90) -> 1922770.353 | AR10: =SUM(Inputs!AR86,Inputs!AR88,Inputs!AR90) -> 1831635.182
A11: Meters, PRS, Telemetry | E11: =SUM(Inputs!E84,Inputs!E87,Inputs!E89,Inputs!E91,Inputs!E92) -> 485054.132 | F11: =SUM(Inputs!F84,Inputs!F87,Inputs!F89,Inputs!F91,Inputs!F92) -> 907299.5312 | G11: =SUM(Inputs!G84,Inputs!G87,Inputs!G89,Inputs!G91,Inputs!G92) -> 1923187.422 | H11: =SUM(Inputs!H84,Inputs!H87,Inputs!H89,Inputs!H91,Inputs!H92)+Inputs!H141 -> 984043.8806 | I11: =SUM(Inputs!I84,Inputs!I87,Inputs!I89,Inputs!I91,Inputs!I92)+Inputs!I141 -> 1056773.134 | J11: =SUM(Inputs!J84,Inputs!J87,Inputs!J89,Inputs!J91,Inputs!J92)+Inputs!J141 -> 1371365.724 | K11: =SUM(Inputs!K84,Inputs!K87,Inputs!K89,Inputs!K91,Inputs!K92)+Inputs!K141 -> 1490095.827 | L11: =SUM(Inputs!L84,Inputs!L87,Inputs!L89,Inputs!L91,Inputs!L92)+Inputs!L141 -> 1261869.925 | M11: =SUM(Inputs!M84,Inputs!M87,Inputs!M89,Inputs!M91,Inputs!M92)+Inputs!M141 -> 1101163.95 | N11: =SUM(Inputs!N84,Inputs!N87,Inputs!N89,Inputs!N91,Inputs!N92)+Inputs!N141 -> 1203206.368 | O11: =SUM(Inputs!O84,Inputs!O87,Inputs!O89,Inputs!O91,Inputs!O92)+Inputs!O141 -> 1048416.29 | P11: =SUM(Inputs!P84,Inputs!P87,Inputs!P89,Inputs!P91,Inputs!P92) -> 1164532.526 | Q11: =SUM(Inputs!Q84,Inputs!Q87,Inputs!Q89,Inputs!Q91,Inputs!Q92) -> 1250444.11 | R11: =SUM(Inputs!R84,Inputs!R87,Inputs!R89,Inputs!R91,Inputs!R92) -> 1313314.052 | S11: =SUM(Inputs!S84,Inputs!S87,Inputs!S89,Inputs!S91,Inputs!S92) -> 1376555.063 | T11: =SUM(Inputs!T84,Inputs!T87,Inputs!T89,Inputs!T91,Inputs!T92) -> 1427781.052 | U11: =SUM(Inputs!U84,Inputs!U87,Inputs!U89,Inputs!U91,Inputs!U92) -> 1485218.427 | V11: =SUM(Inputs!V84,Inputs!V87,Inputs!V89,Inputs!V91,Inputs!V92) -> 1474071.515 | W11: =SUM(Inputs!W84,Inputs!W87,Inputs!W89,Inputs!W91,Inputs!W92) -> 1509756.668 | X11: =SUM(Inputs!X84,Inputs!X87,Inputs!X89,Inputs!X91,Inputs!X92) -> 1519949.025 | Y11: =SUM(Inputs!Y84,Inputs!Y87,Inputs!Y89,Inputs!Y91,Inputs!Y92) -> 1655449.874 | Z11: =SUM(Inputs!Z84,Inputs!Z87,Inputs!Z89,Inputs!Z91,Inputs!Z92) -> 1774887.99 | AA11: =SUM(Inputs!AA84,Inputs!AA87,Inputs!AA89,Inputs!AA91,Inputs!AA92) -> 2022070.247 | AB11: =SUM(Inputs!AB84,Inputs!AB87,Inputs!AB89,Inputs!AB91,Inputs!AB92) -> 2322683.134 | AC11: =SUM(Inputs!AC84,Inputs!AC87,Inputs!AC89,Inputs!AC91,Inputs!AC92) -> 2192557.292 | AD11: =SUM(Inputs!AD84,Inputs!AD87,Inputs!AD89,Inputs!AD91,Inputs!AD92) -> 2349928.676 | AE11: =SUM(Inputs!AE84,Inputs!AE87,Inputs!AE89,Inputs!AE91,Inputs!AE92) -> 2527812.348 | AF11: =SUM(Inputs!AF84,Inputs!AF87,Inputs!AF89,Inputs!AF91,Inputs!AF92) -> 2273020.535 | AG11: =SUM(Inputs!AG84,Inputs!AG87,Inputs!AG89,Inputs!AG91,Inputs!AG92) -> 2326350.648 | AH11: =SUM(Inputs!AH84,Inputs!AH87,Inputs!AH89,Inputs!AH91,Inputs!AH92) -> 2175601.47 | AI11: =SUM(Inputs!AI84,Inputs!AI87,Inputs!AI89,Inputs!AI91,Inputs!AI92) -> 2011871.95 | AJ11: =SUM(Inputs!AJ84,Inputs!AJ87,Inputs!AJ89,Inputs!AJ91,Inputs!AJ92) -> 2212739.924 | AK11: =SUM(Inputs!AK84,Inputs!AK87,Inputs!AK89,Inputs!AK91,Inputs!AK92) -> 2272174.525 | AL11: =SUM(Inputs!AL84,Inputs!AL87,Inputs!AL89,Inputs!AL91,Inputs!AL92) -> 2310075.581 | AM11: =SUM(Inputs!AM84,Inputs!AM87,Inputs!AM89,Inputs!AM91,Inputs!AM92) -> 2354445.367 | AN11: =SUM(Inputs!AN84,Inputs!AN87,Inputs!AN89,Inputs!AN91,Inputs!AN92) -> 2388957.441 | AO11: =SUM(Inputs!AO84,Inputs!AO87,Inputs!AO89,Inputs!AO91,Inputs!AO92) -> 2413723.345 | AP11: =SUM(Inputs!AP84,Inputs!AP87,Inputs!AP89,Inputs!AP91,Inputs!AP92) -> 2305669.076 | AQ11: =SUM(Inputs!AQ84,Inputs!AQ87,Inputs!AQ89,Inputs!AQ91,Inputs!AQ92) -> 2329814.203 | AR11: =SUM(Inputs!AR84,Inputs!AR87,Inputs!AR89,Inputs!AR91,Inputs!AR92) -> 2307741.057
A12: Other Capex | E12: =Inputs!E93 -> 414551.8925 | F12: =Inputs!F93 -> 72300.80662 | G12: =Inputs!G93 -> 794208.8935 | H12: =Inputs!H93+Inputs!H142 -> 58886.83448 | I12: =Inputs!I93+Inputs!I142 -> 58297.96614 | J12: =Inputs!J93+Inputs!J142 -> -158656.3484 | K12: =Inputs!K93+Inputs!K142 -> 57137.83661 | L12: =Inputs!L93+Inputs!L142 -> 56566.45824 | M12: =Inputs!M93+Inputs!M142 -> 123812.4304 | N12: =Inputs!N93+Inputs!N142 -> 23205.60363 | O12: =Inputs!O93+Inputs!O142 -> 22150.80346 | P12: =Inputs!P93 -> 578567.4318 | Q12: =Inputs!Q93 -> 126785.7362 | R12: =Inputs!R93 -> 124557.9077 | S12: =Inputs!S93 -> 123743.8373 | T12: =Inputs!T93 -> 113636.7895 | U12: =Inputs!U93 -> 112894.0961 | V12: =Inputs!V93 -> 167612.8681 | W12: =Inputs!W93 -> 117904.1303 | X12: =Inputs!X93 -> 117904.1303 | Y12: =Inputs!Y93 -> 117904.1303 | Z12: =Inputs!Z93 -> 117904.1303 | AA12: =Inputs!AA93 -> 117904.1303 | AB12: =Inputs!AB93 -> 167612.8681 | AC12: =Inputs!AC93 -> 117904.1303 | AD12: =Inputs!AD93 -> 117904.1303 | AE12: =Inputs!AE93 -> 117904.1303 | AF12: =Inputs!AF93 -> 117904.1303 | AG12: =Inputs!AG93 -> 117904.1303 | AH12: =Inputs!AH93 -> 167612.8681 | AI12: =Inputs!AI93 -> 117904.1303 | AJ12: =Inputs!AJ93 -> 117904.1303 | AK12: =Inputs!AK93 -> 117904.1303 | AL12: =Inputs!AL93 -> 117904.1303 | AM12: =Inputs!AM93 -> 117904.1303 | AN12: =Inputs!AN93 -> 167612.8681 | AO12: =Inputs!AO93 -> 117904.1303 | AP12: =Inputs!AP93 -> 117904.1303 | AQ12: =Inputs!AQ93 -> 117904.1303 | AR12: =Inputs!AR93 -> 117904.1303
A13: Capitalised Under-recoveries | P13: =IF(Inputs!B127=Inputs!B128,Inputs!O127,IF(Inputs!B127=Inputs!B129,Inputs!O127,0)) -> 0
A14: Total capex | E14: =SUM(E9:E13) -> 10451105.8 | F14: =SUM(F9:F13) -> 13652729.19 | G14: 13735028.07 | H14: =SUM(H9:H13) -> 12114461.22 | I14: 11213747.42 | J14: 12937863.07 | K14: 14963625.47 | L14: 10789865.15 | M14: 6627178.791 | N14: 10249207.6 | O14: 11411904.17 | P14: =SUM(P9:P13) -> 17021203.69 | Q14: =SUM(Q9:Q13) -> 14216331.13 | R14: =SUM(R9:R13) -> 14411628.56 | S14: 14691507.89 | T14: 15040587.26 | U14: 15263536.64 | V14: 13494089.62 | W14: 12660107.9 | X14: 12869613.81 | Y14: 10299121.53 | Z14: 8046899.945 | AA14: 8046777.495 | AB14: 8185352.289 | AC14: 7805560.003 | AD14: 7756672.577 | AE14: 7831927.842 | AF14: 7372662.442 | AG14: 7328344.316 | AH14: 7125811.438 | AI14: 6817976.022 | AJ14: 6824556.19 | AK14: 6786079.359 | AL14: 6731004.948 | AM14: 6680980.562 | AN14: 6662017.255 | AO14: 6543529.212 | AP14: 6343851.66 | AQ14: 6370917.708 | AR14: 6256315.38
A15: Check | E15: =ROUND(DAV!E14,0)=ROUND(SUM(Inputs!E83:E94),0) -> TRUE | F15: =ROUND(DAV!F14,0)=ROUND(SUM(Inputs!F83:F94),0) -> TRUE | G15: =ROUND(DAV!G14,0)=ROUND(SUM(Inputs!G83:G94),0) -> TRUE | H15: =ROUND(DAV!H14,0)=ROUND(SUM(Inputs!H83:H94)+SUM(Inputs!H140:H142),0) -> TRUE | I15: =ROUND(DAV!I14,0)=ROUND(SUM(Inputs!I83:I94)+SUM(Inputs!I140:I142),0) -> TRUE | J15: =ROUND(DAV!J14,0)=ROUND(SUM(Inputs!J83:J94)+SUM(Inputs!J140:J142),0) -> TRUE | K15: =ROUND(DAV!K14,0)=ROUND(SUM(Inputs!K83:K94)+SUM(Inputs!K140:K142),0) -> TRUE | L15: =ROUND(DAV!L14,0)=ROUND(SUM(Inputs!L83:L94)+SUM(Inputs!L140:L142),0) -> TRUE | M15: =ROUND(DAV!M14,0)=ROUND(SUM(Inputs!M83:M94)+SUM(Inputs!M140:M142),0) -> TRUE | N15: =ROUND(DAV!N14,0)=ROUND(SUM(Inputs!N83:N94)+SUM(Inputs!N140:N142),0) -> TRUE | O15: =ROUND(DAV!O14,0)=ROUND(SUM(Inputs!O83:O94)+SUM(Inputs!O140:O142),0) -> TRUE | P15: =ROUND(DAV!P14,0)=ROUND(SUM(Inputs!P83:P94)+Inputs!O127,0) -> TRUE | Q15: =ROUND(DAV!Q14,0)=ROUND(SUM(Inputs!Q83:Q94),0) -> TRUE | R15: =ROUND(DAV!R14,0)=ROUND(SUM(Inputs!R83:R94),0) -> TRUE | S15: =ROUND(DAV!S14,0)=ROUND(SUM(Inputs!S83:S94),0) -> TRUE | T15: =ROUND(DAV!T14,0)=ROUND(SUM(Inputs!T83:T94),0) -> TRUE | U15: =ROUND(DAV!U14,0)=ROUND(SUM(Inputs!U83:U94),0) -> TRUE | V15: =ROUND(DAV!V14,0)=ROUND(SUM(Inputs!V83:V94),0) -> TRUE | W15: =ROUND(DAV!W14,0)=ROUND(SUM(Inputs!W83:W94),0) -> TRUE | X15: =ROUND(DAV!X14,0)=ROUND(SUM(Inputs!X83:X94),0) -> TRUE | Y15: =ROUND(DAV!Y14,0)=ROUND(SUM(Inputs!Y83:Y94),0) -> TRUE | Z15: =ROUND(DAV!Z14,0)=ROUND(SUM(Inputs!Z83:Z94),0) -> TRUE | AA15: =ROUND(DAV!AA14,0)=ROUND(SUM(Inputs!AA83:AA94),0) -> TRUE | AB15: =ROUND(DAV!AB14,0)=ROUND(SUM(Inputs!AB83:AB94),0) -> TRUE | AC15: =ROUND(DAV!AC14,0)=ROUND(SUM(Inputs!AC83:AC94),0) -> TRUE | AD15: =ROUND(DAV!AD14,0)=ROUND(SUM(Inputs!AD83:AD94),0) -> TRUE | AE15: =ROUND(DAV!AE14,0)=ROUND(SUM(Inputs!AE83:AE94),0) -> TRUE | AF15: =ROUND(DAV!AF14,0)=ROUND(SUM(Inputs!AF83:AF94),0) -> TRUE | AG15: =ROUND(DAV!AG14,0)=ROUND(SUM(Inputs!AG83:AG94),0) -> TRUE | AH15: =ROUND(DAV!AH14,0)=ROUND(SUM(Inputs!AH83:AH94),0) -> TRUE | AI15: =ROUND(DAV!AI14,0)=ROUND(SUM(Inputs!AI83:AI94),0) -> TRUE | AJ15: =ROUND(DAV!AJ14,0)=ROUND(SUM(Inputs!AJ83:AJ94),0) -> TRUE | AK15: =ROUND(DAV!AK14,0)=ROUND(SUM(Inputs!AK83:AK94),0) -> TRUE | AL15: =ROUND(DAV!AL14,0)=ROUND(SUM(Inputs!AL83:AL94),0) -> TRUE | AM15: =ROUND(DAV!AM14,0)=ROUND(SUM(Inputs!AM83:AM94),0) -> TRUE | AN15: =ROUND(DAV!AN14,0)=ROUND(SUM(Inputs!AN83:AN94),0) -> TRUE | AO15: =ROUND(DAV!AO14,0)=ROUND(SUM(Inputs!AO83:AO94),0) -> TRUE | AP15: =ROUND(DAV!AP14,0)=ROUND(SUM(Inputs!AP83:AP94),0) -> TRUE | AQ15: =ROUND(DAV!AQ14,0)=ROUND(SUM(Inputs!AQ83:AQ94),0) -> TRUE | AR15: =ROUND(DAV!AR14,0)=ROUND(SUM(Inputs!AR83:AR94),0) -> TRUE
A18: Opening DAV (Capex Only) | C18: =[8]Inputs!B50 -> Mains | D18: =Inputs!D132 -> 1845762.794
C19: =[8]Inputs!B51 -> Other Capex | D19: =Inputs!D133 -> 449375.3051
D20: =SUM(D17:D19) -> 2295138.099
A22: Depreciation | C22: Useful Life
A23: Opening DAV | C23: 40 | E23: =(($D$18+$D$19)/$C$23) -> 57378.45246 | F23: =(($D$18+$D$19)/$C$23) -> 57378.45246 | G23: =(($D$18+$D$19)/$C$23) -> 57378.45246 | H23: 57378.45246 | I23: 57378.45246 | J23: 57378.45246 | K23: 57378.45246 | L23: 57378.45246 | M23: 57378.45246 | N23: 57378.45246 | O23: 57378.45246 | P23: 57378.45246 | Q23: 57378.45246 | R23: 57378.45246 | S23: 57378.45246 | T23: 57378.45246 | U23: 57378.45246 | V23: 57378.45246 | W23: 57378.45246 | X23: 57378.45246 | Y23: 57378.45246 | Z23: 57378.45246 | AA23: 57378.45246 | AB23: 57378.45246 | AC23: 57378.45246 | AD23: 57378.45246 | AE23: 57378.45246 | AF23: 57378.45246 | AG23: 57378.45246 | AH23: 57378.45246 | AI23: 57378.45246 | AJ23: 57378.45246 | AK23: 57378.45246 | AL23: 57378.45246 | AM23: 57378.45246 | AN23: 57378.45246 | AO23: 57378.45246 | AP23: 57378.45246 | AQ23: 57378.45246 | AR23: 57378.45246
A24: Mains | C24: 40 | E24: =(SUM($D$9:E9)/$C$24) -> 229096.292 | F24: =(SUM($D$9:F9)/$C$24) -> 528554.243 | G24: =(SUM($D$9:G9)/$C$24) -> 762043.0753 | H24: =(SUM($D$9:H9)/$C$24) -> 1054591.423 | I24: =(SUM($D$9:I9)/$C$24) -> 1339874.346 | J24: =(SUM($D$9:J9)/$C$24) -> 1541585.561 | K24: =(SUM($D$9:K9)/$C$24) -> 1700648.554 | L24: =(SUM($D$9:L9)/$C$24) -> 1834433.797 | M24: =(SUM($D$9:M9)/$C$24) -> 2037305.103 | N24: =(SUM($D$9:N9)/$C$24) -> 2198131.211 | O24: =(SUM($D$9:O9)/$C$24) -> 2342515.26 | P24: =(SUM($D$9:P9)/$C$24) -> 2636739.86 | Q24: =(SUM($D$9:Q9)/$C$24) -> 2863201.03 | R24: =(SUM($D$9:R9)/$C$24) -> 3086347.125 | S24: =(SUM($D$9:S9)/$C$24) -> 3309225.253 | T24: =(SUM($D$9:T9)/$C$24) -> 3534177 | U24: =(SUM($D$9:U9)/$C$24) -> 3759832.066 | V24: =(SUM($D$9:V9)/$C$24) -> 3942854.743 | W24: =(SUM($D$9:W9)/$C$24) -> 4104911.093 | X24: =(SUM($D$9:X9)/$C$24) -> 4273972.175 | Y24: =(SUM($D$9:Y9)/$C$24) -> 4379683.703 | Z24: =(SUM($D$9:Z9)/$C$24) -> 4431156.368 | AA24: =(SUM($D$9:AA9)/$C$24) -> 4482395.999 | AB24: =(SUM($D$9:AB9)/$C$24) -> 4533366.091 | AC24: =(SUM($D$9:AC9)/$C$24) -> 4584107.737 | AD24: =(SUM($D$9:AD9)/$C$24) -> 4634596.308 | AE24: =(SUM($D$9:AE9)/$C$24) -> 4685073.981 | AF24: =(SUM($D$9:AF9)/$C$24) -> 4735295.807 | AG24: =(SUM($D$9:AG9)/$C$24) -> 4785514.397 | AH24: =(SUM($D$9:AH9)/$C$24) -> 4835721.99 | AI24: =(SUM($D$9:AI9)/$C$24) -> 4885922.13 | AJ24: =(SUM($D$9:AJ9)/$C$24) -> 4935898.779 | AK24: =(SUM($D$9:AK9)/$C$24) -> 4985851.363 | AL24: =(SUM($D$9:AL9)/$C$24) -> 5035797.838 | AM24: =(SUM($D$9:AM9)/$C$24) -> 5085736.933 | AN24: =(SUM($D$9:AN9)/$C$24) -> 5135633.095 | AO24: =(SUM($D$9:AO9)/$C$24) -> 5185514.605 | AP24: =(SUM($D$9:AP9)/$C$24) -> 5235349.713 | AQ24: =(SUM($D$9:AQ9)/$C$24) -> 5285360.439 | AR24: =(SUM($D$9:AR9)/$C$24) -> 5335336.314
A25: Services | C25: 40 | E25: =SUM($D$10:E10)/$C$25 -> 9691.202423 | F25: =SUM($D$10:F10)/$C$25 -> 27061.47278 | G25: =SUM($D$10:G10)/$C$25 -> 69013.43437 | H25: =SUM($D$10:H10)/$C$25 -> 53253.34934 | I25: =SUM($D$10:I10)/$C$25 -> 20437.33442 | J25: =SUM($D$10:J10)/$C$25 -> 111854.9618 | K25: =SUM($D$10:K10)/$C$25 -> 288201.7637 | L25: =SUM($D$10:L10)/$C$25 -> 391202.2404 | M25: =SUM($D$10:M10)/$C$25 -> 323385.9943 | N25: =SUM($D$10:N10)/$C$25 -> 388129.7773 | O25: =SUM($D$10:O10)/$C$25 -> 502279.1553 | P25: =SUM($D$10:P10)/$C$25 -> 590007.1476 | Q25: =SUM($D$10:Q10)/$C$25 -> 684523.5097 | R25: =SUM($D$10:R10)/$C$25 -> 785721.3299 | S25: =SUM($D$10:S10)/$C$25 -> 892623.4269 | T25: =SUM($D$10:T10)/$C$25 -> 1005150.915 | U25: =SUM($D$10:U10)/$C$25 -> 1121131.452 | V25: =SUM($D$10:V10)/$C$25 -> 1234418.906 | W25: =SUM($D$10:W10)/$C$25 -> 1348173.734 | X25: =SUM($D$10:X10)/$C$25 -> 1459906.668 | Y25: =SUM($D$10:Y10)/$C$25 -> 1567339.328 | Z25: =SUM($D$10:Z10)/$C$25 -> 1669719.359 | AA25: =SUM($D$10:AA10)/$C$25 -> 1766149.806 | AB25: =SUM($D$10:AB10)/$C$25 -> 1857556.121 | AC25: =SUM($D$10:AC10)/$C$25 -> 1944191.939 | AD25: =SUM($D$10:AD10)/$C$25 -> 2025924.363 | AE25: =SUM($D$10:AE10)/$C$25 -> 2105101.973 | AF25: =SUM($D$10:AF10)/$C$25 -> 2179423.592 | AG25: =SUM($D$10:AG10)/$C$25 -> 2251307.241 | AH25: =SUM($D$10:AH10)/$C$25 -> 2320664.575 | AI25: =SUM($D$10:AI10)/$C$25 -> 2387669.433 | AJ25: =SUM($D$10:AJ10)/$C$25 -> 2450040.588 | AK25: =SUM($D$10:AK10)/$C$25 -> 2509988.021 | AL25: =SUM($D$10:AL10)/$C$25 -> 2567617.178 | AM25: =SUM($D$10:AM10)/$C$25 -> 2622893.86 | AN25: =SUM($D$10:AN10)/$C$25 -> 2675633.87 | AO25: =SUM($D$10:AO10)/$C$25 -> 2726049.905 | AP25: =SUM($D$10:AP10)/$C$25 -> 2774221.758 | AQ25: =SUM($D$10:AQ10)/$C$25 -> 2822291.016 | AR25: =SUM($D$10:AR10)/$C$25 -> 2868081.896
A26: Meters, PRS, Telemetry | C26: 15 | E26: =SUM($E$11:E11)/$C$26 -> 32336.94213 | F26: =SUM($E$11:F11)/$C$26 -> 92823.57754 | G26: =SUM($E$11:G11)/$C$26 -> 221036.0723 | H26: =SUM($E$11:H11)/$C$26 -> 286638.9977 | I26: =SUM($E$11:I11)/$C$26 -> 357090.54 | J26: =SUM($E$11:J11)/$C$26 -> 448514.9216 | K26: =SUM($E$11:K11)/$C$26 -> 547854.6434 | L26: =SUM($E$11:L11)/$C$26 -> 631979.3051 | M26: =SUM($E$11:M11)/$C$26 -> 705390.2351 | N26: =SUM($E$11:N11)/$C$26 -> 785603.9929 | O26: =SUM($E$11:O11)/$C$26 -> 855498.4122 | P26: =SUM($E$11:P11)/$C$26 -> 933133.9139 | Q26: =SUM($E$11:Q11)/$C$26 -> 1016496.855 | R26: =SUM($E$11:R11)/$C$26 -> 1104051.125 | S26: =SUM(E11:S11)/$C$26 -> 1195821.462 | T26: 1258669.924 | U26: 1297197.85 | V26: 1267256.79 | W26: 1302304.309 | X26: 1333182.701 | Y26: 1352121.645 | Z26: 1371107.789 | AA26: 1421787.81 | AB26: 1503222.423 | AC26: 1569179.151 | AD26: 1655946.644 | AE26: 1746831.965 | AF26: 1815003.727 | AG26: 1882539.5 | AH26: 1935809.26 | AI26: =SUM(U11:AI11)/$C$26 -> 1974748.653 | AJ26: =SUM(V11:AJ11)/$C$26 -> 2023250.086 | AK26: =SUM(W11:AK11)/$C$26 -> 2076456.954 | AL26: =SUM(X11:AL11)/$C$26 -> 2129811.548 | AM26: =SUM(Y11:AM11)/$C$26 -> 2185444.638 | AN26: =SUM(Z11:AN11)/$C$26 -> 2234345.142 | AO26: =SUM(AA11:AO11)/$C$26 -> 2276934.166 | AP26: =SUM(AB11:AP11)/$C$26 -> 2295840.754 | AQ26: =SUM(AC11:AQ11)/$C$26 -> 2296316.159 | AR26: =SUM(AD11:AR11)/$C$26 -> 2303995.076
A27: Other Capex | C27: 5 | E27: =SUM($E$12:E12)/$C$27 -> 82910.37849 | F27: =SUM($E$12:F12)/$C$27 -> 97370.53981 | G27: =SUM($E$12:G12)/$C$27 -> 256212.3185 | H27: =SUM($E$12:H12)/$C$27 -> 267989.6854 | I27: =SUM(E12:I12)/$C$27 -> 279649.2786 | J27: 165007.6305 | K27: 161975.0365 | L27: 14446.54942 | M27: 27431.6686 | N27: 20413.19609 | O27: 56574.62646 | P27: 160860.5455 | Q27: 174904.4011 | R27: 175053.4965 | S27: 195161.1433 | T27: 213458.3405 | U27: 120323.6734 | V27: 128489.0997 | W27: 127158.3443 | X27: 125990.4029 | Y27: 126843.871 | Z27: 127845.8778 | AA27: 117904.1303 | AB27: 127845.8778 | AC27: 127845.8778 | AD27: 127845.8778 | AE27: 127845.8778 | AF27: 127845.8778 | AG27: 117904.1303 | AH27: 127845.8778 | AI27: =SUM(AE12:AI12)/$C$27 -> 127845.8778 | AJ27: =SUM(AF12:AJ12)/$C$27 -> 127845.8778 | AK27: =SUM(AG12:AK12)/$C$27 -> 127845.8778 | AL27: =SUM(AH12:AL12)/$C$27 -> 127845.8778 | AM27: =SUM(AI12:AM12)/$C$27 -> 117904.1303 | AN27: =SUM(AJ12:AN12)/$C$27 -> 127845.8778 | AO27: =SUM(AK12:AO12)/$C$27 -> 127845.8778 | AP27: =SUM(AL12:AP12)/$C$27 -> 127845.8778 | AQ27: =SUM(AM12:AQ12)/$C$27 -> 127845.8778 | AR27: =SUM(AN12:AR12)/$C$27 -> 127845.8778
A28: Capitalised Under-recoveries | C28: =IF(D28=D29,19,29) -> 19 | D28: 30 yr Rec Period | P28: =P13/C28 -> 0 | Q28: =P28 -> 0 | R28: =Q28 -> 0 | S28: 0 | T28: 0 | U28: 0 | V28: 0 | W28: 0 | X28: 0 | Y28: 0 | Z28: 0 | AA28: 0 | AB28: 0 | AC28: 0 | AD28: 0 | AE28: 0 | AF28: 0 | AG28: 0 | AH28: 0 | AI28: =IF(D28=D29,0,AH28) -> 0 | AJ28: =IF(E28=E29,0,AI28) -> 0 | AK28: =IF(F28=F29,0,AJ28) -> 0 | AL28: 0 | AM28: 0 | AN28: 0 | AO28: 0 | AP28: 0 | AQ28: 0 | AR28: 0
A29: Total depreciation | D29: 30 yr Rec Period | E29: =SUM(E23:E28) -> 411413.2675 | F29: =SUM(F23:F28) -> 803188.2856 | G29: 1365683.353 | H29: 1719851.908 | I29: 2054429.951 | J29: 2324341.527 | K29: 2756058.45 | L29: 2929440.344 | M29: 3150891.453 | N29: 3449656.629 | O29: 3814245.906 | P29: =SUM(P23:P28) -> 4378119.92 | Q29: 4796504.248 | R29: 5208551.529 | S29: 5650209.738 | T29: 6068834.632 | U29: 6355863.494 | V29: 6630397.991 | W29: 6939925.932 | X29: 7250430.4 | Y29: 7483366.999 | Z29: 7657207.846 | AA29: 7845616.198 | AB29: 8079368.965 | AC29: 8282703.158 | AD29: 8501691.644 | AE29: 8722232.25 | AF29: 8914947.456 | AG29: 9094643.72 | AH29: 9277420.156 | AI29: =SUM(AI23:AI28) -> 9433564.547 | AJ29: =SUM(AJ23:AJ28) -> 9594413.784 | AK29: =SUM(AK23:AK28) -> 9757520.669 | AL29: =SUM(AL23:AL28) -> 9918450.894 | AM29: =SUM(AM23:AM28) -> 10069358.01 | AN29: =SUM(AN23:AN28) -> 10230836.44 | AO29: =SUM(AO23:AO28) -> 10373723.01 | AP29: =SUM(AP23:AP28) -> 10490636.56 | AQ29: =SUM(AQ23:AQ28) -> 10589191.94 | AR29: =SUM(AR23:AR28) -> 10692637.62
D30: 40 yr Rec Period
A31: DAV
A32: Opening balance | E32: =D35 -> 2295138.099 | F32: =E35 -> 12334830.63 | G32: 25184371.54 | H32: 37553716.26 | I32: 47948325.57 | J32: 57107643.03 | K32: 67721164.58 | L32: 79928731.6 | M32: 87789156.41 | N32: 91265443.74 | O32: 98064994.71 | P32: =O35 -> 105662653 | Q32: 118305736.7 | R32: 127725563.6 | S32: 136928640.7 | T32: 145969938.8 | U32: 154941691.4 | V32: 163849364.6 | W32: 170713056.2 | X32: 176433238.2 | Y32: 182052421.6 | Z32: 184868176.1 | AA32: 185257868.2 | AB32: 185459029.5 | AC32: 185565012.8 | AD32: 185087869.7 | AE32: 184342850.6 | AF32: 183452546.2 | AG32: 181910261.2 | AH32: 180143961.8 | AI32: =AH35 -> 177992353.1 | AJ32: =AI35 -> 175376764.5 | AK32: =AJ35 -> 172606907 | AL32: =AK35 -> 169635465.6 | AM32: =AL35 -> 166448019.7 | AN32: =AM35 -> 163059642.2 | AO32: =AN35 -> 159490823.1 | AP32: =AO35 -> 155660629.3 | AQ32: =AP35 -> 151513844.4 | AR32: =AQ35 -> 147295570.1
A33: Capex | E33: =E14 -> 10451105.8 | F33: =F14 -> 13652729.19 | G33: =G14 -> 13735028.07 | H33: 12114461.22 | I33: 11213747.42 | J33: 12937863.07 | K33: 14963625.47 | L33: =L14 -> 10789865.15 | M33: 6627178.791 | N33: 10249207.6 | O33: 11411904.17 | P33: =P14 -> 17021203.69 | Q33: 14216331.13 | R33: 14411628.56 | S33: 14691507.89 | T33: 15040587.26 | U33: 15263536.64 | V33: 13494089.62 | W33: 12660107.9 | X33: 12869613.81 | Y33: 10299121.53 | Z33: 8046899.945 | AA33: 8046777.495 | AB33: 8185352.289 | AC33: 7805560.003 | AD33: 7756672.577 | AE33: 7831927.842 | AF33: 7372662.442 | AG33: 7328344.316 | AH33: 7125811.438 | AI33: =AI14 -> 6817976.022 | AJ33: 6824556.19 | AK33: 6786079.359 | AL33: 6731004.948 | AM33: 6680980.562 | AN33: 6662017.255 | AO33: 6543529.212 | AP33: 6343851.66 | AQ33: 6370917.708 | AR33: =AR14 -> 6256315.38
A34: Depreciation | E34: =-E29 -> -411413.2675 | F34: =-F29 -> -803188.2856 | G34: =-G29 -> -1365683.353 | H34: -1719851.908 | I34: -2054429.951 | J34: -2324341.527 | K34: -2756058.45 | L34: =-L29 -> -2929440.344 | M34: =-M29 -> -3150891.453 | N34: -3449656.629 | O34: -3814245.906 | P34: =-P29 -> -4378119.92 | Q34: -4796504.248 | R34: -5208551.529 | S34: -5650209.738 | T34: -6068834.632 | U34: -6355863.494 | V34: -6630397.991 | W34: -6939925.932 | X34: -7250430.4 | Y34: -7483366.999 | Z34: -7657207.846 | AA34: -7845616.198 | AB34: -8079368.965 | AC34: -8282703.158 | AD34: -8501691.644 | AE34: -8722232.25 | AF34: -8914947.456 | AG34: -9094643.72 | AH34: -9277420.156 | AI34: =-AI29 -> -9433564.547 | AJ34: -9594413.784 | AK34: -9757520.669 | AL34: -9918450.894 | AM34: -10069358.01 | AN34: -10230836.44 | AO34: -10373723.01 | AP34: -10490636.56 | AQ34: -10589191.94 | AR34: =-AR29 -> -10692637.62
A35: Closing balance | D35: =D20 -> 2295138.099 | E35: =SUM(E32:E34) -> 12334830.63 | F35: =SUM(F32:F34) -> 25184371.54 | G35: 37553716.26 | H35: 47948325.57 | I35: 57107643.03 | J35: 67721164.58 | K35: 79928731.6 | L35: 87789156.41 | M35: 91265443.74 | N35: 98064994.71 | O35: 105662653 | P35: =SUM(P32:P34) -> 118305736.7 | Q35: 127725563.6 | R35: 136928640.7 | S35: 145969938.8 | T35: 154941691.4 | U35: 163849364.6 | V35: 170713056.2 | W35: 176433238.2 | X35: 182052421.6 | Y35: 184868176.1 | Z35: 185257868.2 | AA35: 185459029.5 | AB35: 185565012.8 | AC35: 185087869.7 | AD35: 184342850.6 | AE35: 183452546.2 | AF35: 181910261.2 | AG35: 180143961.8 | AH35: 177992353.1 | AI35: =SUM(AI32:AI34) -> 175376764.5 | AJ35: 172606907 | AK35: 169635465.6 | AL35: 166448019.7 | AM35: 163059642.2 | AN35: 159490823.1 | AO35: 155660629.3 | AP35: 151513844.4 | AQ35: 147295570.1 | AR35: =SUM(AR32:AR34) -> 142859247.9

Sheet GD17 Pi's Calc - 30 yrs (hidden)
A1: =242.7/193.4 -> 1.254912099
A2: Firmus Energy P Tariff Model - Calculation of Pi tariffs, Allowed Revenues, PA and TRV | D2: Return
D3: GD17 | E3: =4.3% -> 0.043 | I3: =IF(DAV!D28=DAV!D30,"ADJUST DAV RECOVERY PERIOD FOR U/Rs IN DAV TAB CELL D28","") -> 
B4: £2014 | D4: Post GD17 | E4: =E3 -> 0.043
B5: £'000
A6: Real Return pa | D6: =E3 -> 0.043 | E6: =D6 -> 0.043 | F6: =E6 -> 0.043 | G6: =F6 -> 0.043 | H6: =G6 -> 0.043 | I6: =H6 -> 0.043 | J6: =E4 -> 0.043 | K6: =J6 -> 0.043 | L6: =K6 -> 0.043 | M6: 0.043 | N6: 0.043 | O6: 0.043 | P6: 0.043 | Q6: 0.043 | R6: 0.043 | S6: 0.043 | T6: 0.043 | U6: 0.043 | V6: 0.043
A7: Discount Factor (Mid Yr) | B7: 0.5 | C7: 1 | D7: =D8*(1+D6*$B$7) -> 0.9793863854 | E7: =E8*(1+E6*$B$7) -> 0.9390089985 | F7: 0.9002962593 | G7: 0.8631795392 | H7: 0.8275930385 | I7: 0.7934736707 | J7: 0.7607609498 | K7: 0.7293968838 | L7: 0.6993258713 | M7: 0.6704946034 | N7: 0.6428519687 | O7: 0.6163489633 | P7: 0.5909386034 | Q7: 0.5665758422 | R7: 0.5432174901 | S7: 0.5208221382 | T7: 0.4993500845 | U7: 0.4787632642 | V7: 0.4590251814
A8: Discount Factor (Yr End) | C8: 1 | D8: =C8/(1+D6) -> 0.9587727709 | E8: 0.9192452261 | F8: 0.8813472926 | G8: 0.8450117858 | H8: 0.8101742912 | I8: 0.7767730501 | J8: 0.7447488496 | K8: =J8/(1+K6) -> 0.7140449181 | L8: 0.6846068246 | M8: 0.6563823822 | N8: 0.6293215553 | O8: 0.6033763713 | P8: 0.5785008354 | Q8: 0.5546508489 | R8: 0.5317841313 | S8: 0.509860145 | T8: 0.488840024 | U8: 0.4686865043 | V8: 0.4493638584
C12: 2016 | D12: 2017 | E12: =D12+1 -> 2018 | F12: 2019 | G12: 2020 | H12: 2021 | I12: 2022 | J12: 2023 | K12: 2024 | L12: 2025 | M12: 2026 | N12: 2027 | O12: 2028 | P12: 2029 | Q12: 2030 | R12: 2031 | S12: 2032 | T12: 2033 | U12: 2034 | V12: 2035
A14: Capex | D14: =Inputs!P102/1000 -> 17021.20369 | E14: =Inputs!Q102/1000 -> 14216.33113 | F14: =Inputs!R102/1000 -> 14411.62856 | G14: =Inputs!S102/1000 -> 14691.50789 | H14: =Inputs!T102/1000 -> 15040.58726 | I14: =Inputs!U102/1000 -> 15263.53664 | J14: =Inputs!V102/1000 -> 13494.08962 | K14: =Inputs!W102/1000 -> 12660.1079 | L14: =Inputs!X102/1000 -> 12869.61381 | M14: =Inputs!Y102/1000 -> 10299.12153 | N14: =Inputs!Z102/1000 -> 8046.899945 | O14: =Inputs!AA102/1000 -> 8046.777495 | P14: =Inputs!AB102/1000 -> 8185.352289 | Q14: =Inputs!AC102/1000 -> 7805.560003 | R14: =Inputs!AD102/1000 -> 7756.672577 | S14: =Inputs!AE102/1000 -> 7831.927842 | T14: =Inputs!AF102/1000 -> 7372.662442 | U14: =Inputs!AG102/1000 -> 7328.344316 | V14: =Inputs!AH102/1000 -> 7125.811438
A15: Opex | B15: GD14 | D15: =Inputs!P105/1000 -> 6334.386028 | E15: =Inputs!Q105/1000 -> 6293.11327 | F15: =Inputs!R105/1000 -> 6445.597512 | G15: =Inputs!S105/1000 -> 6656.073189 | H15: =Inputs!T105/1000 -> 6929.350922 | I15: =Inputs!U105/1000 -> 7205.284419 | J15: =Inputs!V105/1000 -> 7397.470412 | K15: =Inputs!W105/1000 -> 7498.577746 | L15: =Inputs!X105/1000 -> 7584.87339 | M15: =Inputs!Y105/1000 -> 7674.486935 | N15: =Inputs!Z105/1000 -> 7835.200126 | O15: =Inputs!AA105/1000 -> 8039.074976 | P15: =Inputs!AB105/1000 -> 8151.088155 | Q15: =Inputs!AC105/1000 -> 8248.818384 | R15: =Inputs!AD105/1000 -> 8311.137924 | S15: =Inputs!AE105/1000 -> 8247.445513 | T15: =Inputs!AF105/1000 -> 8152.646534 | U15: =Inputs!AG105/1000 -> 8137.499968 | V15: =Inputs!AH105/1000 -> 8256.464708
A16: Volumes (therms '000) | B16: 0.448441836 | C16: 2012 | D16: =SUM(D17:D22) -> 61980.12627 | E16: =SUM(E17:E22) -> 60443.23317 | F16: 62622.54611 | G16: 64913.30591 | H16: 67306.19843 | I16: 69782.40705 | J16: 71706.05477 | K16: 73510.59658 | L16: 75021.76342 | M16: 76693.03153 | N16: 77976.11928 | O16: 79338.5517 | P16: 80329.87051 | Q16: 81411.23098 | R16: 82139.49466 | S16: 82982.36908 | T16: 83503.7818 | U16: 84144.53405 | V16: 84493.12672
A17: V Dom/Very Small IC Tariff (<2,500 tpa) (P1) | B17: =B16/Inputs!K2*Inputs!M2 -> 0.4730165225 | C17: 2014 | D17: =Inputs!P109/1000 -> 11228.40338 | E17: =Inputs!Q109/1000 -> 12779.50099 | F17: =Inputs!R109/1000 -> 14462.35928 | G17: =Inputs!S109/1000 -> 16267.49701 | H17: =Inputs!T109/1000 -> 18185.43306 | I17: =Inputs!U109/1000 -> 20197.18604 | J17: =Inputs!V109/1000 -> 22038.98486 | K17: =Inputs!W109/1000 -> 23793.3842 | L17: =Inputs!X109/1000 -> 25471.14832 | M17: =Inputs!Y109/1000 -> 27086.07018 | N17: =Inputs!Z109/1000 -> 28567.20721 | O17: =Inputs!AA109/1000 -> 29962.67319 | P17: =Inputs!AB109/1000 -> 31228.31177 | Q17: =Inputs!AC109/1000 -> 32414.36535 | R17: =Inputs!AD109/1000 -> 33477.38658 | S17: =Inputs!AE109/1000 -> 34482.46817 | T17: =Inputs!AF109/1000 -> 35386.43889 | U17: =Inputs!AG109/1000 -> 36235.62298 | V17: =Inputs!AH109/1000 -> 37004.48944
A18: V Small/Med Tariff IC (2,500 - 25k tpa) (P2) | D18: =Inputs!P110/1000 -> 8335.677347 | E18: =Inputs!Q110/1000 -> 8849.510504 | F18: =Inputs!R110/1000 -> 9352.278011 | G18: =Inputs!S110/1000 -> 9844.149797 | H18: =Inputs!T110/1000 -> 10325.2935 | I18: =Inputs!U110/1000 -> 10795.87449 | J18: =Inputs!V110/1000 -> 11215.02207 | K18: =Inputs!W110/1000 -> 11602.4632 | L18: =Inputs!X110/1000 -> 11773.16459 | M18: =Inputs!Y110/1000 -> 12166.80949 | N18: =Inputs!Z110/1000 -> 12306.05888 | O18: =Inputs!AA110/1000 -> 12610.32399 | P18: =Inputs!AB110/1000 -> 12673.30288 | Q18: =Inputs!AC110/1000 -> 12905.90845 | R18: =Inputs!AD110/1000 -> 12908.44956 | S18: =Inputs!AE110/1000 -> 13083.54105 | T18: =Inputs!AF110/1000 -> 13038.28172 | U18: =Inputs!AG110/1000 -> 13167.14854 | V18: =Inputs!AH110/1000 -> 13084.17343
A19: V Large Tariff IC (25k - 75k tpa) (P3) | D19: =Inputs!P111/1000 -> 6380.452712 | E19: =Inputs!Q111/1000 -> 6374.076091 | F19: =Inputs!R111/1000 -> 6367.763236 | G19: =Inputs!S111/1000 -> 6361.51351 | H19: =Inputs!T111/1000 -> 6355.326281 | I19: =Inputs!U111/1000 -> 6349.200924 | J19: =Inputs!V111/1000 -> 6293.990481 | K19: =Inputs!W111/1000 -> 6238.780038 | L19: =Inputs!X111/1000 -> 6183.569596 | M19: =Inputs!Y111/1000 -> 6128.359153 | N19: =Inputs!Z111/1000 -> 6073.14871 | O19: =Inputs!AA111/1000 -> 6017.938267 | P19: =Inputs!AB111/1000 -> 5962.727824 | Q19: =Inputs!AC111/1000 -> 5907.517381 | R19: =Inputs!AD111/1000 -> 5852.306939 | S19: =Inputs!AE111/1000 -> 5797.096496 | T19: =Inputs!AF111/1000 -> 5741.886053 | U19: =Inputs!AG111/1000 -> 5686.67561 | V19: =Inputs!AH111/1000 -> 5631.465167
A20: V CHP Contract (>75k tpa) (P4) | D20: =Inputs!P112/1000 -> 1160.961109 | E20: =Inputs!Q112/1000 -> 927.1413658 | F20: =Inputs!R112/1000 -> 927.1413658 | G20: =Inputs!S112/1000 -> 927.1413658 | H20: =Inputs!T112/1000 -> 927.1413658 | I20: =Inputs!U112/1000 -> 927.1413658 | J20: =Inputs!V112/1000 -> 919.079267 | K20: =Inputs!W112/1000 -> 911.0171681 | L20: =Inputs!X112/1000 -> 902.9550693 | M20: =Inputs!Y112/1000 -> 894.8929705 | N20: =Inputs!Z112/1000 -> 886.8308716 | O20: =Inputs!AA112/1000 -> 878.7687728 | P20: =Inputs!AB112/1000 -> 870.706674 | Q20: =Inputs!AC112/1000 -> 862.6445751 | R20: =Inputs!AD112/1000 -> 854.5824763 | S20: =Inputs!AE112/1000 -> 846.5203775 | T20: =Inputs!AF112/1000 -> 838.4582786 | U20: =Inputs!AG112/1000 -> 830.3961798 | V20: =Inputs!AH112/1000 -> 822.334081
A21: V Firm Contract (>75k tpa) (P5) | D21: =Inputs!P113/1000 -> 13374.60601 | E21: =Inputs!Q113/1000 -> 13360.83565 | F21: =Inputs!R113/1000 -> 13360.83565 | G21: =Inputs!S113/1000 -> 13360.83565 | H21: =Inputs!T113/1000 -> 13360.83565 | I21: =Inputs!U113/1000 -> 13360.83565 | J21: =Inputs!V113/1000 -> 13244.65447 | K21: =Inputs!W113/1000 -> 13128.47329 | L21: =Inputs!X113/1000 -> 13012.29211 | M21: =Inputs!Y113/1000 -> 12896.11093 | N21: =Inputs!Z113/1000 -> 12779.92975 | O21: =Inputs!AA113/1000 -> 12663.74857 | P21: =Inputs!AB113/1000 -> 12547.56739 | Q21: =Inputs!AC113/1000 -> 12431.38621 | R21: =Inputs!AD113/1000 -> 12315.20503 | S21: =Inputs!AE113/1000 -> 12199.02386 | T21: =Inputs!AF113/1000 -> 12082.84268 | U21: =Inputs!AG113/1000 -> 11966.6615 | V21: =Inputs!AH113/1000 -> 11850.48032
A22: V Int Contract (>75k tpa) (P6) | D22: =Inputs!P114/1000 -> 21500.02571 | E22: =Inputs!Q114/1000 -> 18152.16857 | F22: =Inputs!R114/1000 -> 18152.16857 | G22: =Inputs!S114/1000 -> 18152.16857 | H22: =Inputs!T114/1000 -> 18152.16857 | I22: =Inputs!U114/1000 -> 18152.16857 | J22: =Inputs!V114/1000 -> 17994.32363 | K22: =Inputs!W114/1000 -> 17836.47868 | L22: =Inputs!X114/1000 -> 17678.63374 | M22: =Inputs!Y114/1000 -> 17520.78879 | N22: =Inputs!Z114/1000 -> 17362.94385 | O22: =Inputs!AA114/1000 -> 17205.09891 | P22: =Inputs!AB114/1000 -> 17047.25396 | Q22: =Inputs!AC114/1000 -> 16889.40902 | R22: =Inputs!AD114/1000 -> 16731.56407 | S22: =Inputs!AE114/1000 -> 16573.71913 | T22: =Inputs!AF114/1000 -> 16415.87419 | U22: =Inputs!AG114/1000 -> 16258.02924 | V22: =Inputs!AH114/1000 -> 16100.1843
A23: £/therm | B23: =B16*Inputs!B2 -> 0.4730165225 | C23: 2014 | D23: =D24/Inputs!M2*Inputs!M1 -> 0.4425825236
A24: P Dom/Very Small IC Tariff (<2,500 tpa) (P1) | D24: 0.4400043729 | E24: =D24 -> 0.4400043729 | F24: =E24 -> 0.4400043729 | G24: 0.4400043729 | H24: 0.4400043729 | I24: 0.4400043729 | J24: 0.4400043729 | K24: 0.4400043729 | L24: 0.4400043729 | M24: 0.4400043729 | N24: 0.4400043729 | O24: 0.4400043729 | P24: 0.4400043729 | Q24: 0.4400043729 | R24: 0.4400043729 | S24: 0.4400043729 | T24: 0.4400043729 | U24: 0.4400043729 | V24: =U24 -> 0.4400043729
A25: P Small/Med Tariff IC (2,500 - 25k tpa) (P2) | B25: Per GD14 Split - Needs Confirmed | C25: 0.7024932609 | D25: =$D$24*C25 -> 0.3091001067 | E25: =D25 -> 0.3091001067 | F25: 0.3091001067 | G25: 0.3091001067 | H25: 0.3091001067 | I25: 0.3091001067 | J25: 0.3091001067 | K25: 0.3091001067 | L25: 0.3091001067 | M25: 0.3091001067 | N25: 0.3091001067 | O25: 0.3091001067 | P25: 0.3091001067 | Q25: 0.3091001067 | R25: 0.3091001067 | S25: 0.3091001067 | T25: 0.3091001067 | U25: 0.3091001067 | V25: 0.3091001067
A26: P Large Tariff IC (25k - 75k tpa) (P3) | B26: Per GD14 Split - Needs Confirmed | C26: 0.6296632389 | D26: =$D$24*C26 -> 0.2770545786 | E26: 0.2770545786 | F26: 0.2770545786 | G26: 0.2770545786 | H26: 0.2770545786 | I26: 0.2770545786 | J26: 0.2770545786 | K26: 0.2770545786 | L26: 0.2770545786 | M26: 0.2770545786 | N26: 0.2770545786 | O26: 0.2770545786 | P26: 0.2770545786 | Q26: 0.2770545786 | R26: 0.2770545786 | S26: 0.2770545786 | T26: 0.2770545786 | U26: 0.2770545786 | V26: 0.2770545786
A27: P CHP Contract (>75k tpa) (P4) | B27: Per GD14 Split - Needs Confirmed | C27: 0.5900817098 | D27: =$D$24*C27 -> 0.2596385327 | E27: 0.2596385327 | F27: =E27 -> 0.2596385327 | G27: =F27 -> 0.2596385327 | H27: =G27 -> 0.2596385327 | I27: =H27 -> 0.2596385327 | J27: =I27 -> 0.2596385327 | K27: =J27 -> 0.2596385327 | L27: =K27 -> 0.2596385327 | M27: =L27 -> 0.2596385327 | N27: =M27 -> 0.2596385327 | O27: =N27 -> 0.2596385327 | P27: =O27 -> 0.2596385327 | Q27: =P27 -> 0.2596385327 | R27: =Q27 -> 0.2596385327 | S27: =R27 -> 0.2596385327 | T27: =S27 -> 0.2596385327 | U27: 0.2596385327 | V27: 0.2596385327
A28: P Firm Contract (>75k tpa) (P5) | B28: Per GD14 Split - Needs Confirmed | C28: 0.5900817098 | D28: =$D$24*C28 -> 0.2596385327 | E28: 0.2596385327 | F28: 0.2596385327 | G28: 0.2596385327 | H28: 0.2596385327 | I28: 0.2596385327 | J28: 0.2596385327 | K28: 0.2596385327 | L28: 0.2596385327 | M28: 0.2596385327 | N28: 0.2596385327 | O28: 0.2596385327 | P28: 0.2596385327 | Q28: 0.2596385327 | R28: 0.2596385327 | S28: 0.2596385327 | T28: 0.2596385327 | U28: 0.2596385327 | V28: 0.2596385327
A29: P Int Contract (>75k tpa) (P6) | B29: Per GD14 Split - Needs Confirmed | C29: 0.5900817098 | D29: =$D$24*C29 -> 0.2596385327 | E29: 0.2596385327 | F29: 0.2596385327 | G29: 0.2596385327 | H29: 0.2596385327 | I29: 0.2596385327 | J29: 0.2596385327 | K29: 0.2596385327 | L29: 0.2596385327 | M29: 0.2596385327 | N29: 0.2596385327 | O29: 0.2596385327 | P29: 0.2596385327 | Q29: 0.2596385327 | R29: 0.2596385327 | S29: 0.2596385327 | T29: 0.2596385327 | U29: 0.2596385327 | V29: 0.2596385327
A31: Conditions 4.6 and 4.6.6 Establishing Best Available Revenue Per Unit and Calculating Cashflow
A33: Allowed Revenue | D33: =SUMPRODUCT(D24:D29,D17:D22) -> 18641.06743 | E33: =SUMPRODUCT(E24:E29,E17:E22) -> 18547.09973 | F33: 19441.22122 | G33: 20385.79582 | H33: 21376.70344 | I33: 22405.64312 | J33: 23257.06394 | K33: 24060.22814 | L33: 24762.67823 | M33: 25506.38931 | N33: 26112.60081 | O33: 26732.12304 | P33: 27219.93905 | Q33: 27725.16894 | R33: 28105.15111 | S33: 28512.97493 | T33: 28808.19905 | U33: 29133.13924 | V33: 29357.25894
A34: Capex | D34: =-D14 -> -17021.20369 | E34: =-E14 -> -14216.33113 | F34: -14411.62856 | G34: -14691.50789 | H34: -15040.58726 | I34: -15263.53664 | J34: -13494.08962 | K34: -12660.1079 | L34: -12869.61381 | M34: -10299.12153 | N34: -8046.899945 | O34: -8046.777495 | P34: -8185.352289 | Q34: -7805.560003 | R34: -7756.672577 | S34: -7831.927842 | T34: -7372.662442 | U34: -7328.344316 | V34: -7125.811438
A35: Opex | D35: =-D15 -> -6334.386028 | E35: =-E15 -> -6293.11327 | F35: -6445.597512 | G35: -6656.073189 | H35: -6929.350922 | I35: -7205.284419 | J35: -7397.470412 | K35: -7498.577746 | L35: -7584.87339 | M35: -7674.486935 | N35: -7835.200126 | O35: -8039.074976 | P35: -8151.088155 | Q35: -8248.818384 | R35: -8311.137924 | S35: -8247.445513 | T35: -8152.646534 | U35: -8137.499968 | V35: -8256.464708
A37: Cashflows | D37: =SUM(D33:D36) -> -4714.522284 | E37: =SUM(E33:E36) -> -1962.344671 | F37: =SUM(F33:F36) -> -1416.004853 | G37: -961.7852556 | H37: -593.2347475 | I37: -63.17793324 | J37: 2365.503906 | K37: 3901.542491 | L37: 4308.191029 | M37: 7532.780847 | N37: 10230.50074 | O37: 10646.27057 | P37: 10883.49861 | Q37: 11670.79055 | R37: 12037.34061 | S37: 12433.60157 | T37: 13282.89008 | U37: 13667.29495 | V37: 13974.9828
A41: Discounted Cashflow | C41: =SUM(D41:V41) -> 62390.82361 | D41: =D37*D7 -> -4617.338939 | E41: =E37*E7 -> -1842.659304 | F41: -1274.823873 | G41: -830.1933537 | H41: -490.9569472 | I41: -50.13002659 | J41: 1799.582998 | K41: 2845.772935 | L41: 3012.829445 | M41: 5050.688906 | N41: 6576.697539 | O41: 6561.817828 | P41: 6431.479467 | Q41: 6612.387986 | R41: 6538.893952 | S41: 6475.694955 | T41: 6632.812282 | U41: 6543.398744 | V41: 6414.869013
A45: Closing DAV | D45: =DAV!P35/1000 -> 118305.7367 | E45: =DAV!Q35/1000 -> 127725.5636 | F45: =DAV!R35/1000 -> 136928.6407 | G45: =DAV!S35/1000 -> 145969.9388 | H45: =DAV!T35/1000 -> 154941.6914 | I45: =DAV!U35/1000 -> 163849.3646 | J45: =DAV!V35/1000 -> 170713.0562 | K45: =DAV!W35/1000 -> 176433.2382 | L45: =DAV!X35/1000 -> 182052.4216 | M45: =DAV!Y35/1000 -> 184868.1761 | N45: =DAV!Z35/1000 -> 185257.8682 | O45: =DAV!AA35/1000 -> 185459.0295 | P45: =DAV!AB35/1000 -> 185565.0128 | Q45: =DAV!AC35/1000 -> 185087.8697 | R45: =DAV!AD35/1000 -> 184342.8506 | S45: =DAV!AE35/1000 -> 183452.5462 | T45: =DAV!AF35/1000 -> 181910.2612 | U45: =DAV!AG35/1000 -> 180143.9618 | V45: =DAV!AH35/1000 -> 177992.3531
A49: TRV | C49: =-C65 -> -143802.859
A50: Discounted DAV2035 | C50: =V45*V8 -> 79983.33054
A51: Backsolve to 0 by running Macro Ctrl + q | C51: =SUM(C41:C50) -> -1428.704899
A55: Condition 4.6.8 Calculating TRV
B57: Total Regulatory Value (TRV) | I57: =I67+I69 -> 196851.5276 | N57: =N67+N69 -> 212329.2751 | S57: =S67+S69 -> 198099.6484 | V57: =V67+V69 -> 181171.7474
A61: Condition 4.6.9 Calculating Profile Adjustment
I62: x | N62: x | S62: x | X62: x | AC62: x | AF62: x
B63: Adjusted Cashflows | D63: =D37*(1+$I$6*$B$7)*(1+$I$6)^($I$12-D12) -> -5944.257384 | E63: =E37*(1+$I$6*$B$7)*(1+$I$6)^($I$12-E12) -> -2372.197779 | F63: -1641.179328 | G63: -1068.772087 | H63: -632.0468342 | I63: -64.5362588 | J63: =J37*(1+$N$6*$B$7)*(1+$N$6)^($N$12-J12) -> 2859.5604 | K63: =K37*(1+$N$6*$B$7)*(1+$N$6)^($N$12-K12) -> 4521.96959 | L63: =L37*(1+$N$6*$B$7)*(1+$N$6)^($N$12-L12) -> 4787.424521 | M63: =M37*(1+$N$6*$B$7)*(1+$N$6)^($N$12-M12) -> 8025.609267 | N63: =N37*(1+$N$6*$B$7)*(1+$N$6)^($N$12-N12) -> 10450.4565 | O63: =O37*(1+$S$6*$B$7)*(1+$S$6)^($S$12-O12) -> 12869.8387 | P63: =P37*(1+$S$6*$B$7)*(1+$S$6)^($S$12-P12) -> 12614.20319 | Q63: =Q37*(1+$S$6*$B$7)*(1+$S$6)^($S$12-Q12) -> 12969.02307 | R63: =R37*(1+$S$6*$B$7)*(1+$S$6)^($S$12-R12) -> 12824.8776 | S63: =S37*(1+$S$6*$B$7)*(1+$S$6)^($S$12-S12) -> 12700.92401 | T63: =T37*(1+$V$6*$B$7)*(1+$V$6)^($V$12-T12) -> 14760.44893 | U63: =U37*(1+$V$6*$B$7)*(1+$V$6)^($V$12-U12) -> 14561.47089 | V63: =V37*(1+$V$6*$B$7)*(1+$V$6)^($V$12-V12) -> 14275.44493
B65: Closing TRV (Incl Return) | C65: =Inputs!O128/1000 -> 143802.859 | I65: =-$C$65*(1+I6)^(I12-C12) -> -185128.5379 | N65: =-I57*(1+N6)^(N12-I12) -> -242974.2954 | S65: =-N57*(1+S6)^(S12-N12) -> -262078.515 | V65: =-S57*(1+V6)^(V12-S12) -> -224769.1121
B67: DAV | I67: =I45 -> 163849.3646 | N67: =N45 -> 185257.8682 | S67: =S45 -> 183452.5462 | V67: =V45 -> 177992.3531
B69: Calculated PA | I69: =-SUM(D63:I68) -> 33002.16301 | N69: =-SUM(J63:N68) -> 27071.40692 | S69: =-SUM(O63:S68) -> 14647.10223 | V69: =-SUM(T63:V68) -> 3179.394321
B70: Check | I70: =SUM(D63:I69) -> 0 | N70: =SUM(J63:N69) -> 0 | S70: =SUM(O63:S69) -> 0 | V70: =SUM(T63:V69) -> 0
H73: Average Totex | I73: =SUM(D14:I15)/6 -> 21751.43342
H74: Average TRV | I74: =(+C65+I57)/2 -> 170327.1933
H76: Ratio | I76: =+I74/I73 -> 7.830619254
D78: =(SUM(D72:D77))+4162954.34941467 -> 4162954.349 | E78: =(SUM(E72:E77))+4533329.78337157 -> 4533329.783 | F78: =(SUM(F72:F77))+4932708.67857861 -> 4932708.679 | G78: =(SUM(G72:G77))+5347599.74421037 -> 5347599.744 | H78: =(SUM(H72:H77))+5741466.60358512 -> 5741466.604 | I78: =(SUM(I72:I77))+6102467.09446314 -> 6294553.552
I80: =SUM(D78:I78)/6/1000 -> 5168.768785
I82: =(+C65+I57)/2 -> 170327.1933
I83: =+I80/I82 -> 0.03034611611

Sheet GD17 Pi's Calc - 40 yrs
A1: =242.7/193.4 -> 1.254912099
A2: Firmus Energy P Tariff Model - Calculation of Pi tariffs, Allowed Revenues, PA and TRV | D2: Return
D3: GD17 | E3: 0.0432
B4: £2014 | D4: Post GD17 | E4: =E3 -> 0.0432
B5: £'000
A6: Real Return pa | D6: =E3 -> 0.0432 | E6: =D6 -> 0.0432 | F6: =E6 -> 0.0432 | G6: =F6 -> 0.0432 | H6: =G6 -> 0.0432 | I6: =H6 -> 0.0432 | J6: =E4 -> 0.0432 | K6: =J6 -> 0.0432 | L6: =K6 -> 0.0432 | M6: 0.0432 | N6: 0.0432 | O6: 0.0432 | P6: 0.0432 | Q6: 0.0432 | R6: 0.0432 | S6: 0.0432 | T6: 0.0432 | U6: 0.0432 | V6: 0.0432 | W6: =V6 -> 0.0432 | X6: =W6 -> 0.0432 | Y6: =X6 -> 0.0432 | Z6: =Y6 -> 0.0432 | AA6: =Z6 -> 0.0432 | AB6: =AA6 -> 0.0432 | AC6: =AB6 -> 0.0432 | AD6: =AC6 -> 0.0432 | AE6: =AD6 -> 0.0432 | AF6: =AE6 -> 0.0432
A7: Discount Factor (Mid Yr) | B7: 0.5 | C7: 1 | D7: =D8*(1+D6*$B$7) -> 0.9792944785 | E7: 0.9387408728 | F7: 0.8998666342 | G7: 0.8626022184 | H7: 0.8268809609 | I7: 0.7926389579 | J7: 0.759814952 | K7: 0.7283502224 | L7: 0.69818848 | M7: 0.6692757669 | N7: 0.6415603594 | O7: 0.6149926758 | P7: 0.5895251877 | Q7: 0.5651123348 | R7: 0.5417104436 | S7: 0.5192776492 | T7: 0.4977738202 | U7: 0.4771604871 | V7: 0.4574007737 | W7: 0.4384593306 | X7: 0.4203022724 | Y7: 0.402897117 | Z7: 0.3862127272 | AA7: 0.3702192553 | AB7: 0.3548880899 | AC7: 0.3401918039 | AD7: 0.3261041065 | AE7: 0.3125997954 | AF7: 0.2996547118
A8: Discount Factor (Yr End) | C8: 1 | D8: =C8/(1+D6) -> 0.9585889571 | E8: 0.9188927886 | F8: 0.8808404799 | G8: 0.8443639569 | H8: 0.8093979648 | I8: 0.775879951 | J8: 0.743749953 | K8: 0.7129504917 | L8: 0.6834264683 | M8: 0.6551250655 | N8: 0.6279956533 | O8: 0.6019896983 | P8: 0.577060677 | Q8: 0.5531639926 | R8: 0.5302568947 | S8: 0.5082984037 | T8: 0.4872492367 | U8: 0.4670717376 | V8: 0.4477298098 | W8: 0.4291888514 | X8: 0.4114156935 | Y8: 0.3943785405 | Z8: 0.3780469138 | AA8: 0.3623915969 | AB8: 0.3473845829 | AC8: 0.332999025 | AD8: 0.3192091881 | AE8: 0.3059904027 | AF8: 0.293319021
J11: IMPORTANT NOTE: Values from 2023 Onwards are forecasts and will be determined as part of the Next Price Control. This Model is re-run at each Price Control Period, to calculate allowed Revenues.
C12: 2016 | D12: 2017 | E12: =D12+1 -> 2018 | F12: 2019 | G12: 2020 | H12: 2021 | I12: 2022 | J12: 2023 | K12: 2024 | L12: 2025 | M12: 2026 | N12: 2027 | O12: 2028 | P12: 2029 | Q12: 2030 | R12: 2031 | S12: 2032 | T12: 2033 | U12: 2034 | V12: 2035 | W12: =V12+1 -> 2036 | X12: =W12+1 -> 2037 | Y12: =X12+1 -> 2038 | Z12: =Y12+1 -> 2039 | AA12: =Z12+1 -> 2040 | AB12: =AA12+1 -> 2041 | AC12: =AB12+1 -> 2042 | AD12: =AC12+1 -> 2043 | AE12: =AD12+1 -> 2044 | AF12: 2045
A14: Capex | D14: =Inputs!P102/1000 -> 17021.20369 | E14: =Inputs!Q102/1000 -> 14216.33113 | F14: =Inputs!R102/1000 -> 14411.62856 | G14: =Inputs!S102/1000 -> 14691.50789 | H14: =Inputs!T102/1000 -> 15040.58726 | I14: =Inputs!U102/1000 -> 15263.53664 | J14: =Inputs!V102/1000 -> 13494.08962 | K14: =Inputs!W102/1000 -> 12660.1079 | L14: =Inputs!X102/1000 -> 12869.61381 | M14: =Inputs!Y102/1000 -> 10299.12153 | N14: =Inputs!Z102/1000 -> 8046.899945 | O14: =Inputs!AA102/1000 -> 8046.777495 | P14: =Inputs!AB102/1000 -> 8185.352289 | Q14: =Inputs!AC102/1000 -> 7805.560003 | R14: =Inputs!AD102/1000 -> 7756.672577 | S14: =Inputs!AE102/1000 -> 7831.927842 | T14: =Inputs!AF102/1000 -> 7372.662442 | U14: =Inputs!AG102/1000 -> 7328.344316 | V14: =Inputs!AH102/1000 -> 7125.811438 | W14: =Inputs!AI102/1000 -> 6817.976022 | X14: =Inputs!AJ102/1000 -> 6824.55619 | Y14: =Inputs!AK102/1000 -> 6786.079359 | Z14: =Inputs!AL102/1000 -> 6731.004948 | AA14: =Inputs!AM102/1000 -> 6680.980562 | AB14: =Inputs!AN102/1000 -> 6662.017255 | AC14: =Inputs!AO102/1000 -> 6543.529212 | AD14: =Inputs!AP102/1000 -> 6343.85166 | AE14: =Inputs!AQ102/1000 -> 6370.917708 | AF14: =Inputs!AR102/1000 -> 6256.31538
A15: Opex | D15: =Inputs!P105/1000 -> 6334.386028 | E15: =Inputs!Q105/1000 -> 6293.11327 | F15: =Inputs!R105/1000 -> 6445.597512 | G15: =Inputs!S105/1000 -> 6656.073189 | H15: =Inputs!T105/1000 -> 6929.350922 | I15: =Inputs!U105/1000 -> 7205.284419 | J15: =Inputs!V105/1000 -> 7397.470412 | K15: =Inputs!W105/1000 -> 7498.577746 | L15: =Inputs!X105/1000 -> 7584.87339 | M15: =Inputs!Y105/1000 -> 7674.486935 | N15: =Inputs!Z105/1000 -> 7835.200126 | O15: =Inputs!AA105/1000 -> 8039.074976 | P15: =Inputs!AB105/1000 -> 8151.088155 | Q15: =Inputs!AC105/1000 -> 8248.818384 | R15: =Inputs!AD105/1000 -> 8311.137924 | S15: =Inputs!AE105/1000 -> 8247.445513 | T15: =Inputs!AF105/1000 -> 8152.646534 | U15: =Inputs!AG105/1000 -> 8137.499968 | V15: =Inputs!AH105/1000 -> 8256.464708 | W15: =Inputs!AI105/1000 -> 8449.928003 | X15: =Inputs!AJ105/1000 -> 8668.512979 | Y15: =Inputs!AK105/1000 -> 8742.688013 | Z15: =Inputs!AL105/1000 -> 8746.76825 | AA15: =Inputs!AM105/1000 -> 8995.917242 | AB15: =Inputs!AN105/1000 -> 9253.073834 | AC15: =Inputs!AO105/1000 -> 9240.833289 | AD15: =Inputs!AP105/1000 -> 9090.735131 | AE15: =Inputs!AQ105/1000 -> 9038.035839 | AF15: =Inputs!AR105/1000 -> 8958.41281
A16: Volumes (therms '000) | D16: =SUM(D17:D22) -> 61980.12627 | E16: =SUM(E17:E22) -> 60443.23317 | F16: 62622.54611 | G16: 64913.30591 | H16: 67306.19843 | I16: 69782.40705 | J16: 71706.05477 | K16: 73510.59658 | L16: 75021.76342 | M16: 76693.03153 | N16: 77976.11928 | O16: 79338.5517 | P16: 80329.87051 | Q16: 81411.23098 | R16: 82139.49466 | S16: 82982.36908 | T16: 83503.7818 | U16: 84144.53405 | V16: 84493.12672 | W16: 84980.94517 | X16: 85170.46941 | Y16: 85484.77418 | Z16: 85527.49879 | AA16: 85712.50719 | AB16: 85634.78376 | AC16: 85699.55011 | AD16: 85509.88771 | AE16: 85477.79922 | AF16: 85214.01951
A17: V Dom/Very Small IC Tariff (<2,500 tpa) (P1) | D17: =Inputs!P109/1000 -> 11228.40338 | E17: =Inputs!Q109/1000 -> 12779.50099 | F17: =Inputs!R109/1000 -> 14462.35928 | G17: =Inputs!S109/1000 -> 16267.49701 | H17: =Inputs!T109/1000 -> 18185.43306 | I17: =Inputs!U109/1000 -> 20197.18604 | J17: =Inputs!V109/1000 -> 22038.98486 | K17: =Inputs!W109/1000 -> 23793.3842 | L17: =Inputs!X109/1000 -> 25471.14832 | M17: =Inputs!Y109/1000 -> 27086.07018 | N17: =Inputs!Z109/1000 -> 28567.20721 | O17: =Inputs!AA109/1000 -> 29962.67319 | P17: =Inputs!AB109/1000 -> 31228.31177 | Q17: =Inputs!AC109/1000 -> 32414.36535 | R17: =Inputs!AD109/1000 -> 33477.38658 | S17: =Inputs!AE109/1000 -> 34482.46817 | T17: =Inputs!AF109/1000 -> 35386.43889 | U17: =Inputs!AG109/1000 -> 36235.62298 | V17: =Inputs!AH109/1000 -> 37004.48944 | W17: =Inputs!AI109/1000 -> 37737.95643 | X17: =Inputs!AJ109/1000 -> 38377.42442 | Y17: =Inputs!AK109/1000 -> 38967.40848 | Z17: =Inputs!AL109/1000 -> 39483.3292 | AA17: =Inputs!AM109/1000 -> 39968.31651 | AB17: =Inputs!AN109/1000 -> 40381.92383 | AC17: =Inputs!AO109/1000 -> 40766.39902 | AD17: =Inputs!AP109/1000 -> 41082.12191 | AE17: =Inputs!AQ109/1000 -> 41385.82945 | AF17: =Inputs!AR109/1000 -> 41638.23754
A18: V Small/Med Tariff IC (2,500 - 25k tpa) (P2) | D18: =Inputs!P110/1000 -> 8335.677347 | E18: =Inputs!Q110/1000 -> 8849.510504 | F18: =Inputs!R110/1000 -> 9352.278011 | G18: =Inputs!S110/1000 -> 9844.149797 | H18: =Inputs!T110/1000 -> 10325.2935 | I18: =Inputs!U110/1000 -> 10795.87449 | J18: =Inputs!V110/1000 -> 11215.02207 | K18: =Inputs!W110/1000 -> 11602.4632 | L18: =Inputs!X110/1000 -> 11773.16459 | M18: =Inputs!Y110/1000 -> 12166.80949 | N18: =Inputs!Z110/1000 -> 12306.05888 | O18: =Inputs!AA110/1000 -> 12610.32399 | P18: =Inputs!AB110/1000 -> 12673.30288 | Q18: =Inputs!AC110/1000 -> 12905.90845 | R18: =Inputs!AD110/1000 -> 12908.44956 | S18: =Inputs!AE110/1000 -> 13083.54105 | T18: =Inputs!AF110/1000 -> 13038.28172 | U18: =Inputs!AG110/1000 -> 13167.14854 | V18: =Inputs!AH110/1000 -> 13084.17343 | W18: =Inputs!AI110/1000 -> 13175.82355 | X18: =Inputs!AJ110/1000 -> 13063.17845 | Y18: =Inputs!AK110/1000 -> 13124.79784 | Z18: =Inputs!AL110/1000 -> 12988.90038 | AA18: =Inputs!AM110/1000 -> 13026.22014 | AB18: =Inputs!AN110/1000 -> 12872.18806 | AC18: =Inputs!AO110/1000 -> 12889.77789 | AD18: =Inputs!AP110/1000 -> 12721.69126 | AE18: =Inputs!AQ110/1000 -> 12723.19389 | AF18: =Inputs!AR110/1000 -> 12544.30476
A19: V Large Tariff IC (25k - 75k tpa) (P3) | D19: =Inputs!P111/1000 -> 6380.452712 | E19: =Inputs!Q111/1000 -> 6374.076091 | F19: =Inputs!R111/1000 -> 6367.763236 | G19: =Inputs!S111/1000 -> 6361.51351 | H19: =Inputs!T111/1000 -> 6355.326281 | I19: =Inputs!U111/1000 -> 6349.200924 | J19: =Inputs!V111/1000 -> 6293.990481 | K19: =Inputs!W111/1000 -> 6238.780038 | L19: =Inputs!X111/1000 -> 6183.569596 | M19: =Inputs!Y111/1000 -> 6128.359153 | N19: =Inputs!Z111/1000 -> 6073.14871 | O19: =Inputs!AA111/1000 -> 6017.938267 | P19: =Inputs!AB111/1000 -> 5962.727824 | Q19: =Inputs!AC111/1000 -> 5907.517381 | R19: =Inputs!AD111/1000 -> 5852.306939 | S19: =Inputs!AE111/1000 -> 5797.096496 | T19: =Inputs!AF111/1000 -> 5741.886053 | U19: =Inputs!AG111/1000 -> 5686.67561 | V19: =Inputs!AH111/1000 -> 5631.465167 | W19: =Inputs!AI111/1000 -> 5576.254725 | X19: =Inputs!AJ111/1000 -> 5521.044282 | Y19: =Inputs!AK111/1000 -> 5465.833839 | Z19: =Inputs!AL111/1000 -> 5410.623396 | AA19: =Inputs!AM111/1000 -> 5355.412953 | AB19: =Inputs!AN111/1000 -> 5300.20251 | AC19: =Inputs!AO111/1000 -> 5244.992068 | AD19: =Inputs!AP111/1000 -> 5189.781625 | AE19: =Inputs!AQ111/1000 -> 5134.571182 | AF19: =Inputs!AR111/1000 -> 5079.360739
A20: V CHP Contract (>75k tpa) (P4) | D20: =Inputs!P112/1000 -> 1160.961109 | E20: =Inputs!Q112/1000 -> 927.1413658 | F20: =Inputs!R112/1000 -> 927.1413658 | G20: =Inputs!S112/1000 -> 927.1413658 | H20: =Inputs!T112/1000 -> 927.1413658 | I20: =Inputs!U112/1000 -> 927.1413658 | J20: =Inputs!V112/1000 -> 919.079267 | K20: =Inputs!W112/1000 -> 911.0171681 | L20: =Inputs!X112/1000 -> 902.9550693 | M20: =Inputs!Y112/1000 -> 894.8929705 | N20: =Inputs!Z112/1000 -> 886.8308716 | O20: =Inputs!AA112/1000 -> 878.7687728 | P20: =Inputs!AB112/1000 -> 870.706674 | Q20: =Inputs!AC112/1000 -> 862.6445751 | R20: =Inputs!AD112/1000 -> 854.5824763 | S20: =Inputs!AE112/1000 -> 846.5203775 | T20: =Inputs!AF112/1000 -> 838.4582786 | U20: =Inputs!AG112/1000 -> 830.3961798 | V20: =Inputs!AH112/1000 -> 822.334081 | W20: =Inputs!AI112/1000 -> 814.2719821 | X20: =Inputs!AJ112/1000 -> 806.2098833 | Y20: =Inputs!AK112/1000 -> 798.1477845 | Z20: =Inputs!AL112/1000 -> 790.0856856 | AA20: =Inputs!AM112/1000 -> 782.0235868 | AB20: =Inputs!AN112/1000 -> 773.961488 | AC20: =Inputs!AO112/1000 -> 765.8993891 | AD20: =Inputs!AP112/1000 -> 757.8372903 | AE20: =Inputs!AQ112/1000 -> 749.7751915 | AF20: =Inputs!AR112/1000 -> 741.7130926
A21: V Firm Contract (>75k tpa) (P5) | D21: =Inputs!P113/1000 -> 13374.60601 | E21: =Inputs!Q113/1000 -> 13360.83565 | F21: =Inputs!R113/1000 -> 13360.83565 | G21: =Inputs!S113/1000 -> 13360.83565 | H21: =Inputs!T113/1000 -> 13360.83565 | I21: =Inputs!U113/1000 -> 13360.83565 | J21: =Inputs!V113/1000 -> 13244.65447 | K21: =Inputs!W113/1000 -> 13128.47329 | L21: =Inputs!X113/1000 -> 13012.29211 | M21: =Inputs!Y113/1000 -> 12896.11093 | N21: =Inputs!Z113/1000 -> 12779.92975 | O21: =Inputs!AA113/1000 -> 12663.74857 | P21: =Inputs!AB113/1000 -> 12547.56739 | Q21: =Inputs!AC113/1000 -> 12431.38621 | R21: =Inputs!AD113/1000 -> 12315.20503 | S21: =Inputs!AE113/1000 -> 12199.02386 | T21: =Inputs!AF113/1000 -> 12082.84268 | U21: =Inputs!AG113/1000 -> 11966.6615 | V21: =Inputs!AH113/1000 -> 11850.48032 | W21: =Inputs!AI113/1000 -> 11734.29914 | X21: =Inputs!AJ113/1000 -> 11618.11796 | Y21: =Inputs!AK113/1000 -> 11501.93678 | Z21: =Inputs!AL113/1000 -> 11385.7556 | AA21: =Inputs!AM113/1000 -> 11269.57442 | AB21: =Inputs!AN113/1000 -> 11153.39324 | AC21: =Inputs!AO113/1000 -> 11037.21206 | AD21: =Inputs!AP113/1000 -> 10921.03088 | AE21: =Inputs!AQ113/1000 -> 10804.8497 | AF21: =Inputs!AR113/1000 -> 10688.66852
A22: V Int Contract (>75k tpa) (P6) | D22: =Inputs!P114/1000 -> 21500.02571 | E22: =Inputs!Q114/1000 -> 18152.16857 | F22: =Inputs!R114/1000 -> 18152.16857 | G22: =Inputs!S114/1000 -> 18152.16857 | H22: =Inputs!T114/1000 -> 18152.16857 | I22: =Inputs!U114/1000 -> 18152.16857 | J22: =Inputs!V114/1000 -> 17994.32363 | K22: =Inputs!W114/1000 -> 17836.47868 | L22: =Inputs!X114/1000 -> 17678.63374 | M22: =Inputs!Y114/1000 -> 17520.78879 | N22: =Inputs!Z114/1000 -> 17362.94385 | O22: =Inputs!AA114/1000 -> 17205.09891 | P22: =Inputs!AB114/1000 -> 17047.25396 | Q22: =Inputs!AC114/1000 -> 16889.40902 | R22: =Inputs!AD114/1000 -> 16731.56407 | S22: =Inputs!AE114/1000 -> 16573.71913 | T22: =Inputs!AF114/1000 -> 16415.87419 | U22: =Inputs!AG114/1000 -> 16258.02924 | V22: =Inputs!AH114/1000 -> 16100.1843 | W22: =Inputs!AI114/1000 -> 15942.33935 | X22: =Inputs!AJ114/1000 -> 15784.49441 | Y22: =Inputs!AK114/1000 -> 15626.64947 | Z22: =Inputs!AL114/1000 -> 15468.80452 | AA22: =Inputs!AM114/1000 -> 15310.95958 | AB22: =Inputs!AN114/1000 -> 15153.11463 | AC22: =Inputs!AO114/1000 -> 14995.26969 | AD22: =Inputs!AP114/1000 -> 14837.42474 | AE22: =Inputs!AQ114/1000 -> 14679.5798 | AF22: =Inputs!AR114/1000 -> 14521.73486
A23: £/therm | D23: =D24/Inputs!M2*Inputs!M1 -> 0.4360806697
A24: P Dom/Very Small IC Tariff (<2,500 tpa) (P1) | D24: 0.4335403939 | E24: =D24 -> 0.4335403939 | F24: 0.4335403939 | G24: 0.4335403939 | H24: 0.4335403939 | I24: 0.4335403939 | J24: 0.4335403939 | K24: 0.4335403939 | L24: 0.4335403939 | M24: 0.4335403939 | N24: 0.4335403939 | O24: 0.4335403939 | P24: 0.4335403939 | Q24: 0.4335403939 | R24: 0.4335403939 | S24: 0.4335403939 | T24: 0.4335403939 | U24: 0.4335403939 | V24: 0.4335403939 | W24: =V24 -> 0.4335403939 | X24: =W24 -> 0.4335403939 | Y24: =X24 -> 0.4335403939 | Z24: =Y24 -> 0.4335403939 | AA24: =Z24 -> 0.4335403939 | AB24: =AA24 -> 0.4335403939 | AC24: =AB24 -> 0.4335403939 | AD24: =AC24 -> 0.4335403939 | AE24: =AD24 -> 0.4335403939 | AF24: =AE24 -> 0.4335403939
A25: P Small/Med Tariff IC (2,500 - 25k tpa) (P2) | C25: 0.7024932609 | D25: =$D$24*C25 -> 0.3045592051 | E25: =D25 -> 0.3045592051 | F25: 0.3045592051 | G25: 0.3045592051 | H25: 0.3045592051 | I25: 0.3045592051 | J25: 0.3045592051 | K25: 0.3045592051 | L25: 0.3045592051 | M25: 0.3045592051 | N25: 0.3045592051 | O25: 0.3045592051 | P25: 0.3045592051 | Q25: 0.3045592051 | R25: 0.3045592051 | S25: 0.3045592051 | T25: 0.3045592051 | U25: 0.3045592051 | V25: 0.3045592051 | W25: 0.3045592051 | X25: 0.3045592051 | Y25: 0.3045592051 | Z25: 0.3045592051 | AA25: 0.3045592051 | AB25: 0.3045592051 | AC25: 0.3045592051 | AD25: 0.3045592051 | AE25: 0.3045592051 | AF25: =AE25 -> 0.3045592051
A26: P Large Tariff IC (25k - 75k tpa) (P3) | C26: 0.6296632389 | D26: =$D$24*C26 -> 0.2729844486 | E26: =D26 -> 0.2729844486 | F26: 0.2729844486 | G26: 0.2729844486 | H26: 0.2729844486 | I26: 0.2729844486 | J26: 0.2729844486 | K26: 0.2729844486 | L26: 0.2729844486 | M26: 0.2729844486 | N26: 0.2729844486 | O26: 0.2729844486 | P26: 0.2729844486 | Q26: 0.2729844486 | R26: 0.2729844486 | S26: 0.2729844486 | T26: 0.2729844486 | U26: 0.2729844486 | V26: 0.2729844486 | W26: 0.2729844486 | X26: 0.2729844486 | Y26: 0.2729844486 | Z26: 0.2729844486 | AA26: 0.2729844486 | AB26: 0.2729844486 | AC26: 0.2729844486 | AD26: 0.2729844486 | AE26: 0.2729844486 | AF26: 0.2729844486
A27: P CHP Contract (>75k tpa) (P4) | C27: 0.5 | D27: =$D$24*C27 -> 0.216770197 | E27: 0.216770197 | F27: =E27 -> 0.216770197 | G27: =F27 -> 0.216770197 | H27: =G27 -> 0.216770197 | I27: =H27 -> 0.216770197 | J27: =I27 -> 0.216770197 | K27: =J27 -> 0.216770197 | L27: =K27 -> 0.216770197 | M27: =L27 -> 0.216770197 | N27: =M27 -> 0.216770197 | O27: =N27 -> 0.216770197 | P27: =O27 -> 0.216770197 | Q27: =P27 -> 0.216770197 | R27: =Q27 -> 0.216770197 | S27: =R27 -> 0.216770197 | T27: =S27 -> 0.216770197 | U27: =T27 -> 0.216770197 | V27: =U27 -> 0.216770197 | W27: 0.216770197 | X27: 0.216770197 | Y27: 0.216770197 | Z27: 0.216770197 | AA27: 0.216770197 | AB27: 0.216770197 | AC27: 0.216770197 | AD27: 0.216770197 | AE27: 0.216770197 | AF27: 0.216770197
A28: P Firm Contract (>75k tpa) (P5) | C28: 0.5900817098 | D28: 0.2558242569 | E28: 0.2558242569 | F28: 0.2558242569 | G28: 0.2558242569 | H28: 0.2558242569 | I28: 0.2558242569 | J28: 0.2558242569 | K28: 0.2558242569 | L28: 0.2558242569 | M28: 0.2558242569 | N28: 0.2558242569 | O28: 0.2558242569 | P28: 0.2558242569 | Q28: 0.2558242569 | R28: 0.2558242569 | S28: 0.2558242569 | T28: 0.2558242569 | U28: 0.2558242569 | V28: 0.2558242569 | W28: 0.2558242569 | X28: 0.2558242569 | Y28: 0.2558242569 | Z28: 0.2558242569 | AA28: 0.2558242569 | AB28: 0.2558242569 | AC28: 0.2558242569 | AD28: 0.2558242569 | AE28: 0.2558242569 | AF28: 0.2558242569
A29: P Int Contract (>75k tpa) (P6) | C29: 0.536 | D29: 0.2323776512 | E29: 0.2323776512 | F29: 0.2323776512 | G29: 0.2323776512 | H29: 0.2323776512 | I29: 0.2323776512 | J29: 0.2323776512 | K29: 0.2323776512 | L29: 0.2323776512 | M29: 0.2323776512 | N29: 0.2323776512 | O29: 0.2323776512 | P29: 0.2323776512 | Q29: 0.2323776512 | R29: 0.2323776512 | S29: 0.2323776512 | T29: 0.2323776512 | U29: 0.2323776512 | V29: 0.2323776512 | W29: 0.2323776512 | X29: 0.2323776512 | Y29: 0.2323776512 | Z29: 0.2323776512 | AA29: 0.2323776512 | AB29: 0.2323776512 | AC29: 0.2323776512 | AD29: 0.2323776512 | AE29: 0.2323776512 | AF29: 0.2323776512
A31: Conditions 4.6 and 4.6.6 Establishing Best Available Revenue Per Unit and Calculating Cashflow
A33: Allowed Revenue | D33: =SUMPRODUCT(D24:D29,D17:D22) -> 17817.77394 | E33: =SUMPRODUCT(E24:E29,E17:E22) -> 17812.81419 | F33: 18693.8004 | G33: 19624.49852 | H33: 20600.849 | I33: 21614.67282 | J33: 22457.60145 | K33: 23252.98237 | L33: 23949.12875 | M33: 24685.92998 | N33: 25287.25158 | O33: 25901.68837 | P33: 26386.3538 | Q33: 26888.17729 | R33: 27266.59303 | S33: 27672.44141 | T33: 27967.34427 | U33: 28291.52664 | V33: 28516.36965 | W33: 28779.04929 | X33: 28938.75658 | Y33: 29130.08443 | Z33: 29229.14727 | AA33: 29367.55412 | AB33: 29416.73689 | AC33: 29505.55875 | AD33: 29508.02423 | AE33: 29556.93054 | AF33: 29528.65649
A34: Capex | D34: =-D14 -> -17021.20369 | E34: -14216.33113 | F34: -14411.62856 | G34: -14691.50789 | H34: -15040.58726 | I34: -15263.53664 | J34: -13494.08962 | K34: -12660.1079 | L34: -12869.61381 | M34: -10299.12153 | N34: -8046.899945 | O34: -8046.777495 | P34: -8185.352289 | Q34: -7805.560003 | R34: -7756.672577 | S34: -7831.927842 | T34: -7372.662442 | U34: -7328.344316 | V34: -7125.811438 | W34: =-W14 -> -6817.976022 | X34: -6824.55619 | Y34: -6786.079359 | Z34: -6731.004948 | AA34: -6680.980562 | AB34: -6662.017255 | AC34: -6543.529212 | AD34: -6343.85166 | AE34: -6370.917708 | AF34: =-AF14 -> -6256.31538
A35: Opex | D35: =-D15 -> -6334.386028 | E35: -6293.11327 | F35: -6445.597512 | G35: -6656.073189 | H35: -6929.350922 | I35: -7205.284419 | J35: -7397.470412 | K35: -7498.577746 | L35: -7584.87339 | M35: -7674.486935 | N35: -7835.200126 | O35: -8039.074976 | P35: -8151.088155 | Q35: -8248.818384 | R35: -8311.137924 | S35: -8247.445513 | T35: -8152.646534 | U35: -8137.499968 | V35: -8256.464708 | W35: =-W15 -> -8449.928003 | X35: -8668.512979 | Y35: -8742.688013 | Z35: -8746.76825 | AA35: -8995.917242 | AB35: -9253.073834 | AC35: -9240.833289 | AD35: -9090.735131 | AE35: -9038.035839 | AF35: =-AF15 -> -8958.41281
A37: Cashflows | D37: =SUM(D33:D36) -> -5537.815771 | E37: -2696.630208 | F37: -2163.425675 | G37: -1723.082554 | H37: -1369.089188 | I37: -854.1482334 | J37: 1566.041411 | K37: 3094.296725 | L37: 3494.641554 | M37: 6712.32151 | N37: 9405.151504 | O37: 9815.835898 | P37: 10049.91336 | Q37: 10833.7989 | R37: 11198.78253 | S37: 11593.06806 | T37: 12442.03529 | U37: 12825.68235 | V37: 13134.0935 | W37: =SUM(W33:W36) -> 13511.14527 | X37: 13445.68741 | Y37: 13601.31706 | Z37: 13751.37407 | AA37: 13690.65632 | AB37: 13501.64581 | AC37: 13721.19625 | AD37: 14073.43744 | AE37: 14147.97699 | AF37: =SUM(AF33:AF36) -> 14313.9283
A41: Discounted Cashflow | C41: =SUM(D41:AF41) -> 101899.5243 | D41: =D37*D7 -> -5423.152408 | E41: -2531.436996 | F41: -1946.794581 | G41: -1486.334834 | H41: -1132.073783 | I41: -677.0311656 | J41: 1189.901679 | K41: 2253.731708 | L41: 2439.918475 | M41: 4492.394127 | N41: 6033.972379 | O41: 6036.667184 | P41: 5924.677058 | Q41: 6122.313391 | R41: 6066.497453 | S41: 6020.021127 | T41: 6193.319438 | U41: 6119.908839 | V41: 6007.544531 | W41: =W37*W7 -> 5924.08771 | X41: 5651.252974 | Y41: 5479.931432 | Z41: 5310.955683 | AA41: 5068.544587 | AB41: 4791.57329 | AC41: 4667.838504 | AD41: 4589.405742 | AE41: 4422.654713 | AF41: =AF37*AF7 -> 4289.236061
A45: Closing DAV | D45: =DAV!P35/1000 -> 118305.7367 | E45: =DAV!Q35/1000 -> 127725.5636 | F45: =DAV!R35/1000 -> 136928.6407 | G45: =DAV!S35/1000 -> 145969.9388 | H45: =DAV!T35/1000 -> 154941.6914 | I45: =DAV!U35/1000 -> 163849.3646 | J45: =DAV!V35/1000 -> 170713.0562 | K45: =DAV!W35/1000 -> 176433.2382 | L45: =DAV!X35/1000 -> 182052.4216 | M45: =DAV!Y35/1000 -> 184868.1761 | N45: =DAV!Z35/1000 -> 185257.8682 | O45: =DAV!AA35/1000 -> 185459.0295 | P45: =DAV!AB35/1000 -> 185565.0128 | Q45: =DAV!AC35/1000 -> 185087.8697 | R45: =DAV!AD35/1000 -> 184342.8506 | S45: =DAV!AE35/1000 -> 183452.5462 | T45: =DAV!AF35/1000 -> 181910.2612 | U45: =DAV!AG35/1000 -> 180143.9618 | V45: =DAV!AH35/1000 -> 177992.3531 | W45: =DAV!AI35/1000 -> 175376.7645 | X45: =DAV!AJ35/1000 -> 172606.907 | Y45: =DAV!AK35/1000 -> 169635.4656 | Z45: =DAV!AL35/1000 -> 166448.0197 | AA45: =DAV!AM35/1000 -> 163059.6422 | AB45: =DAV!AN35/1000 -> 159490.8231 | AC45: =DAV!AO35/1000 -> 155660.6293 | AD45: =DAV!AP35/1000 -> 151513.8444 | AE45: =DAV!AQ35/1000 -> 147295.5701 | AF45: =DAV!AR35/1000 -> 142859.2479
A49: TRV | C49: =-C65 -> -143802.859
A50: Discounted DAV2045 | C50: =AF45*AF8 -> 41903.33473
A51: Backsolve to 0 by running Macro Ctrl + q | C51: =SUM(C41:C50) -> 0
A55: Condition 4.6.8 Calculating TRV
B57: Total Regulatory Value (TRV) | I57: =I67+I69 -> 202350.483 | N57: =N67+N69 -> 223870.6012 | S57: =S67+S69 -> 217233.7891 | X57: =X67+X69 -> 195722.9051 | AC57: =AC67+AC69 -> 165780.1588 | AF57: =AF67+AF69 -> 142859.2479
A61: Condition 4.6.9 Calculating Profile Adjustment
I62: x | N62: x | S62: x | X62: x | AC62: x | AF62: x
B63: Adjusted Cashflows | D63: =D37*(1+$I$6*$B$7)*(1+$I$6)^($I$12-D12) -> -6989.679783 | E63: -3262.665819 | F63: -2509.144074 | G63: -1915.6763 | H63: -1459.083691 | I63: -872.5978353 | J63: =J37*(1+$N$6*$B$7)*(1+$N$6)^($N$12-J12) -> 1894.761012 | K63: =K37*(1+$N$6*$B$7)*(1+$N$6)^($N$12-K12) -> 3588.769598 | L63: =L37*(1+$N$6*$B$7)*(1+$N$6)^($N$12-L12) -> 3885.247394 | M63: =M37*(1+$N$6*$B$7)*(1+$N$6)^($N$12-M12) -> 7153.543346 | N63: =N37*(1+$N$6*$B$7)*(1+$N$6)^($N$12-N12) -> 9608.302777 | O63: =O37*(1+$S$6*$B$7)*(1+$S$6)^($S$12-O12) -> 11876.22692 | P63: =P37*(1+$S$6*$B$7)*(1+$S$6)^($S$12-P12) -> 11655.90333 | Q63: =Q37*(1+$S$6*$B$7)*(1+$S$6)^($S$12-Q12) -> 12044.72284 | R63: =R37*(1+$S$6*$B$7)*(1+$S$6)^($S$12-R12) -> 11934.91345 | S63: =S37*(1+$S$6*$B$7)*(1+$S$6)^($S$12-S12) -> 11843.47833 | T63: =T37*(1+$X$6*$B$7)*(1+$X$6)^($X$12-T12) -> 15053.67816 | U63: =U37*(1+$X$6*$B$7)*(1+$X$6)^($X$12-U12) -> 14875.24403 | V63: =V37*(1+$X$6*$B$7)*(1+$X$6)^($X$12-V12) -> 14602.12779 | W63: =W37*(1+$X$6*$B$7)*(1+$X$6)^($X$12-W12) -> 14399.275 | X63: =X37*(1+$X$6*$B$7)*(1+$X$6)^($X$12-X12) -> 13736.11426 | Y63: =Y37*(1+$AC$6*$B$7)*(1+$AC$6)^($AC$12-Y12) -> 16456.29873 | Z63: =Z37*(1+$AC$6*$B$7)*(1+$AC$6)^($AC$12-Z12) -> 15948.86256 | AA63: =AA37*(1+$AC$6*$B$7)*(1+$AC$6)^($AC$12-AA12) -> 15220.89918 | AB63: =AB37*(1+$AC$6*$B$7)*(1+$AC$6)^($AC$12-AB12) -> 14389.15111 | AC63: =AC37*(1+$AC$6*$B$7)*(1+$AC$6)^($AC$12-AC12) -> 14017.57409 | AD63: =AD37*(1+$AF$6*$B$7)*(1+$AF$6)^($AF$12-AD12) -> 15646.46482 | AE63: =AE37*(1+$AF$6*$B$7)*(1+$AF$6)^($AF$12-AE12) -> 15077.96766 | AF63: =AF37*(1+$AF$6*$B$7)*(1+$AF$6)^($AF$12-AF12) -> 14623.10916
B65: Closing TRV (Incl Return) | C65: =Inputs!O128/1000 -> 143802.859 | I65: =-$C$65*(1+I6)^(I12-C12) -> -185341.6355 | N65: =-I57*(1+N6)^(N12-I12) -> -250001.2253 | S65: =-N57*(1+S6)^(S12-N12) -> -276589.034 | X65: =-S57*(1+X6)^(X12-S12) -> -268389.3444 | AC65: =-X57*(1+AC6)^(AC12-X12) -> -241812.9445 | AF65: =-AC57*(1+AF6)^(AF12-AC12) -> -188206.7895
B67: DAV | I67: =I45 -> 163849.3646 | N67: =N45 -> 185257.8682 | S67: =S45 -> 183452.5462 | X67: =X45 -> 172606.907 | AC67: =AC45 -> 155660.6293 | AF67: =AF45 -> 142859.2479
B69: Calculated PA | I69: =-SUM(D63:I68) -> 38501.11841 | N69: =-SUM(J63:N68) -> 38612.73298 | S69: =-SUM(O63:S68) -> 33781.24291 | X69: =-SUM(T63:X68) -> 23115.99818 | AC69: =-SUM(Y63:AC68) -> 10119.52954 | AF69: =-SUM(AD63:AF68) -> 0
B70: Check | I70: =SUM(D63:I69) -> 0 | N70: =SUM(J63:N69) -> 0 | S70: =SUM(O63:S69) -> 0 | X70: =SUM(T63:X69) -> 0 | AC70: =SUM(Y63:AC69) -> 0 | AF70: =SUM(AD63:AF69) -> -1.164153218e-10
B73: Annual Basis
B74: Cashflow | D74: =+'Building Block Method'!C9 -> -5657.432592 | E74: =+'Building Block Method'!D9 -> -8656.7111 | F74: =+'Building Block Method'!E9 -> -11240.83669 | G74: =+'Building Block Method'!F9 -> -13486.74197 | H74: =+'Building Block Method'!G9 -> -15468.03074 | I74: =+'Building Block Method'!H9 -> -17008.8475
B75: Opening TRV incl. return | D75: =-$C65/D$8 -> -150015.1426 | E75: =-$C65/E$8 -> -156495.7967 | F75: -163256.4151 | G75: -170309.0923 | H75: -177666.4451 | I75: -185341.6355
B76: DAV | D76: =+D45 -> 118305.7367 | E76: =+E45 -> 127725.5636 | F76: 136928.6407 | G76: 145969.9388 | H76: 154941.6914 | I76: 163849.3646
B77: Q
B78: CC
B79: PA | C79: =+C81-DAV!O35/1000 -> 38140.20607 | D79: =-SUM(D74:D78) -> 37366.83841 | E79: =-SUM(E74:E78) -> 37426.9442 | F79: 37568.61118 | G79: 37825.89544 | H79: 38192.78437 | I79: 38501.11841
B81: TRV | C81: =+C65 -> 143802.859 | D81: =SUM(D76:D79) -> 155672.5752 | E81: 165152.5078 | F81: 174497.2518 | G81: 183795.8342 | H81: 193134.4758 | I81: 202350.483

Sheet FE Financeability
A1: Firmus: Financeability Model
A2: Av. £k's 2014 RPI and nominal
B4: Include
B5: Exclude | M5: 2014 | N5: 2015 | O5: 2016 | P5: 2017 | Q5: 2018 | R5: 2019 | S5: 2020 | T5: 2021 | U5: 2022 | Z5: Generic assumptions
B6: Financeability analysis (nominal) | Z6: Rolling incentive period | AB6: 5
M7: 256 | N7: 258.5 | O7: =+'FE Financeability'!AB7 -> 0.0307 | P7: =+'FE Financeability'!AB7 -> 0.0307 | Q7: =+P7 -> 0.0307 | R7: 0.0307 | S7: 0.0307 | T7: 0.0307 | U7: 0.0307 | Z7: Forward inflation rate | AB7: 0.0307
B8: RPI factor | M8: 1 | N8: =+N7/M7 -> 1.009765625 | O8: =N8*(1+O7) -> 1.04076543 | P8: =O8*(1+P7) -> 1.072716928 | Q8: 1.105649338 | R8: 1.139592773 | S8: 1.174578271 | T8: 1.210637824 | U8: 1.247804405 | Z8: Prospective tax rate | AB8: 0.2
Z9: Year dividends can start | AB9: 2017
B10: Revenues | P10: =+'GD17 Pi''s Calc - 40 yrs'!D33*P8 -> 19113.42773 | Q10: =+'GD17 Pi''s Calc - 40 yrs'!E33*Q8 -> 19694.72622 | R10: =+'GD17 Pi''s Calc - 40 yrs'!F33*R8 -> 21303.31983 | S10: =+'GD17 Pi''s Calc - 40 yrs'!G33*S8 -> 23050.50954 | T10: =+'GD17 Pi''s Calc - 40 yrs'!H33*T8 -> 24940.167 | U10: =+'GD17 Pi''s Calc - 40 yrs'!I33*U8 -> 26970.88396 | Z10: CAs as % of core depreciation | AB10: 1
B11: Underrecoveries | C11: Exclude | P11: =IF(C11=B4,5000,0) -> 0 | Q11: =IF(C11=B4,5000,0) -> 0 | R11: =IF(C11=B4,5000,0) -> 0 | Z11: Threshold PMICR | AB11: 1.4
B12: Opex | P12: =+'GD17 Pi''s Calc - 40 yrs'!D35*P8 -> -6795.003123 | Q12: =+'GD17 Pi''s Calc - 40 yrs'!E35*Q8 -> -6957.976522 | R12: =+'GD17 Pi''s Calc - 40 yrs'!F35*R8 -> -7345.356341 | S12: =+'GD17 Pi''s Calc - 40 yrs'!G35*S8 -> -7818.078938 | T12: =+'GD17 Pi''s Calc - 40 yrs'!H35*T8 -> -8388.934321 | U12: =+'GD17 Pi''s Calc - 40 yrs'!I35*U8 -> -8990.785637
B13: Movements in working capital | Z13: Outturn and financial assumptions | AB13: FE
B14: Core asset depreciation | P14: =-DAV!P29*P8/1000 -> -4696.483353 | Q14: =-DAV!Q29*Q8/1000 -> -5303.251747 | R14: =-DAV!R29*R8/1000 -> -5935.627679 | S14: =-DAV!S29*S8/1000 -> -6636.613584 | T14: =-DAV!T29*T8/1000 -> -7347.160752 | U14: =-DAV!U29*U8/1000 -> -7930.874465 | Z14: Initial debt as % of TRV | AB14: 0.55
B15: Profile adjustment | P15: =(+'GD17 Pi''s Calc - 40 yrs'!D79-'GD17 Pi''s Calc - 40 yrs'!C79)*P8 -> -829.6045849 | Q15: =(+'GD17 Pi''s Calc - 40 yrs'!E79-'GD17 Pi''s Calc - 40 yrs'!D79)*Q8 -> 66.45592542 | R15: =(+'GD17 Pi''s Calc - 40 yrs'!F79-'GD17 Pi''s Calc - 40 yrs'!E79)*R8 -> 161.4426628 | S15: =(+'GD17 Pi''s Calc - 40 yrs'!G79-'GD17 Pi''s Calc - 40 yrs'!F79)*S8 -> 302.20051 | T15: =(+'GD17 Pi''s Calc - 40 yrs'!H79-'GD17 Pi''s Calc - 40 yrs'!G79)*T8 -> 444.1696071 | U15: =(+'GD17 Pi''s Calc - 40 yrs'!I79-'GD17 Pi''s Calc - 40 yrs'!H79)*U8 -> 384.7405797 | Z15: Nominal interest rate | AB15: 0.056
B16: Tax (prior year) | P16: =-P47 -> 0 | Q16: 0 | R16: -378.2451775 | S16: -401.2236353 | T16: -386.1660358 | U16: -396.4400297 | Z16: Year tax payments start | AB16: 2018 | AC16: note: to reflect approximate time when tax losses are fully utilised
B17: Post-maintenance FFO | P17: =SUM(P10:P16) -> 6792.336675 | Q17: 7499.953874 | R17: 7805.533293 | S17: 8496.793894 | T17: 9262.075497 | U17: 10037.52441
B19: PMICR | P19: =P17/P49 -> 1.381248293 | Q19: 1.377975494 | R19: 1.320591889 | S19: 1.329877782 | T19: 1.34778504 | U19: 1.364707725
B21: Maximum interest consistent with dividends | P21: =P17/'FE Financeability'!$AB$11 -> 4851.669053 | Q21: =Q17/'FE Financeability'!$AB$11 -> 5357.10991 | R21: =R17/'FE Financeability'!$AB$11 -> 5575.380924 | S21: =S17/'FE Financeability'!$AB$11 -> 6069.138496 | T21: =T17/'FE Financeability'!$AB$11 -> 6615.768212 | U21: =U17/'FE Financeability'!$AB$11 -> 7169.660293
B22: Implied maximum debt level (pre interest) | P22: =2*P21/IntFE-P41 -> 88431.02607 | Q22: 95624.44162 | R22: 94995.57371 | S22: 103875.4708 | T22: 114583.6878 | U22: 125449.8388
B24: Tax
B25: Revenues | P25: =P10+P11 -> 19113.42773 | Q25: =Q10+Q11 -> 19694.72622 | R25: 21303.31983 | S25: 23050.50954 | T25: 24940.167 | U25: 26970.88396
B26: Under Recoveries | C26: Exclude | P26: =IF(C26=B4,5000,0) -> 0 | Q26: =IF(C26=B4,5000,0) -> 0 | R26: =IF(C26=B4,5000,0) -> 0
B27: Opex | P27: =+P12 -> -6795.003123 | Q27: -6957.976522 | R27: -7345.356341 | S27: -7818.078938 | T27: -8388.934321 | U27: -8990.785637
B28: Interest | P28: =-P49 -> -4917.534891 | Q28: -5442.733856 | R28: -5910.632464 | S28: -6389.153957 | T28: -6872.071751 | U28: -7355.072609
B29: Capital allowances | P29: =P14*'FE Financeability'!$AB$10 -> -4696.483353 | Q29: =Q14*'FE Financeability'!$AB$10 -> -5303.251747 | R29: =R14*'FE Financeability'!$AB$10 -> -5935.627679 | S29: =S14*'FE Financeability'!$AB$10 -> -6636.613584 | T29: =T14*'FE Financeability'!$AB$10 -> -7347.160752 | U29: =U14*'FE Financeability'!$AB$10 -> -7930.874465
B30: Losses | P30: =IF(P5<TaxYearFE,-SUM(P25:P29),0) -> -2704.406369 | Q30: 0 | R30: 0 | S30: 0 | T30: 0 | U30: 0
B31: Taxable profits | P31: =SUM(P25:P30) -> 0 | Q31: 1990.764092 | R31: 2111.703344 | S31: 2206.663062 | T31: 2332.000175 | U31: 2694.15125
B32: Tax payable | P32: =P31*P67 -> 0 | Q32: 378.2451775 | R32: 401.2236353 | S32: 386.1660358 | T32: 396.4400297 | U32: 458.0057126
B34: Dividends
B35: Maximum dividend payout (% of initial equity) | P35: 0.0528
B36: Allowed dividend in year | P36: =(+P54-P41)*P35 -> 3665.211927 | Q36: =+P36*(1+Q7) -> 3777.733934 | R36: =+Q36*(1+R7) -> 3893.710365 | S36: =+R36*(1+S7) -> 4013.247273 | T36: =+S36*(1+T7) -> 4136.453965 | U36: =+T36*(1+U7) -> 4263.443102
B37: Dividend available | P37: =P36+(O37-O38)*(1+'FE Financeability'!$AB$7)*(1+$P$35) -> 3665.211927 | Q37: =Q36+(P37-P38)*(1+'FE Financeability'!$AB$7)*(1+$P$35) -> 7754.932219 | R37: =R36+(Q37-Q38)*(1+'FE Financeability'!$AB$7)*(1+$P$35) -> 12308.74986 | S37: =S36+(R37-R38)*(1+'FE Financeability'!$AB$7)*(1+$P$35) -> 17369.72974 | T37: =T36+(S37-S38)*(1+'FE Financeability'!$AB$7)*(1+$P$35) -> 22984.71177 | U37: =U36+(T37-T38)*(1+'FE Financeability'!$AB$7)*(1+$P$35) -> 29204.6356
B38: Dividend Paid | P38: =IF(P5<'FE Financeability'!$AB$9,0,MIN(MAX(0,P22-SUM(P41:P47)),P37)) -> 0 | Q38: =IF(Q5<'FE Financeability'!$AB$9,0,MIN(MAX(0,Q22-SUM(Q41:Q47)),Q37)) -> 0 | R38: =IF(R5<'FE Financeability'!$AB$9,0,MIN(MAX(0,R22-SUM(R41:R47)),R37)) -> 0 | S38: =IF(S5<'FE Financeability'!$AB$9,0,MIN(MAX(0,S22-SUM(S41:S47)),S37)) -> 0 | T38: =IF(T5<'FE Financeability'!$AB$9,0,MIN(MAX(0,T22-SUM(T41:T47)),T37)) -> 0 | U38: =IF(U5<'FE Financeability'!$AB$9,0,MIN(MAX(0,U22-SUM(U41:U47)),U37)) -> 0
B40: Debt
B41: Debt at the start of the year | P41: =+'GD17 Pi''s Calc - 40 yrs'!C81*DebtFE*'FE Financeability'!P8 -> 84842.86869 | Q41: =+P50 -> 95700.9123 | R41: =+Q50 -> 104125.1736 | S41: =+R50 -> 112879.4755 | T41: =+S50 -> 121693.7484 | U41: =+T50 -> 130609.4573
B42: Revenues | P42: =-P10 -> -19113.42773 | Q42: =-Q10 -> -19694.72622 | R42: -21303.31983 | S42: -23050.50954 | T42: -24940.167 | U42: -26970.88396
B43: Under Recoveries | C43: Exclude | P43: =IF(C43=B4,-5000,0) -> 0 | Q43: =IF(C43=B4,-5000,0) -> 0 | R43: =IF(C43=B4,-5000,0) -> 0
B44: Opex | P44: =-P27 -> 6795.003123 | Q44: 6957.976522 | R44: 7345.356341 | S44: 7818.078938 | T44: 8388.934321 | U44: 8990.785637
B45: Movements in working capital | P45: =+P13 -> 0 | Q45: 0 | R45: 0 | S45: 0 | T45: 0 | U45: 0
B46: Investment | P46: =+DAV!P14*'FE Financeability'!P8/1000 -> 18258.93334 | Q46: =+DAV!Q14*'FE Financeability'!Q8/1000 -> 15718.2771 | R46: =+DAV!R14*'FE Financeability'!R8/1000 -> 16423.38775 | S46: =+DAV!S14*'FE Financeability'!S8/1000 -> 17256.32593 | T46: =+DAV!T14*'FE Financeability'!T8/1000 -> 18208.70383 | U46: =+DAV!U14*'FE Financeability'!U8/1000 -> 19045.90825
B47: Tax (prior year) | P47: =O32 -> 0 | Q47: 0 | R47: 378.2451775 | S47: 401.2236353 | T47: 386.1660358 | U47: 396.4400297
B48: Dividends | P48: =P38 -> 0 | Q48: 0 | R48: 0 | S48: 0 | T48: 0 | U48: 0
B49: Interest | P49: =(P41+SUM(P42:P48)/2)*IntFE -> 4917.534891 | Q49: 5442.733856 | R49: 5910.632464 | S49: 6389.153957 | T49: 6872.071751 | U49: 7355.072609
B50: Debt at the end of the year | P50: =SUM(P41:P49) -> 95700.9123 | Q50: 104125.1736 | R50: 112879.4755 | S50: 121693.7484 | T50: 130609.4573 | U50: 139426.7799
B52: Average debt | P52: =AVERAGE(P50,P41) -> 90271.8905 | Q52: 99913.04293 | R52: 108502.3245 | S52: 117286.6119 | T52: 126151.6029 | U52: 135018.1186
B54: TRV at start of year (mid-year RPI) | P54: =+'GD17 Pi''s Calc - 40 yrs'!C81*'FE Financeability'!P8 -> 154259.7613 | Q54: =+'GD17 Pi''s Calc - 40 yrs'!D81*'FE Financeability'!Q8 -> 172119.2797 | R54: =+'GD17 Pi''s Calc - 40 yrs'!E81*'FE Financeability'!R8 -> 188206.6043 | S54: =+'GD17 Pi''s Calc - 40 yrs'!F81*'FE Financeability'!S8 -> 204960.6803 | T54: =+'GD17 Pi''s Calc - 40 yrs'!G81*'FE Financeability'!T8 -> 222510.1888 | U54: =+'GD17 Pi''s Calc - 40 yrs'!H81*'FE Financeability'!U8 -> 240994.0497
B55: TRV at end of year (mid-year RPI) | P55: =+'GD17 Pi''s Calc - 40 yrs'!D81*'FE Financeability'!P8 -> 166992.6067 | Q55: =+'GD17 Pi''s Calc - 40 yrs'!E81*'FE Financeability'!Q8 -> 182600.761 | R55: =+'GD17 Pi''s Calc - 40 yrs'!F81*'FE Financeability'!R8 -> 198855.807 | S55: =+'GD17 Pi''s Calc - 40 yrs'!G81*'FE Financeability'!S8 -> 215882.5932 | T55: =+'GD17 Pi''s Calc - 40 yrs'!H81*'FE Financeability'!T8 -> 233815.9015 | U55: =+'GD17 Pi''s Calc - 40 yrs'!I81*'FE Financeability'!U8 -> 252493.824
B56: Average TRV | P56: =AVERAGE(P54:P55) -> 160626.184 | Q56: =AVERAGE(Q54:Q55) -> 177360.0203 | R56: 193531.2057 | S56: 210421.6368 | T56: 228163.0451 | U56: 246743.9368
B57: PM-FFO as % TRV | P57: =P17/P56 -> 0.04228660924 | Q57: 0.04228660924 | R57: 0.04033216899 | S57: 0.04037984888 | T57: 0.04059410888 | U57: 0.04067992324
B58: Gearing ratio | P58: =P52/P56 -> 0.5619998451 | Q58: 0.5633346385 | R58: 0.5606451122 | S58: 0.5573885544 | T58: 0.5529011185 | U58: 0.5471993369
B60: Other relevant metrics
B61: FFO/Net Debt | P61: =(P10+P26+P12+P16-P49)/P52 -> 0.08198443259 | Q61: =(Q10+Q26+Q12+Q16-Q49)/Q52 -> 0.07300364022 | R61: 0.07068130456 | S61: 0.07197797661 | T61: 0.07366529382 | U61: 0.07575713387
B62: FFO Interest Cover | P62: =SUM((P10+P26+P12+P16-P49)+P49)/P49 -> 2.504999941 | Q62: =SUM((Q10+Q26+Q12+Q16-Q49)+Q49)/Q49 -> 2.340138253 | R62: 2.297506805 | S62: 2.321309999 | T62: 2.352284322 | U62: 2.390684529
B63: RCF/Capex | P63: =SUM((P10+P26+P12+P16-P49)-P38)/P46 -> 0.4053297958 | Q63: =SUM((Q10+Q26+Q12+Q16-Q49)-Q38)/Q46 -> 0.4640467777 | R63: 0.4669612605 | S63: 0.4892149722 | T63: 0.5103600441 | U63: 0.5370489845
B64: FE PMICR | P64: =(P10+P26+P12-P46+P50-P41+P16+P13)/P49 -> 1 | Q64: =(Q10+Q26+Q12-Q46+Q50-Q41+Q16+Q13)/Q49 -> 1 | R64: 1 | S64: 1 | T64: 1 | U64: 1
B66: Financial Year Corporation Tax Rate | P66: 0.19 | Q66: 0.19 | R66: 0.19 | S66: 0.17 | T66: 0.17 | U66: 0.17
B67: Calendar Year Corporation Tax Rate | P67: 0.1925 | Q67: 0.19 | R67: 0.19 | S67: 0.175 | T67: 0.17 | U67: 0.17

Sheet Building Block Method
A2: Building Block Method
A4: Year: | C4: 2017 | D4: =C4+1 -> 2018 | E4: =D4+1 -> 2019 | F4: 2020 | G4: 2021 | H4: 2022
A5: Opening: | C5: 0 | D5: =+C9 -> -5657.432592 | E5: =+D9 -> -8656.7111 | F5: =+E9 -> -11240.83669 | G5: =+F9 -> -13486.74197 | H5: =+G9 -> -15468.03074
A6: Cshflow: | C6: ='GD17 Pi''s Calc - 40 yrs'!D37 -> -5537.815771 | D6: ='GD17 Pi''s Calc - 40 yrs'!E37 -> -2696.630208 | E6: ='GD17 Pi''s Calc - 40 yrs'!F37 -> -2163.425675 | F6: ='GD17 Pi''s Calc - 40 yrs'!G37 -> -1723.082554 | G6: ='GD17 Pi''s Calc - 40 yrs'!H37 -> -1369.089188 | H6: ='GD17 Pi''s Calc - 40 yrs'!I37 -> -854.1482334
A7: Return on in year cashflow: | C7: =+C6*'GD17 Pi''s Calc - 40 yrs'!D6*'GD17 Pi''s Calc - 40 yrs'!$B7 -> -119.6168207 | D7: =+D6*'GD17 Pi''s Calc - 40 yrs'!E6*'GD17 Pi''s Calc - 40 yrs'!$B7 -> -58.2472125 | E7: =+E6*'GD17 Pi''s Calc - 40 yrs'!F6*'GD17 Pi''s Calc - 40 yrs'!$B7 -> -46.72999458 | F7: =+F6*'GD17 Pi''s Calc - 40 yrs'!G6*'GD17 Pi''s Calc - 40 yrs'!$B7 -> -37.21858317 | G7: =+G6*'GD17 Pi''s Calc - 40 yrs'!H6*'GD17 Pi''s Calc - 40 yrs'!$B7 -> -29.57232645 | H7: =+H6*'GD17 Pi''s Calc - 40 yrs'!I6*'GD17 Pi''s Calc - 40 yrs'!$B7 -> -18.44960184
A8: Return on in year opening: | C8: =+C5*'GD17 Pi''s Calc - 40 yrs'!D6 -> 0 | D8: =+D5*'GD17 Pi''s Calc - 40 yrs'!E6 -> -244.401088 | E8: =+E5*'GD17 Pi''s Calc - 40 yrs'!F6 -> -373.9699195 | F8: =+F5*'GD17 Pi''s Calc - 40 yrs'!G6 -> -485.604145 | G8: =+G5*'GD17 Pi''s Calc - 40 yrs'!H6 -> -582.6272532 | H8: =+H5*'GD17 Pi''s Calc - 40 yrs'!I6 -> -668.2189279
A9: Closing: | C9: =SUM(C5:C8) -> -5657.432592 | D9: -8656.7111 | E9: -11240.83669 | F9: -13486.74197 | G9: -15468.03074 | H9: -17008.8475
